body_name,organisational_unit,expenditure_category,expenditure_code,paid_date,trans_no,amount,caporrev,supplier_id,supplier_name
Oxford City Council,Suspense,Creditors - BACS,J8810,12/01/2016,46288359_1,7128.57,Revenue,20000000_46288359,Oxford Homeless Pathways
Oxford City Council,General Fund,AR Refunds (Sundries & Periodics),Z400404,12/01/2016,46288376_1,818.00,Revenue,20000000_46288376,Oxford University Hindu Society
Oxford City Council,Community Services,Instructors & Coaching Fees,D3413,26/01/2016,46288586_1,750.00,Revenue,20000000_46288586,Abingdon Badminton Club
Oxford City Council,General Fund,AR Refunds (Sundries & Periodics),Z400404,26/01/2016,46288593_1,1979.33,Revenue,20000000_46288593,Redacted personal details
Oxford City Council,Suspense,Creditors - BACS,J8810,29/01/2016,46288662_1,1668.44,Revenue,20000000_46288662,Redacted personal details
Oxford City Council,Suspense,Creditors - BACS,J8810,08/03/2016,46288916_1,50496.86,Revenue,20000000_46288916,Ruskin College
Oxford City Council,Community Services,Contributions,D3702,15/03/2016,46289064_1,540.00,Revenue,20000000_46289064,Feeding the Gaps
Oxford City Council,General Fund,AR Refunds (Sundries & Periodics),Z400404,15/03/2016,46289086_1,500.00,Revenue,20000000_46289086,MCC Promotions Ltd.
Oxford City Council,Direct Services,Deferred Charges Reversal,K9956,22/03/2016,46289217_1,1915.00,Revenue,20000000_46289217,Scania GB Ltd. 
Oxford City Council,Housing and Property,Consultants Fees,D3411,29/03/2016,46289248_1,1500.00,Revenue,20000000_46289248,Taylor Wessing LLP
Oxford City Council,Suspense,Creditors - BACS,J8810,29/03/2016,46289250_1,1144.80,Revenue,20000000_46289250,Wantage C of E Primary School
Oxford City Council,Suspense,Creditors - BACS,J8810,29/03/2016,46289251_1,745.00,Revenue,20000000_46289251,SSE
Oxford City Council,Housing and Property,Rent Allowance Cheques (Home Choice),F5033,12/01/2016,46288379_1,360.00,Revenue,20000010_46288379,Redacted personal details
Oxford City Council,Housing and Property,Rent Allowance Cheques (Home Choice),F5033,12/01/2016,46288379_2,925.00,Revenue,20000010_46288379,Redacted personal details
Oxford City Council,HRA,Special Events,D3807,12/01/2016,46288433_1,759.91,Revenue,20000010_46288433,Redacted personal details
Oxford City Council,HRA,Special Events,D3807,12/01/2016,46288434_1,3054.29,Revenue,20000010_46288434,Redacted personal details
Oxford City Council,HRA,Special Events,D3807,12/01/2016,46288435_1,1702.29,Revenue,20000010_46288435,Redacted personal details
Oxford City Council,HRA,Special Events,D3807,12/01/2016,46288437_1,1000.00,Revenue,20000010_46288437,Redacted personal details
Oxford City Council,Housing and Property,Rent Allowance Cheques (Home Choice),F5033,26/01/2016,46288535_1,546.00,Revenue,20000010_46288535,Redacted personal details
Oxford City Council,Housing and Property,Rent Allowance Cheques (Home Choice),F5033,26/01/2016,46288536_1,748.68,Revenue,20000010_46288536,Redacted personal details
Oxford City Council,Housing and Property,Rent Allowance Cheques (Home Choice),F5033,29/01/2016,46288613_1,636.44,Revenue,20000010_46288613,Redacted personal details
Oxford City Council,Housing and Property,Rent Allowance Cheques (Home Choice),F5033,29/01/2016,46288626_1,1668.16,Revenue,20000010_46288626,Redacted personal details
Oxford City Council,HRA,Special Events,D3807,29/01/2016,46288643_1,726.50,Revenue,20000010_46288643,Redacted personal details
Oxford City Council,Housing and Property,Rent Allowance Cheques (Home Choice),F5033,29/01/2016,46288658_1,1725.00,Revenue,20000010_46288658,Redacted personal details
Oxford City Council,Housing and Property,Rent Allowance Cheques (Home Choice),F5033,09/02/2016,46288710_1,925.00,Revenue,20000010_46288710,Redacted personal details
Oxford City Council,Housing and Property,Rent Allowance Cheques (Home Choice),F5033,09/02/2016,46288710_2,882.92,Revenue,20000010_46288710,Redacted personal details
Oxford City Council,Housing and Property,Rent Allowance Cheques (Home Choice),F5033,09/02/2016,46288710_3,363.68,Revenue,20000010_46288710,Redacted personal details
Oxford City Council,Housing and Property,Rent Allowance Cheques (Home Choice),F5033,09/02/2016,46288711_1,1802.35,Revenue,20000010_46288711,Redacted personal details
Oxford City Council,Housing and Property,Rent Allowance Cheques (Home Choice),F5033,09/02/2016,46288715_1,1575.00,Revenue,20000010_46288715,Redacted personal details
Oxford City Council,Housing and Property,Rent Allowance Cheques (Home Choice),F5033,09/02/2016,46288715_2,1187.71,Revenue,20000010_46288715,Redacted personal details
Oxford City Council,Housing and Property,Rent Allowance Cheques (Home Choice),F5033,09/02/2016,46288715_3,180.00,Revenue,20000010_46288715,Redacted personal details
Oxford City Council,Housing and Property,Rent Allowance Cheques (Home Choice),F5033,16/02/2016,46288719_1,549.00,Revenue,20000010_46288719,Redacted personal details
Oxford City Council,Housing and Property,Rent Allowance Cheques (Home Choice),F5033,16/02/2016,46288746_1,192.46,Revenue,20000010_46288746,Redacted personal details
Oxford City Council,Housing and Property,Rent Allowance Cheques (Home Choice),F5033,16/02/2016,46288746_2,900.00,Revenue,20000010_46288746,Redacted personal details
Oxford City Council,Housing and Property,Rent Allowance Cheques (Home Choice),F5033,16/02/2016,46288746_3,1668.00,Revenue,20000010_46288746,Redacted personal details
Oxford City Council,HRA,Special Events,D3807,16/02/2016,46288765_1,2900.29,Revenue,20000010_46288765,Redacted personal details
Oxford City Council,HRA,Special Events,D3807,23/02/2016,46288798_1,811.85,Revenue,20000010_46288798,Redacted personal details
Oxford City Council,HRA,Special Events,D3807,23/02/2016,46288799_1,1000.00,Revenue,20000010_46288799,Redacted personal details
Oxford City Council,Housing and Property,Rent Allowance Cheques (Home Choice),F5033,23/02/2016,46288840_1,820.00,Revenue,20000010_46288840,Redacted personal details
Oxford City Council,Housing and Property,Rent Allowance Cheques (Home Choice),F5033,08/03/2016,46288951_1,545.52,Revenue,20000010_46288951,Redacted personal details
Oxford City Council,HRA,Special Events,D3807,08/03/2016,46288961_1,797.59,Revenue,20000010_46288961,Redacted personal details
Oxford City Council,Housing and Property,Rent Allowance Cheques (Home Choice),F5033,08/03/2016,46288985_1,2239.05,Revenue,20000010_46288985,Redacted personal details
Oxford City Council,Housing and Property,Rent Allowance Cheques (Home Choice),F5033,08/03/2016,46288992_1,975.00,Revenue,20000010_46288992,Redacted personal details
Oxford City Council,Housing and Property,Rent Allowance Cheques (Home Choice),F5033,08/03/2016,46288992_2,576.98,Revenue,20000010_46288992,Redacted personal details
Oxford City Council,Housing and Property,Rent Allowance Cheques (Home Choice),F5033,08/03/2016,46288992_3,1691.04,Revenue,20000010_46288992,Redacted personal details
Oxford City Council,Housing and Property,Rent Allowance Cheques (Home Choice),F5033,08/03/2016,46288992_4,1950.00,Revenue,20000010_46288992,Redacted personal details
Oxford City Council,Housing and Property,Rent Allowance Cheques (Home Choice),F5033,08/03/2016,46288993_1,900.00,Revenue,20000010_46288993,Redacted personal details
Oxford City Council,Housing and Property,Rent Allowance Cheques (Home Choice),F5033,08/03/2016,46288993_2,132.00,Revenue,20000010_46288993,Redacted personal details
Oxford City Council,Housing and Property,Rent Allowance Cheques (Home Choice),F5033,08/03/2016,46288994_1,132.00,Revenue,20000010_46288994,Redacted personal details
Oxford City Council,Housing and Property,Rent Allowance Cheques (Home Choice),F5033,08/03/2016,46288994_2,900.00,Revenue,20000010_46288994,Redacted personal details
Oxford City Council,Housing and Property,Rent Allowance Cheques (Home Choice),F5033,08/03/2016,46288995_1,576.98,Revenue,20000010_46288995,Redacted personal details
Oxford City Council,Housing and Property,Rent Allowance Cheques (Home Choice),F5033,08/03/2016,46288995_2,1691.04,Revenue,20000010_46288995,Redacted personal details
Oxford City Council,Housing and Property,Rent Allowance Cheques (Home Choice),F5033,08/03/2016,46288995_3,975.00,Revenue,20000010_46288995,Redacted personal details
Oxford City Council,Housing and Property,Rent Allowance Cheques (Home Choice),F5033,08/03/2016,46288995_4,1950.00,Revenue,20000010_46288995,Redacted personal details
Oxford City Council,Housing and Property,Rent Allowance Cheques (Home Choice),F5033,08/03/2016,46288996_1,1668.16,Revenue,20000010_46288996,Admiral Homes
Oxford City Council,Housing and Property,Rent Allowance Cheques (Home Choice),F5033,08/03/2016,46288996_2,521.01,Revenue,20000010_46288996,Admiral Homes
Oxford City Council,Housing and Property,Rent Allowance Cheques (Home Choice),F5033,08/03/2016,46288996_3,834.08,Revenue,20000010_46288996,Admiral Homes
Oxford City Council,Housing and Property,Rent Allowance Cheques (Home Choice),F5033,08/03/2016,46288997_1,132.00,Revenue,20000010_46288997,Redacted personal details
Oxford City Council,Housing and Property,Rent Allowance Cheques (Home Choice),F5033,08/03/2016,46288997_2,900.00,Revenue,20000010_46288997,Redacted personal details
Oxford City Council,Housing and Property,Rent Allowance Cheques (Home Choice),F5033,15/03/2016,46289031_1,902.42,Revenue,20000010_46289031,Redacted personal details
Oxford City Council,Housing and Property,Rent Allowance Cheques (Home Choice),F5033,15/03/2016,46289032_1,598.16,Revenue,20000010_46289032,Redacted personal details
Oxford City Council,Housing and Property,Rent Allowance Cheques (Home Choice),F5033,15/03/2016,46289033_1,1091.04,Revenue,20000010_46289033,Redacted personal details
Oxford City Council,HRA,Special Events,D3807,15/03/2016,46289090_1,950.80,Revenue,20000010_46289090,Redacted personal details
Oxford City Council,Housing and Property,Rent Allowance Cheques (Home Choice),F5033,15/03/2016,46289095_1,546.00,Revenue,20000010_46289095,Redacted personal details
Oxford City Council,Housing and Property,Rent Allowance Cheques (Home Choice),F5033,15/03/2016,46289096_1,549.00,Revenue,20000010_46289096,Redacted personal details
Oxford City Council,Housing and Property,Rent Allowance Cheques (Home Choice),F5033,22/03/2016,46289164_1,1500.00,Revenue,20000010_46289164,Redacted personal details
Oxford City Council,Housing and Property,Rent Allowance Cheques (Home Choice),F5033,22/03/2016,46289212_1,792.00,Revenue,20000010_46289212,Redacted personal details
Oxford City Council,HRA,Special Events,D3807,22/03/2016,46289214_1,2954.94,Revenue,20000010_46289214,Redacted personal details
Oxford City Council,Housing and Property,Rent Allowance Cheques (Home Choice),F5033,22/03/2016,46289221_1,616.38,Revenue,20000010_46289221,Redacted personal details
Oxford City Council,Housing and Property,Rent Allowance Cheques (Home Choice),F5033,29/03/2016,46289270_1,821.84,Revenue,20000010_46289270,Redacted personal details
Oxford City Council,Housing and Property,Rent Allowance Cheques (Home Choice),F5033,29/03/2016,46289271_1,1091.04,Revenue,20000010_46289271,Redacted personal details
Oxford City Council,Housing and Property,Homeless Prevention,D3426,12/01/2016,46288452_1,550.00,Revenue,20000018_46288452,Redacted personal details
Oxford City Council,Housing and Property,Homeless Prevention,D3426,29/01/2016,46288596_1,575.00,Revenue,20000018_46288596,Rhodes & Sons
Oxford City Council,Housing and Property,Homeless Prevention,D3426,29/01/2016,46288597_1,121.00,Revenue,20000018_46288597,Redacted personal details
Oxford City Council,Housing and Property,Homeless Prevention,D3426,29/01/2016,46288597_2,834.00,Revenue,20000018_46288597,Redacted personal details
Oxford City Council,Housing and Property,Homeless Prevention,D3426,29/01/2016,46288598_1,555.00,Revenue,20000018_46288598,Home Experts Worcester
Oxford City Council,Housing and Property,Homeless Prevention,D3426,09/02/2016,46288685_1,834.00,Revenue,20000018_46288685,Redacted personal details
Oxford City Council,Housing and Property,Homeless Prevention,D3426,16/02/2016,46288758_1,1313.00,Revenue,20000018_46288758,Property Genie Services Ltd. 
Oxford City Council,Housing and Property,Homeless Prevention,D3426,08/03/2016,46288914_1,625.00,Revenue,20000018_46288914,Surelet Cheltenham
Oxford City Council,Housing and Property,Homeless Prevention,D3426,15/03/2016,46289040_1,625.00,Revenue,20000018_46289040,Surelet Cheltenham
Oxford City Council,Housing and Property,Other Miscellaneous Expenses,D3811,22/03/2016,46289223_1,1000.00,Revenue,20000018_46289223,Grants Property Management
Oxford City Council,Housing and Property,Homeless Prevention,D3426,29/03/2016,46289272_1,555.00,Revenue,20000018_46289272,HOME XPERTS LETTING
Oxford City Council,Community Services,Instructors & Coaching Fees,D3413,19/01/2016,46288521_1,1800.00,Revenue,20000019_46288521,Henley Golf Club
Oxford City Council,Community Services,Grants,D3701,16/02/2016,46288748_1,1000.00,Revenue,20000019_46288748,JUSTICE IN MOTION
Oxford City Council,Community Services,Grants,D3701,16/02/2016,46288749_1,1000.00,Revenue,20000019_46288749,JUSTICE IN MOTION
Oxford City Council,Community Services,Contributions,D3702,16/02/2016,46288751_1,1500.00,Revenue,20000019_46288751,LONGLANDS WELFARE
Oxford City Council,Direct Services,Hire Of Premises/Temp Accom,B1820,16/02/2016,46288753_1,886.34,Revenue,20000019_46288753,BARRACKS LANE ALLOTMENTS
Oxford City Council,Community Services,General Contracted Services,D3401,23/02/2016,46288800_1,1500.00,Revenue,20000019_46288800,SAFE! SUPPORTING YOUNG VICTIMS
Oxford City Council,Community Services,General Contracted Services,D3401,23/02/2016,46288831_1,4948.00,Revenue,20000019_46288831,OXFORD WELLBEING PROJECT
Oxford City Council,Community Services,Grants,D3701,08/03/2016,46288943_1,1500.00,Revenue,20000019_46288943,Inspired Young People
Oxford City Council,Community Services,Grants,D3701,15/03/2016,46289072_1,500.00,Revenue,20000019_46289072,Joelle Pappas Projects
Oxford City Council,Community Services,Contributions,D3702,22/03/2016,46289169_1,500.00,Revenue,20000019_46289169,Oxford Homeless Project
Oxford City Council,Community Services,Contributions,D3702,22/03/2016,46289171_1,500.00,Revenue,20000019_46289171,Oxford CircularCollective
Oxford City Council,Community Services,Contributions,D3702,22/03/2016,46289175_1,500.00,Revenue,20000019_46289175,PCC of Littlemore
Oxford City Council,Community Services,Grants,D3701,22/03/2016,46289225_1,1000.00,Revenue,20000019_46289225,Oxford Youth Choirs
Oxford City Council,Community Services,Contributions,D3702,29/03/2016,46289255_1,500.00,Revenue,20000019_46289255,LONGLANDS WELFARE FUND
Oxford City Council,Assistant Chief Executive,Grants,D3701,29/03/2016,46289279_1,4400.00,Revenue,20000019_46289279,CHENEY SCHOOL ACADEMY TRUST
Oxford City Council,Assistant Chief Executive,Grants,D3701,29/03/2016,46289280_1,4400.00,Revenue,20000019_46289280,OXFORD ACADEMY TRUST
Oxford City Council,Assistant Chief Executive,Grants,D3701,29/03/2016,46289281_1,3800.00,Revenue,20000019_46289281,CFBTSCHLSTRST - CHRITY OXFRD SPRS ACDMY
Oxford City Council,Business Improvement,Staff Advertising,A0702,26/01/2016,1025176_1,4746.37,Revenue,20000200,CHAMPION EMPLOYMENT LTD
Oxford City Council,Community Services,Temporary Bureau Staffing,A0108,19/01/2016,46288476_1,923.00,Revenue,20000200,CHAMPION EMPLOYMENT LTD
Oxford City Council,Business Improvement,Temporary Bureau Staffing,A0108,19/01/2016,46288476_10,3683.01,Revenue,20000200,CHAMPION EMPLOYMENT LTD
Oxford City Council,Environmental Sustainability,Temporary Bureau Staffing,A0108,19/01/2016,46288476_11,3176.25,Revenue,20000200,CHAMPION EMPLOYMENT LTD
Oxford City Council,Planning & Regulatory,Temporary Bureau Staffing,A0108,19/01/2016,46288476_12,1928.88,Revenue,20000200,CHAMPION EMPLOYMENT LTD
Oxford City Council,Planning & Regulatory,Temporary Bureau Staffing,A0108,19/01/2016,46288476_13,4833.42,Revenue,20000200,CHAMPION EMPLOYMENT LTD
Oxford City Council,Community Services,Temporary Bureau Staffing,A0108,19/01/2016,46288476_14,1903.86,Revenue,20000200,CHAMPION EMPLOYMENT LTD
Oxford City Council,Direct Services,Temporary Bureau Staffing,A0108,19/01/2016,46288476_15,1367.99,Revenue,20000200,CHAMPION EMPLOYMENT LTD
Oxford City Council,Assistant Chief Executive,Main Contractor,Y021,19/01/2016,46288476_16,1823.72,Capital,20000200,CHAMPION EMPLOYMENT LTD
Oxford City Council,Planning & Regulatory,Temporary Bureau Staffing,A0108,19/01/2016,46288476_17,2083.73,Revenue,20000200,CHAMPION EMPLOYMENT LTD
Oxford City Council,Planning & Regulatory,Temporary Bureau Staffing,A0108,19/01/2016,46288476_18,5382.00,Revenue,20000200,CHAMPION EMPLOYMENT LTD
Oxford City Council,Planning & Regulatory,Temporary Bureau Staffing,A0108,19/01/2016,46288476_19,4209.07,Revenue,20000200,CHAMPION EMPLOYMENT LTD
Oxford City Council,Direct Services,Temporary Bureau Staffing,A0108,19/01/2016,46288476_2,1922.25,Revenue,20000200,CHAMPION EMPLOYMENT LTD
Oxford City Council,Community Services,Temporary Bureau Staffing,A0108,19/01/2016,46288476_20,903.93,Revenue,20000200,CHAMPION EMPLOYMENT LTD
Oxford City Council,Community Services,Temporary Bureau Staffing,A0108,19/01/2016,46288476_21,284.34,Revenue,20000200,CHAMPION EMPLOYMENT LTD
Oxford City Council,Assistant Chief Executive,Temporary Bureau Staffing,A0108,19/01/2016,46288476_22,979.69,Revenue,20000200,CHAMPION EMPLOYMENT LTD
Oxford City Council,HRA,Temporary Bureau Staffing,A0108,19/01/2016,46288476_23,1798.75,Revenue,20000200,CHAMPION EMPLOYMENT LTD
Oxford City Council,HRA,Main Contractor,Y021,19/01/2016,46288476_24,5040.00,Capital,20000200,CHAMPION EMPLOYMENT LTD
Oxford City Council,HRA,Temporary Bureau Staffing,A0108,19/01/2016,46288476_25,5012.93,Revenue,20000200,CHAMPION EMPLOYMENT LTD
Oxford City Council,Direct Services,Temporary Bureau Staffing,A0108,19/01/2016,46288476_26,5476.69,Revenue,20000200,CHAMPION EMPLOYMENT LTD
Oxford City Council,Direct Services,Temporary Bureau Staffing,A0108,19/01/2016,46288476_27,2343.25,Revenue,20000200,CHAMPION EMPLOYMENT LTD
Oxford City Council,Direct Services,Temporary Bureau Staffing,A0108,19/01/2016,46288476_28,542.70,Revenue,20000200,CHAMPION EMPLOYMENT LTD
Oxford City Council,Housing and Property,Temporary Bureau Staffing,A0108,19/01/2016,46288476_29,1644.78,Revenue,20000200,CHAMPION EMPLOYMENT LTD
Oxford City Council,Community Services,Temporary Bureau Staffing,A0108,19/01/2016,46288476_3,2108.17,Revenue,20000200,CHAMPION EMPLOYMENT LTD
Oxford City Council,Direct Services,Temporary Bureau Staffing,A0108,19/01/2016,46288476_30,14353.15,Revenue,20000200,CHAMPION EMPLOYMENT LTD
Oxford City Council,Direct Services,Temporary Bureau Staffing,A0108,19/01/2016,46288476_31,2467.37,Revenue,20000200,CHAMPION EMPLOYMENT LTD
Oxford City Council,Direct Services,Temporary Bureau Staffing,A0108,19/01/2016,46288476_32,17202.84,Revenue,20000200,CHAMPION EMPLOYMENT LTD
Oxford City Council,Direct Services,Temporary Bureau Staffing,A0108,19/01/2016,46288476_33,1897.04,Revenue,20000200,CHAMPION EMPLOYMENT LTD
Oxford City Council,Direct Services,Temporary Bureau Staffing,A0108,19/01/2016,46288476_34,5834.04,Revenue,20000200,CHAMPION EMPLOYMENT LTD
Oxford City Council,Direct Services,Temporary Bureau Staffing,A0108,19/01/2016,46288476_35,5491.26,Revenue,20000200,CHAMPION EMPLOYMENT LTD
Oxford City Council,Direct Services,Temporary Bureau Staffing,A0108,19/01/2016,46288476_36,1992.67,Revenue,20000200,CHAMPION EMPLOYMENT LTD
Oxford City Council,Community Services,Temporary Bureau Staffing,A0108,19/01/2016,46288476_37,2048.76,Revenue,20000200,CHAMPION EMPLOYMENT LTD
Oxford City Council,Environmental Sustainability,Temporary Bureau Staffing,A0108,19/01/2016,46288476_38,26.26,Revenue,20000200,CHAMPION EMPLOYMENT LTD
Oxford City Council,Housing and Property,Temporary Bureau Staffing,A0108,19/01/2016,46288476_4,4542.58,Revenue,20000200,CHAMPION EMPLOYMENT LTD
Oxford City Council,Business Improvement,Temporary Bureau Staffing,A0108,19/01/2016,46288476_5,575.00,Revenue,20000200,CHAMPION EMPLOYMENT LTD
Oxford City Council,Business Improvement,Temporary Bureau Staffing,A0108,19/01/2016,46288476_6,18285.00,Revenue,20000200,CHAMPION EMPLOYMENT LTD
Oxford City Council,Business Improvement,Temporary Bureau Staffing,A0108,19/01/2016,46288476_7,4795.59,Revenue,20000200,CHAMPION EMPLOYMENT LTD
Oxford City Council,Transformation,Temporary Bureau Staffing,A0108,19/01/2016,46288476_8,151.20,Revenue,20000200,CHAMPION EMPLOYMENT LTD
Oxford City Council,Financial Services,Temporary Bureau Staffing,A0108,19/01/2016,46288476_9,1873.30,Revenue,20000200,CHAMPION EMPLOYMENT LTD
Oxford City Council,Community Services,Temporary Bureau Staffing,A0108,23/02/2016,46288843_1,2450.95,Revenue,20000200,CHAMPION EMPLOYMENT LTD
Oxford City Council,Business Improvement,Temporary Bureau Staffing,A0108,23/02/2016,46288843_10,5646.43,Revenue,20000200,CHAMPION EMPLOYMENT LTD
Oxford City Council,Planning & Regulatory,Temporary Bureau Staffing,A0108,23/02/2016,46288843_11,2318.36,Revenue,20000200,CHAMPION EMPLOYMENT LTD
Oxford City Council,Planning & Regulatory,Temporary Bureau Staffing,A0108,23/02/2016,46288843_12,5766.54,Revenue,20000200,CHAMPION EMPLOYMENT LTD
Oxford City Council,Community Services,Temporary Bureau Staffing,A0108,23/02/2016,46288843_13,2462.93,Revenue,20000200,CHAMPION EMPLOYMENT LTD
Oxford City Council,Direct Services,Temporary Bureau Staffing,A0108,23/02/2016,46288843_14,2321.25,Revenue,20000200,CHAMPION EMPLOYMENT LTD
Oxford City Council,Assistant Chief Executive,Main Contractor,Y021,23/02/2016,46288843_15,1996.25,Capital,20000200,CHAMPION EMPLOYMENT LTD
Oxford City Council,Planning & Regulatory,Temporary Bureau Staffing,A0108,23/02/2016,46288843_16,4492.28,Revenue,20000200,CHAMPION EMPLOYMENT LTD
Oxford City Council,Planning & Regulatory,Temporary Bureau Staffing,A0108,23/02/2016,46288843_17,4896.00,Revenue,20000200,CHAMPION EMPLOYMENT LTD
Oxford City Council,Planning & Regulatory,Temporary Bureau Staffing,A0108,23/02/2016,46288843_18,6241.26,Revenue,20000200,CHAMPION EMPLOYMENT LTD
Oxford City Council,Planning & Regulatory,Temporary Bureau Staffing,A0108,23/02/2016,46288843_19,5304.28,Revenue,20000200,CHAMPION EMPLOYMENT LTD
Oxford City Council,Community Services,Temporary Bureau Staffing,A0108,23/02/2016,46288843_2,1207.00,Revenue,20000200,CHAMPION EMPLOYMENT LTD
Oxford City Council,Community Services,Temporary Bureau Staffing,A0108,23/02/2016,46288843_20,2750.70,Revenue,20000200,CHAMPION EMPLOYMENT LTD
Oxford City Council,Community Services,Temporary Bureau Staffing,A0108,23/02/2016,46288843_21,128.54,Revenue,20000200,CHAMPION EMPLOYMENT LTD
Oxford City Council,Assistant Chief Executive,Temporary Bureau Staffing,A0108,23/02/2016,46288843_22,1737.99,Revenue,20000200,CHAMPION EMPLOYMENT LTD
Oxford City Council,Direct Services,Temporary Bureau Staffing,A0108,23/02/2016,46288843_23,362.85,Revenue,20000200,CHAMPION EMPLOYMENT LTD
Oxford City Council,HRA,Temporary Bureau Staffing,A0108,23/02/2016,46288843_24,2130.23,Revenue,20000200,CHAMPION EMPLOYMENT LTD
Oxford City Council,HRA,Main Contractor,Y021,23/02/2016,46288843_25,3960.00,Capital,20000200,CHAMPION EMPLOYMENT LTD
Oxford City Council,HRA,Temporary Bureau Staffing,A0108,23/02/2016,46288843_26,268.31,Revenue,20000200,CHAMPION EMPLOYMENT LTD
Oxford City Council,Direct Services,Temporary Bureau Staffing,A0108,23/02/2016,46288843_27,3921.24,Revenue,20000200,CHAMPION EMPLOYMENT LTD
Oxford City Council,Direct Services,Temporary Bureau Staffing,A0108,23/02/2016,46288843_28,3059.88,Revenue,20000200,CHAMPION EMPLOYMENT LTD
Oxford City Council,Direct Services,Temporary Bureau Staffing,A0108,23/02/2016,46288843_29,3227.85,Revenue,20000200,CHAMPION EMPLOYMENT LTD
Oxford City Council,Community Services,Temporary Bureau Staffing,A0108,23/02/2016,46288843_3,1921.91,Revenue,20000200,CHAMPION EMPLOYMENT LTD
Oxford City Council,Housing and Property,Temporary Bureau Staffing,A0108,23/02/2016,46288843_30,1339.42,Revenue,20000200,CHAMPION EMPLOYMENT LTD
Oxford City Council,Direct Services,Temporary Bureau Staffing,A0108,23/02/2016,46288843_31,10030.32,Revenue,20000200,CHAMPION EMPLOYMENT LTD
Oxford City Council,Direct Services,Temporary Bureau Staffing,A0108,23/02/2016,46288843_32,1713.84,Revenue,20000200,CHAMPION EMPLOYMENT LTD
Oxford City Council,Direct Services,Temporary Bureau Staffing,A0108,23/02/2016,46288843_33,2732.73,Revenue,20000200,CHAMPION EMPLOYMENT LTD
Oxford City Council,Direct Services,Temporary Bureau Staffing,A0108,23/02/2016,46288843_34,18852.96,Revenue,20000200,CHAMPION EMPLOYMENT LTD
Oxford City Council,Direct Services,Temporary Bureau Staffing,A0108,23/02/2016,46288843_35,2422.81,Revenue,20000200,CHAMPION EMPLOYMENT LTD
Oxford City Council,Direct Services,Temporary Bureau Staffing,A0108,23/02/2016,46288843_36,2517.04,Revenue,20000200,CHAMPION EMPLOYMENT LTD
Oxford City Council,Direct Services,Temporary Bureau Staffing,A0108,23/02/2016,46288843_37,4333.44,Revenue,20000200,CHAMPION EMPLOYMENT LTD
Oxford City Council,Direct Services,Temporary Bureau Staffing,A0108,23/02/2016,46288843_38,2812.44,Revenue,20000200,CHAMPION EMPLOYMENT LTD
Oxford City Council,Direct Services,Temporary Bureau Staffing,A0108,23/02/2016,46288843_39,2516.03,Revenue,20000200,CHAMPION EMPLOYMENT LTD
Oxford City Council,Community Services,Temporary Bureau Staffing,A0108,23/02/2016,46288843_4,3999.66,Revenue,20000200,CHAMPION EMPLOYMENT LTD
Oxford City Council,Housing and Property,Temporary Bureau Staffing,A0108,23/02/2016,46288843_5,4953.88,Revenue,20000200,CHAMPION EMPLOYMENT LTD
Oxford City Council,Business Improvement,Temporary Bureau Staffing,A0108,23/02/2016,46288843_6,862.50,Revenue,20000200,CHAMPION EMPLOYMENT LTD
Oxford City Council,Business Improvement,Temporary Bureau Staffing,A0108,23/02/2016,46288843_7,17602.48,Revenue,20000200,CHAMPION EMPLOYMENT LTD
Oxford City Council,Business Improvement,Temporary Bureau Staffing,A0108,23/02/2016,46288843_8,7240.92,Revenue,20000200,CHAMPION EMPLOYMENT LTD
Oxford City Council,Financial Services,Temporary Bureau Staffing,A0108,23/02/2016,46288843_9,14147.32,Revenue,20000200,CHAMPION EMPLOYMENT LTD
Oxford City Council,Community Services,Temporary Bureau Staffing,A0108,22/03/2016,46289148_1,3720.02,Revenue,20000200,CHAMPION EMPLOYMENT LTD
Oxford City Council,Financial Services,Temporary Bureau Staffing,A0108,22/03/2016,46289148_10,8036.51,Revenue,20000200,CHAMPION EMPLOYMENT LTD
Oxford City Council,Business Improvement,Temporary Bureau Staffing,A0108,22/03/2016,46289148_11,10240.46,Revenue,20000200,CHAMPION EMPLOYMENT LTD
Oxford City Council,Planning & Regulatory,Temporary Bureau Staffing,A0108,22/03/2016,46289148_12,2066.12,Revenue,20000200,CHAMPION EMPLOYMENT LTD
Oxford City Council,Planning & Regulatory,Temporary Bureau Staffing,A0108,22/03/2016,46289148_13,4058.38,Revenue,20000200,CHAMPION EMPLOYMENT LTD
Oxford City Council,Community Services,Temporary Bureau Staffing,A0108,22/03/2016,46289148_14,1926.53,Revenue,20000200,CHAMPION EMPLOYMENT LTD
Oxford City Council,Housing and Property,Temporary Bureau Staffing,A0108,22/03/2016,46289148_15,1152.57,Revenue,20000200,CHAMPION EMPLOYMENT LTD
Oxford City Council,Direct Services,Temporary Bureau Staffing,A0108,22/03/2016,46289148_16,2370.45,Revenue,20000200,CHAMPION EMPLOYMENT LTD
Oxford City Council,Assistant Chief Executive,Main Contractor,Y021,22/03/2016,46289148_17,1774.40,Capital,20000200,CHAMPION EMPLOYMENT LTD
Oxford City Council,Planning & Regulatory,Temporary Bureau Staffing,A0108,22/03/2016,46289148_18,7278.02,Revenue,20000200,CHAMPION EMPLOYMENT LTD
Oxford City Council,Community Services,Temporary Bureau Staffing,A0108,22/03/2016,46289148_19,2504.18,Revenue,20000200,CHAMPION EMPLOYMENT LTD
Oxford City Council,Community Services,Temporary Bureau Staffing,A0108,22/03/2016,46289148_2,1847.31,Revenue,20000200,CHAMPION EMPLOYMENT LTD
Oxford City Council,Assistant Chief Executive,Temporary Bureau Staffing,A0108,22/03/2016,46289148_20,1594.09,Revenue,20000200,CHAMPION EMPLOYMENT LTD
Oxford City Council,Direct Services,Temporary Bureau Staffing,A0108,22/03/2016,46289148_21,1820.40,Revenue,20000200,CHAMPION EMPLOYMENT LTD
Oxford City Council,HRA,Main Contractor,Y021,22/03/2016,46289148_22,4680.00,Capital,20000200,CHAMPION EMPLOYMENT LTD
Oxford City Council,Direct Services,Temporary Bureau Staffing,A0108,22/03/2016,46289148_23,1775.93,Revenue,20000200,CHAMPION EMPLOYMENT LTD
Oxford City Council,Direct Services,Temporary Bureau Staffing,A0108,22/03/2016,46289148_24,2288.25,Revenue,20000200,CHAMPION EMPLOYMENT LTD
Oxford City Council,Direct Services,Temporary Bureau Staffing,A0108,22/03/2016,46289148_25,10602.73,Revenue,20000200,CHAMPION EMPLOYMENT LTD
Oxford City Council,Direct Services,Temporary Bureau Staffing,A0108,22/03/2016,46289148_26,1887.54,Revenue,20000200,CHAMPION EMPLOYMENT LTD
Oxford City Council,Direct Services,Temporary Bureau Staffing,A0108,22/03/2016,46289148_27,1767.68,Revenue,20000200,CHAMPION EMPLOYMENT LTD
Oxford City Council,Direct Services,Temporary Bureau Staffing,A0108,22/03/2016,46289148_28,13991.96,Revenue,20000200,CHAMPION EMPLOYMENT LTD
Oxford City Council,Direct Services,Temporary Bureau Staffing,A0108,22/03/2016,46289148_29,525.77,Revenue,20000200,CHAMPION EMPLOYMENT LTD
Oxford City Council,Community Services,Temporary Bureau Staffing,A0108,22/03/2016,46289148_3,1192.80,Revenue,20000200,CHAMPION EMPLOYMENT LTD
Oxford City Council,Direct Services,Temporary Bureau Staffing,A0108,22/03/2016,46289148_30,3894.24,Revenue,20000200,CHAMPION EMPLOYMENT LTD
Oxford City Council,Direct Services,Temporary Bureau Staffing,A0108,22/03/2016,46289148_31,3402.22,Revenue,20000200,CHAMPION EMPLOYMENT LTD
Oxford City Council,Direct Services,Temporary Bureau Staffing,A0108,22/03/2016,46289148_32,2646.03,Revenue,20000200,CHAMPION EMPLOYMENT LTD
Oxford City Council,Business Improvement,Temporary Bureau Staffing,A0108,22/03/2016,46289148_33,42.00,Revenue,20000200,CHAMPION EMPLOYMENT LTD
Oxford City Council,Community Services,Temporary Bureau Staffing,A0108,22/03/2016,46289148_4,1989.40,Revenue,20000200,CHAMPION EMPLOYMENT LTD
Oxford City Council,Community Services,Temporary Bureau Staffing,A0108,22/03/2016,46289148_5,1481.08,Revenue,20000200,CHAMPION EMPLOYMENT LTD
Oxford City Council,Housing and Property,Temporary Bureau Staffing,A0108,22/03/2016,46289148_6,5410.88,Revenue,20000200,CHAMPION EMPLOYMENT LTD
Oxford City Council,Business Improvement,Temporary Bureau Staffing,A0108,22/03/2016,46289148_7,6428.91,Revenue,20000200,CHAMPION EMPLOYMENT LTD
Oxford City Council,Business Improvement,Temporary Bureau Staffing,A0108,22/03/2016,46289148_8,8367.73,Revenue,20000200,CHAMPION EMPLOYMENT LTD
Oxford City Council,Business Improvement,Temporary Bureau Staffing,A0108,22/03/2016,46289148_9,10413.20,Revenue,20000200,CHAMPION EMPLOYMENT LTD
Oxford City Council,Housing and Property,Services Maintenance (Planned),B1103,15/03/2016,46289068_1,1288.08,Revenue,20000203,KONE PLC
Oxford City Council,HRA,Main Contractor,Y021,19/01/2016,1025012_1,1075.00,Capital,20000209,AMITY INSULATION SERVICES LTD
Oxford City Council,Direct Services,Direct Services Sub Contractors,B1111,12/01/2016,60048962_0,510.00,Revenue,20000209,AMITY INSULATION SERVICES LTD
Oxford City Council,Direct Services,Direct Services Sub Contractors,B1111,23/02/2016,60051439_0,545.00,Revenue,20000209,AMITY INSULATION SERVICES LTD
Oxford City Council,Direct Services,Direct Services Sub Contractors,B1111,23/02/2016,60051440_1,780.00,Revenue,20000209,AMITY INSULATION SERVICES LTD
Oxford City Council,Housing and Property,Services Maintenance (Planned),B1103,09/02/2016,46288701_1,9333.26,Revenue,20000210,BARKER & EVANS LTD
Oxford City Council,Housing and Property,Services Maintenance (Planned),B1103,09/02/2016,46288701_2,70.00,Revenue,20000210,BARKER & EVANS LTD
Oxford City Council,Direct Services,Services Maintenance (Planned),B1103,09/02/2016,46288701_3,1247.24,Revenue,20000210,BARKER & EVANS LTD
Oxford City Council,Direct Services,Services Maintenance (Planned),B1103,09/02/2016,46288701_4,1057.75,Revenue,20000210,BARKER & EVANS LTD
Oxford City Council,Direct Services,Services Maintenance (Planned),B1103,09/02/2016,46288701_5,7767.21,Revenue,20000210,BARKER & EVANS LTD
Oxford City Council,Housing and Property,Services Maintenance (Planned),B1103,09/02/2016,46288701_6,556.99,Revenue,20000210,BARKER & EVANS LTD
Oxford City Council,Housing and Property,Services Maintenance (Planned),B1103,09/02/2016,46288701_7,262.50,Revenue,20000210,BARKER & EVANS LTD
Oxford City Council,Housing and Property,Services Maintenance (Planned),B1103,09/02/2016,46288701_8,642.45,Revenue,20000210,BARKER & EVANS LTD
Oxford City Council,Direct Services,Services Maintenance (Planned),B1103,09/02/2016,46288701_9,359.10,Revenue,20000210,BARKER & EVANS LTD
Oxford City Council,Housing and Property,Services Maintenance (Planned),B1103,15/03/2016,46289089_1,3093.98,Revenue,20000210,BARKER & EVANS LTD
Oxford City Council,Housing and Property,Services Maintenance (Planned),B1103,15/03/2016,46289089_2,70.00,Revenue,20000210,BARKER & EVANS LTD
Oxford City Council,Housing and Property,Services Maintenance (Planned),B1103,15/03/2016,46289089_3,984.95,Revenue,20000210,BARKER & EVANS LTD
Oxford City Council,Direct Services,Services Maintenance (Planned),B1103,15/03/2016,46289089_4,441.38,Revenue,20000210,BARKER & EVANS LTD
Oxford City Council,Housing and Property,Services Maintenance (Planned),B1103,15/03/2016,46289089_5,2375.29,Revenue,20000210,BARKER & EVANS LTD
Oxford City Council,Direct Services,Direct Services Sub Contractors,B1111,16/02/2016,60050862_0,1771.21,Revenue,20000210,BARKER & EVANS LTD
Oxford City Council,Direct Services,Direct Services Sub Contractors,B1111,01/03/2016,60051848_1,910.00,Revenue,20000210,BARKER & EVANS LTD
Oxford City Council,Direct Services,Direct Services Sub Contractors,B1111,08/03/2016,60052139_1,595.28,Revenue,20000210,BARKER & EVANS LTD
Oxford City Council,Direct Services,Direct Services Sub Contractors,B1111,22/03/2016,60053008_1,541.39,Revenue,20000210,BARKER & EVANS LTD
Oxford City Council,Direct Services,Direct Services Sub Contractors,B1111,22/03/2016,60053010_1,1455.64,Revenue,20000210,BARKER & EVANS LTD
Oxford City Council,Direct Services,Direct Services Sub Contractors,B1111,22/03/2016,60053011_0,1918.26,Revenue,20000210,BARKER & EVANS LTD
Oxford City Council,Direct Services,Direct Services Supplies & Services,D3311,29/03/2016,60053253_1,688.00,Revenue,20000215,CHILTERN INVADEX LTD
Oxford City Council,Direct Services,Services Maintenance (Planned),B1103,08/03/2016,1026320_0,2956.80,Revenue,20000216,CHRISTY LIGHTING LTD
Oxford City Council,Direct Services,Direct Services Sub Contractors,B1111,15/03/2016,60052583_0,23478.20,Revenue,20000219,DARNELLS LTD
Oxford City Council,Planning & Regulatory,General Contracted Services,D3401,16/02/2016,1025814_0,1750.00,Revenue,20000222,ELLIOTT & JORDAN LTD
Oxford City Council,Environmental Development,Grants-Private Persons,Y005,22/03/2016,1026996_0,2949.50,Capital,20000222,ELLIOTT & JORDAN LTD
Oxford City Council,HRA,Fire Damage & Other Equipment Repairs,B1305,12/01/2016,1024749_1,13310.47,Revenue,20000225,FERGAL CONTRACTING CO LTD
Oxford City Council,Regeneration and Major Projects Team,Main Contractor,Y021,19/01/2016,48021443_1,19224.70,Capital,20000225,FERGAL CONTRACTING CO LTD
Oxford City Council,General Fund,VAT Pro Forma Invoices,Z110205,19/01/2016,48021443_2,3844.94,Revenue,20000225,FERGAL CONTRACTING CO LTD
Oxford City Council,Regeneration and Major Projects Team,Main Contractor,Y021,09/02/2016,48021447_1,3401.42,Capital,20000225,FERGAL CONTRACTING CO LTD
Oxford City Council,Regeneration and Major Projects Team,Main Contractor,Y021,15/03/2016,48021477_1,15531.58,Capital,20000225,FERGAL CONTRACTING CO LTD
Oxford City Council,General Fund,VAT Pro Forma Invoices,Z110205,15/03/2016,48021477_2,3106.32,Revenue,20000225,FERGAL CONTRACTING CO LTD
Oxford City Council,Direct Services,Direct Services Supplies & Services,D3311,12/01/2016,60048979_1,1290.00,Revenue,20000233,JONES & REEVES
Oxford City Council,Direct Services,Direct Services Supplies & Services,D3311,12/01/2016,60048982_0,770.00,Revenue,20000233,JONES & REEVES
Oxford City Council,Direct Services,Direct Services Supplies & Services,D3311,12/01/2016,60048983_1,570.00,Revenue,20000233,JONES & REEVES
Oxford City Council,Direct Services,Direct Services Supplies & Services,D3311,12/01/2016,60048984_0,570.00,Revenue,20000233,JONES & REEVES
Oxford City Council,Direct Services,Direct Services Supplies & Services,D3311,12/01/2016,60048985_1,670.00,Revenue,20000233,JONES & REEVES
Oxford City Council,Direct Services,Direct Services Supplies & Services,D3311,12/01/2016,60048986_0,670.00,Revenue,20000233,JONES & REEVES
Oxford City Council,Direct Services,Direct Services Supplies & Services,D3311,12/01/2016,60048987_1,630.00,Revenue,20000233,JONES & REEVES
Oxford City Council,Direct Services,Direct Services Supplies & Services,D3311,12/01/2016,60048988_0,570.00,Revenue,20000233,JONES & REEVES
Oxford City Council,Direct Services,Direct Services Supplies & Services,D3311,12/01/2016,60048989_1,680.00,Revenue,20000233,JONES & REEVES
Oxford City Council,Direct Services,Direct Services Supplies & Services,D3311,12/01/2016,60048990_0,760.00,Revenue,20000233,JONES & REEVES
Oxford City Council,Direct Services,Direct Services Supplies & Services,D3311,12/01/2016,60048991_1,630.00,Revenue,20000233,JONES & REEVES
Oxford City Council,Direct Services,Direct Services Supplies & Services,D3311,12/01/2016,60048992_0,630.00,Revenue,20000233,JONES & REEVES
Oxford City Council,Direct Services,Direct Services Supplies & Services,D3311,12/01/2016,60048993_1,570.00,Revenue,20000233,JONES & REEVES
Oxford City Council,Direct Services,Direct Services Supplies & Services,D3311,12/01/2016,60048994_0,530.00,Revenue,20000233,JONES & REEVES
Oxford City Council,Direct Services,Direct Services Sub Contractors,B1111,19/01/2016,60049361_0,1224.78,Revenue,20000233,JONES & REEVES
Oxford City Council,Direct Services,Direct Services Sub Contractors,B1111,19/01/2016,60049363_0,530.43,Revenue,20000233,JONES & REEVES
Oxford City Council,Direct Services,Direct Services Sub Contractors,B1111,19/01/2016,60049364_2,704.85,Revenue,20000233,JONES & REEVES
Oxford City Council,Direct Services,Direct Services Sub Contractors,B1111,19/01/2016,60049366_2,865.80,Revenue,20000233,JONES & REEVES
Oxford City Council,Direct Services,Direct Services Supplies & Services,D3311,19/01/2016,60049383_0,2980.00,Revenue,20000233,JONES & REEVES
Oxford City Council,Direct Services,Direct Services Supplies & Services,D3311,26/01/2016,60049728_2,640.00,Revenue,20000233,JONES & REEVES
Oxford City Council,Direct Services,Direct Services Supplies & Services,D3311,26/01/2016,60049729_0,670.00,Revenue,20000233,JONES & REEVES
Oxford City Council,Direct Services,Direct Services Supplies & Services,D3311,26/01/2016,60049730_2,970.00,Revenue,20000233,JONES & REEVES
Oxford City Council,Direct Services,Direct Services Supplies & Services,D3311,26/01/2016,60049731_0,670.00,Revenue,20000233,JONES & REEVES
Oxford City Council,Direct Services,Direct Services Supplies & Services,D3311,26/01/2016,60049732_2,740.00,Revenue,20000233,JONES & REEVES
Oxford City Council,Direct Services,Direct Services Supplies & Services,D3311,26/01/2016,60049733_0,740.00,Revenue,20000233,JONES & REEVES
Oxford City Council,Direct Services,Direct Services Supplies & Services,D3311,26/01/2016,60049734_2,740.00,Revenue,20000233,JONES & REEVES
Oxford City Council,Direct Services,Direct Services Supplies & Services,D3311,26/01/2016,60049735_0,670.00,Revenue,20000233,JONES & REEVES
Oxford City Council,Direct Services,Direct Services Supplies & Services,D3311,26/01/2016,60049736_2,670.00,Revenue,20000233,JONES & REEVES
Oxford City Council,Direct Services,Direct Services Supplies & Services,D3311,26/01/2016,60049737_0,670.00,Revenue,20000233,JONES & REEVES
Oxford City Council,Direct Services,Direct Services Supplies & Services,D3311,26/01/2016,60049738_2,670.00,Revenue,20000233,JONES & REEVES
Oxford City Council,Direct Services,Direct Services Supplies & Services,D3311,26/01/2016,60049739_0,670.00,Revenue,20000233,JONES & REEVES
Oxford City Council,Direct Services,Direct Services Supplies & Services,D3311,26/01/2016,60049740_2,960.00,Revenue,20000233,JONES & REEVES
Oxford City Council,Direct Services,Direct Services Supplies & Services,D3311,26/01/2016,60049741_0,670.00,Revenue,20000233,JONES & REEVES
Oxford City Council,Direct Services,Direct Services Supplies & Services,D3311,26/01/2016,60049742_2,670.00,Revenue,20000233,JONES & REEVES
Oxford City Council,Direct Services,Direct Services Supplies & Services,D3311,26/01/2016,60049743_0,740.00,Revenue,20000233,JONES & REEVES
Oxford City Council,Direct Services,Direct Services Supplies & Services,D3311,26/01/2016,60049744_2,630.00,Revenue,20000233,JONES & REEVES
Oxford City Council,Direct Services,Direct Services Supplies & Services,D3311,26/01/2016,60049745_0,630.00,Revenue,20000233,JONES & REEVES
Oxford City Council,Direct Services,Direct Services Supplies & Services,D3311,26/01/2016,60049746_2,630.00,Revenue,20000233,JONES & REEVES
Oxford City Council,Direct Services,Direct Services Supplies & Services,D3311,26/01/2016,60049747_0,630.00,Revenue,20000233,JONES & REEVES
Oxford City Council,Direct Services,Direct Services Supplies & Services,D3311,26/01/2016,60049748_2,630.00,Revenue,20000233,JONES & REEVES
Oxford City Council,Direct Services,Direct Services Supplies & Services,D3311,26/01/2016,60049749_0,630.00,Revenue,20000233,JONES & REEVES
Oxford City Council,Direct Services,Direct Services Supplies & Services,D3311,26/01/2016,60049750_2,670.00,Revenue,20000233,JONES & REEVES
Oxford City Council,Direct Services,Direct Services Supplies & Services,D3311,26/01/2016,60049751_0,570.00,Revenue,20000233,JONES & REEVES
Oxford City Council,Direct Services,Direct Services Supplies & Services,D3311,26/01/2016,60049752_2,570.00,Revenue,20000233,JONES & REEVES
Oxford City Council,Direct Services,Direct Services Supplies & Services,D3311,26/01/2016,60049753_0,570.00,Revenue,20000233,JONES & REEVES
Oxford City Council,Direct Services,Direct Services Supplies & Services,D3311,26/01/2016,60049754_2,570.00,Revenue,20000233,JONES & REEVES
Oxford City Council,Direct Services,Direct Services Supplies & Services,D3311,26/01/2016,60049755_0,660.00,Revenue,20000233,JONES & REEVES
Oxford City Council,Direct Services,Direct Services Supplies & Services,D3311,26/01/2016,60049756_2,660.00,Revenue,20000233,JONES & REEVES
Oxford City Council,Direct Services,Direct Services Supplies & Services,D3311,26/01/2016,60049757_0,660.00,Revenue,20000233,JONES & REEVES
Oxford City Council,Direct Services,Direct Services Supplies & Services,D3311,26/01/2016,60049758_2,660.00,Revenue,20000233,JONES & REEVES
Oxford City Council,Direct Services,Direct Services Supplies & Services,D3311,26/01/2016,60049759_0,660.00,Revenue,20000233,JONES & REEVES
Oxford City Council,Direct Services,Direct Services Supplies & Services,D3311,26/01/2016,60049760_2,670.00,Revenue,20000233,JONES & REEVES
Oxford City Council,Direct Services,Direct Services Supplies & Services,D3311,26/01/2016,60049761_0,670.00,Revenue,20000233,JONES & REEVES
Oxford City Council,Direct Services,Direct Services Supplies & Services,D3311,26/01/2016,60049762_2,670.00,Revenue,20000233,JONES & REEVES
Oxford City Council,Direct Services,Direct Services Supplies & Services,D3311,26/01/2016,60049763_0,740.00,Revenue,20000233,JONES & REEVES
Oxford City Council,Direct Services,Direct Services Supplies & Services,D3311,26/01/2016,60049764_2,670.00,Revenue,20000233,JONES & REEVES
Oxford City Council,Direct Services,Direct Services Supplies & Services,D3311,26/01/2016,60049765_0,740.00,Revenue,20000233,JONES & REEVES
Oxford City Council,Direct Services,Direct Services Supplies & Services,D3311,26/01/2016,60049766_2,590.00,Revenue,20000233,JONES & REEVES
Oxford City Council,Direct Services,Direct Services Supplies & Services,D3311,26/01/2016,60049767_0,590.00,Revenue,20000233,JONES & REEVES
Oxford City Council,Direct Services,Direct Services Supplies & Services,D3311,26/01/2016,60049768_2,590.00,Revenue,20000233,JONES & REEVES
Oxford City Council,Direct Services,Direct Services Supplies & Services,D3311,26/01/2016,60049769_0,590.00,Revenue,20000233,JONES & REEVES
Oxford City Council,Direct Services,Direct Services Supplies & Services,D3311,26/01/2016,60049770_2,590.00,Revenue,20000233,JONES & REEVES
Oxford City Council,Direct Services,Direct Services Supplies & Services,D3311,29/01/2016,60049911_0,530.00,Revenue,20000233,JONES & REEVES
Oxford City Council,Direct Services,Direct Services Sub Contractors,B1111,08/03/2016,60052167_1,5780.00,Revenue,20000233,JONES & REEVES
Oxford City Council,Direct Services,Direct Services Sub Contractors,B1111,08/03/2016,60052173_1,2050.00,Revenue,20000233,JONES & REEVES
Oxford City Council,Direct Services,Direct Services Sub Contractors,B1111,15/03/2016,60052669_0,5800.00,Revenue,20000233,JONES & REEVES
Oxford City Council,Direct Services,Direct Services Sub Contractors,B1111,15/03/2016,60052673_0,670.00,Revenue,20000233,JONES & REEVES
Oxford City Council,Direct Services,Direct Services Sub Contractors,B1111,15/03/2016,60052681_0,700.00,Revenue,20000233,JONES & REEVES
Oxford City Council,Direct Services,Direct Services Sub Contractors,B1111,22/03/2016,60053030_1,740.00,Revenue,20000233,JONES & REEVES
Oxford City Council,Direct Services,Direct Services Sub Contractors,B1111,22/03/2016,60053031_0,740.00,Revenue,20000233,JONES & REEVES
Oxford City Council,Direct Services,Direct Services Sub Contractors,B1111,22/03/2016,60053032_1,740.00,Revenue,20000233,JONES & REEVES
Oxford City Council,Direct Services,Direct Services Sub Contractors,B1111,22/03/2016,60053033_0,630.00,Revenue,20000233,JONES & REEVES
Oxford City Council,Direct Services,Direct Services Sub Contractors,B1111,22/03/2016,60053034_1,630.00,Revenue,20000233,JONES & REEVES
Oxford City Council,Direct Services,Direct Services Sub Contractors,B1111,22/03/2016,60053035_0,630.00,Revenue,20000233,JONES & REEVES
Oxford City Council,Direct Services,Direct Services Sub Contractors,B1111,22/03/2016,60053036_1,630.00,Revenue,20000233,JONES & REEVES
Oxford City Council,Direct Services,Direct Services Sub Contractors,B1111,22/03/2016,60053037_0,630.00,Revenue,20000233,JONES & REEVES
Oxford City Council,Direct Services,Direct Services Sub Contractors,B1111,22/03/2016,60053038_1,630.00,Revenue,20000233,JONES & REEVES
Oxford City Council,Direct Services,Direct Services Sub Contractors,B1111,22/03/2016,60053039_0,630.00,Revenue,20000233,JONES & REEVES
Oxford City Council,Direct Services,Direct Services Sub Contractors,B1111,29/03/2016,60053333_1,2640.00,Revenue,20000233,JONES & REEVES
Oxford City Council,Housing and Property,Services Maintenance (Planned),B1103,29/01/2016,46288629_1,2196.00,Revenue,20000244,OXFORD REFRIGERATION LTD
Oxford City Council,Direct Services,Direct Services Sub Contractors,B1111,19/01/2016,60049408_2,4674.60,Revenue,20000244,OXFORD REFRIGERATION LTD
Oxford City Council,Direct Services,Direct Services Sub Contractors,B1111,26/01/2016,60049817_0,9610.40,Revenue,20000244,OXFORD REFRIGERATION LTD
Oxford City Council,Direct Services,Direct Services Sub Contractors,B1111,23/02/2016,60051479_1,5476.00,Revenue,20000244,OXFORD REFRIGERATION LTD
Oxford City Council,Housing and Property,Services Maintenance (Planned),B1103,09/02/2016,46288689_1,2635.10,Revenue,20000249,SSE CONTRACTING LTD
Oxford City Council,Direct Services,Services Maintenance (Planned),B1103,01/03/2016,46288878_1,245.00,Revenue,20000249,SSE CONTRACTING LTD
Oxford City Council,Housing and Property,Services Maintenance (Planned),B1103,01/03/2016,46288878_2,2910.38,Revenue,20000249,SSE CONTRACTING LTD
Oxford City Council,Business Improvement,Services Maintenance (Planned),B1103,01/03/2016,46288878_3,75.00,Revenue,20000249,SSE CONTRACTING LTD
Oxford City Council,Direct Services,Direct Services Supplies & Services,D3311,19/01/2016,60049369_0,650.00,Revenue,20000258,L A WOOD (OXON) LTD
Oxford City Council,Direct Services,Direct Services Supplies & Services,D3311,19/01/2016,60049381_0,650.00,Revenue,20000258,L A WOOD (OXON) LTD
Oxford City Council,Direct Services,Direct Services Supplies & Services,D3311,09/02/2016,60050469_0,550.00,Revenue,20000258,L A WOOD (OXON) LTD
Oxford City Council,Direct Services,Direct Services Supplies & Services,D3311,09/02/2016,60050473_0,550.00,Revenue,20000258,L A WOOD (OXON) LTD
Oxford City Council,Direct Services,Direct Services Supplies & Services,D3311,09/02/2016,60050474_1,500.00,Revenue,20000258,L A WOOD (OXON) LTD
Oxford City Council,Direct Services,Direct Services Supplies & Services,D3311,01/03/2016,60051790_1,650.00,Revenue,20000258,L A WOOD (OXON) LTD
Oxford City Council,Direct Services,Direct Services Supplies & Services,D3311,01/03/2016,60051792_1,650.00,Revenue,20000258,L A WOOD (OXON) LTD
Oxford City Council,Direct Services,Direct Services Supplies & Services,D3311,01/03/2016,60051796_1,750.00,Revenue,20000258,L A WOOD (OXON) LTD
Oxford City Council,Direct Services,Direct Services Sub Contractors,B1111,15/03/2016,60052608_1,680.00,Revenue,20000258,L A WOOD (OXON) LTD
Oxford City Council,Direct Services,Waste Disposal & Skip Hire,D3420,23/02/2016,1025970_1,509.95,Revenue,20000263,SHEEHAN HAULAGE & PLANT HIRE LTD
Oxford City Council,Direct Services,Tipping Charges,D3421,12/01/2016,60048896_0,670.00,Revenue,20000263,SHEEHAN HAULAGE & PLANT HIRE LTD
Oxford City Council,Direct Services,Tipping Charges,D3421,19/01/2016,60049167_1,614.00,Revenue,20000263,SHEEHAN HAULAGE & PLANT HIRE LTD
Oxford City Council,Direct Services,Tipping Charges,D3421,19/01/2016,60049170_1,526.00,Revenue,20000263,SHEEHAN HAULAGE & PLANT HIRE LTD
Oxford City Council,Direct Services,Tipping Charges,D3421,19/01/2016,60049171_1,758.00,Revenue,20000263,SHEEHAN HAULAGE & PLANT HIRE LTD
Oxford City Council,HRA,Asbestos Work,B1106,19/01/2016,60049173_1,720.00,Revenue,20000263,SHEEHAN HAULAGE & PLANT HIRE LTD
Oxford City Council,Direct Services,Materials,D3021,19/01/2016,60049229_1,652.40,Revenue,20000263,SHEEHAN HAULAGE & PLANT HIRE LTD
Oxford City Council,Direct Services,Materials,D3021,26/01/2016,60049620_1,650.00,Revenue,20000263,SHEEHAN HAULAGE & PLANT HIRE LTD
Oxford City Council,Direct Services,Materials,D3021,29/01/2016,60049965_0,2295.30,Revenue,20000263,SHEEHAN HAULAGE & PLANT HIRE LTD
Oxford City Council,Direct Services,Materials,D3021,29/01/2016,60049966_1,642.25,Revenue,20000263,SHEEHAN HAULAGE & PLANT HIRE LTD
Oxford City Council,Direct Services,Materials,D3021,29/01/2016,60049967_0,638.40,Revenue,20000263,SHEEHAN HAULAGE & PLANT HIRE LTD
Oxford City Council,Direct Services,Materials,D3021,29/01/2016,60049968_1,977.20,Revenue,20000263,SHEEHAN HAULAGE & PLANT HIRE LTD
Oxford City Council,Direct Services,General Contracted Services,D3401,29/01/2016,60049975_0,2350.19,Revenue,20000263,SHEEHAN HAULAGE & PLANT HIRE LTD
Oxford City Council,Direct Services,Materials,D3021,29/01/2016,60049978_1,3900.00,Revenue,20000263,SHEEHAN HAULAGE & PLANT HIRE LTD
Oxford City Council,Direct Services,Materials,D3021,29/01/2016,60049979_0,2600.00,Revenue,20000263,SHEEHAN HAULAGE & PLANT HIRE LTD
Oxford City Council,Direct Services,Materials,D3021,29/01/2016,60049980_1,2600.00,Revenue,20000263,SHEEHAN HAULAGE & PLANT HIRE LTD
Oxford City Council,Direct Services,Materials,D3021,09/02/2016,60050230_1,3900.00,Revenue,20000263,SHEEHAN HAULAGE & PLANT HIRE LTD
Oxford City Council,Direct Services,Materials,D3021,09/02/2016,60050231_0,3900.00,Revenue,20000263,SHEEHAN HAULAGE & PLANT HIRE LTD
Oxford City Council,Direct Services,Tipping Charges,D3421,09/02/2016,60050325_0,768.00,Revenue,20000263,SHEEHAN HAULAGE & PLANT HIRE LTD
Oxford City Council,Direct Services,Tipping Charges,D3421,09/02/2016,60050326_1,672.00,Revenue,20000263,SHEEHAN HAULAGE & PLANT HIRE LTD
Oxford City Council,Direct Services,Tipping Charges,D3421,09/02/2016,60050327_0,808.00,Revenue,20000263,SHEEHAN HAULAGE & PLANT HIRE LTD
Oxford City Council,HRA,Asbestos Work,B1106,09/02/2016,60050330_1,1133.00,Revenue,20000263,SHEEHAN HAULAGE & PLANT HIRE LTD
Oxford City Council,Direct Services,Materials,D3021,09/02/2016,60050399_1,907.74,Revenue,20000263,SHEEHAN HAULAGE & PLANT HIRE LTD
Oxford City Council,Direct Services,General Contracted Services,D3401,16/02/2016,60050750_0,2552.83,Revenue,20000263,SHEEHAN HAULAGE & PLANT HIRE LTD
Oxford City Council,Direct Services,Tipping Charges,D3421,23/02/2016,60051128_1,800.00,Revenue,20000263,SHEEHAN HAULAGE & PLANT HIRE LTD
Oxford City Council,Direct Services,Tipping Charges,D3421,23/02/2016,60051129_0,755.00,Revenue,20000263,SHEEHAN HAULAGE & PLANT HIRE LTD
Oxford City Council,Direct Services,Materials,D3021,01/03/2016,60051506_1,700.79,Revenue,20000263,SHEEHAN HAULAGE & PLANT HIRE LTD
Oxford City Council,Direct Services,General Contracted Services,D3401,01/03/2016,60051507_0,1671.62,Revenue,20000263,SHEEHAN HAULAGE & PLANT HIRE LTD
Oxford City Council,Direct Services,General Contracted Services,D3401,01/03/2016,60051508_1,2522.90,Revenue,20000263,SHEEHAN HAULAGE & PLANT HIRE LTD
Oxford City Council,Direct Services,Tipping Charges,D3421,01/03/2016,60051632_1,577.00,Revenue,20000263,SHEEHAN HAULAGE & PLANT HIRE LTD
Oxford City Council,Direct Services,Tipping Charges,D3421,08/03/2016,60052015_0,757.00,Revenue,20000263,SHEEHAN HAULAGE & PLANT HIRE LTD
Oxford City Council,Direct Services,Materials,D3021,22/03/2016,60052955_0,899.84,Revenue,20000263,SHEEHAN HAULAGE & PLANT HIRE LTD
Oxford City Council,Direct Services,Materials,D3021,22/03/2016,60052982_1,2927.05,Revenue,20000263,SHEEHAN HAULAGE & PLANT HIRE LTD
Oxford City Council,HRA,Asbestos Work,B1106,29/03/2016,60053270_0,1028.00,Revenue,20000263,SHEEHAN HAULAGE & PLANT HIRE LTD
Oxford City Council,Direct Services,Tipping Charges,D3421,29/03/2016,60053271_1,621.00,Revenue,20000263,SHEEHAN HAULAGE & PLANT HIRE LTD
Oxford City Council,Direct Services,Tipping Charges,D3421,29/03/2016,60053274_0,788.00,Revenue,20000263,SHEEHAN HAULAGE & PLANT HIRE LTD
Oxford City Council,Direct Services,Tipping Charges,D3421,29/03/2016,60053275_1,541.00,Revenue,20000263,SHEEHAN HAULAGE & PLANT HIRE LTD
Oxford City Council,Direct Services,Tipping Charges,D3421,29/03/2016,60053276_0,604.00,Revenue,20000263,SHEEHAN HAULAGE & PLANT HIRE LTD
Oxford City Council,Direct Services,Tipping Charges,D3421,29/03/2016,60053277_1,856.00,Revenue,20000263,SHEEHAN HAULAGE & PLANT HIRE LTD
Oxford City Council,Direct Services,Materials,D3021,29/03/2016,60053310_1,600.60,Revenue,20000263,SHEEHAN HAULAGE & PLANT HIRE LTD
Oxford City Council,Community Services,General Contracted Services,D3401,23/02/2016,1025564_0,988.45,Revenue,20000270,THE SHIELD GROUP
Oxford City Council,Housing and Property,Reactive Maintenance & Minor Repairs,B1101,23/02/2016,46288793_1,1883.38,Revenue,20000270,THE SHIELD GROUP
Oxford City Council,Direct Services,Sign Shop Materials,D3018,23/02/2016,60051259_1,3492.00,Revenue,20000278,B & M ENGINEERS LIMITED
Oxford City Council,Direct Services,Sign Shop Materials,D3018,23/02/2016,60051260_0,1437.54,Revenue,20000278,B & M ENGINEERS LIMITED
Oxford City Council,Direct Services,General Contracted Services,D3401,29/01/2016,60049974_1,2107.77,Revenue,20000284,GORMAN SURFACING LIMITED
Oxford City Council,Housing and Property,Reactive Maintenance & Minor Repairs,B1101,12/01/2016,1024753_1,750.00,Revenue,20000286,D E & H V HUSSEY
Oxford City Council,Housing and Property,Reactive Maintenance & Minor Repairs,B1101,12/01/2016,1024754_1,950.00,Revenue,20000286,D E & H V HUSSEY
Oxford City Council,Housing and Property,Reactive Maintenance & Minor Repairs,B1101,12/01/2016,1024755_1,800.00,Revenue,20000286,D E & H V HUSSEY
Oxford City Council,Housing and Property,Reactive Maintenance & Minor Repairs,B1101,09/02/2016,1025530_0,600.00,Revenue,20000286,D E & H V HUSSEY
Oxford City Council,Housing and Property,Reactive Maintenance & Minor Repairs,B1101,09/02/2016,1025532_0,895.00,Revenue,20000286,D E & H V HUSSEY
Oxford City Council,Housing and Property,Reactive Maintenance & Minor Repairs,B1101,09/02/2016,1025543_0,640.00,Revenue,20000286,D E & H V HUSSEY
Oxford City Council,Housing and Property,Reactive Maintenance & Minor Repairs,B1101,01/03/2016,1025829_0,1800.00,Revenue,20000286,D E & H V HUSSEY
Oxford City Council,Housing and Property,Reactive Maintenance & Minor Repairs,B1101,08/03/2016,1026249_0,1400.00,Revenue,20000286,D E & H V HUSSEY
Oxford City Council,Housing and Property,Reactive Maintenance & Minor Repairs,B1101,08/03/2016,1026416_0,850.00,Revenue,20000286,D E & H V HUSSEY
Oxford City Council,Housing and Property,Reactive Maintenance & Minor Repairs,B1101,08/03/2016,1026417_0,1360.00,Revenue,20000286,D E & H V HUSSEY
Oxford City Council,Housing and Property,Reactive Maintenance & Minor Repairs,B1101,22/03/2016,1026849_0,945.00,Revenue,20000286,D E & H V HUSSEY
Oxford City Council,Housing and Property,Reactive Maintenance & Minor Repairs,B1101,22/03/2016,1026971_0,1450.00,Revenue,20000286,D E & H V HUSSEY
Oxford City Council,Housing and Property,Reactive Maintenance & Minor Repairs,B1101,22/03/2016,1026972_0,850.00,Revenue,20000286,D E & H V HUSSEY
Oxford City Council,Housing and Property,Reactive Maintenance & Minor Repairs,B1101,09/02/2016,60050156_1,1600.00,Revenue,20000286,D E & H V HUSSEY
Oxford City Council,HRA,Controlled Entry Maintenance,B1243,29/01/2016,46288571_1,1739.57,Revenue,20000293,TUNSTALL TELECOM LIMITED
Oxford City Council,HRA,Controlled Entry Maintenance,B1243,26/01/2016,46288572_1,1967.35,Revenue,20000293,TUNSTALL TELECOM LIMITED
Oxford City Council,HRA,Controlled Entry Maintenance,B1243,26/01/2016,46288572_2,95.42,Revenue,20000293,TUNSTALL TELECOM LIMITED
Oxford City Council,HRA,Controlled Entry Maintenance,B1243,15/03/2016,46289004_1,2005.24,Revenue,20000293,TUNSTALL TELECOM LIMITED
Oxford City Council,HRA,Controlled Entry Maintenance,B1243,15/03/2016,46289004_2,95.42,Revenue,20000293,TUNSTALL TELECOM LIMITED
Oxford City Council,HRA,Controlled Entry Maintenance,B1243,29/03/2016,46289213_1,1644.15,Revenue,20000293,TUNSTALL TELECOM LIMITED
Oxford City Council,HRA,Controlled Entry Maintenance,B1243,29/03/2016,46289213_2,95.42,Revenue,20000293,TUNSTALL TELECOM LIMITED
Oxford City Council,Housing and Property,Reactive Maintenance & Minor Repairs,B1101,12/01/2016,46288360_1,518.50,Revenue,20000397,WINDRUSH DOOR & WINDOW SERVICES LTD
Oxford City Council,Direct Services,Services Maintenance (Planned),B1103,09/02/2016,46288688_1,921.00,Revenue,20000397,WINDRUSH DOOR & WINDOW SERVICES LTD
Oxford City Council,Direct Services,Direct Services Sub Contractors,B1111,12/01/2016,60048956_0,546.00,Revenue,20000441,1ST CHOICE SCAFFOLDING (OXFORD) LTD
Oxford City Council,Direct Services,Direct Services Sub Contractors,B1111,12/01/2016,60048958_0,1450.80,Revenue,20000441,1ST CHOICE SCAFFOLDING (OXFORD) LTD
Oxford City Council,Direct Services,Direct Services Sub Contractors,B1111,09/02/2016,60050409_1,702.00,Revenue,20000441,1ST CHOICE SCAFFOLDING (OXFORD) LTD
Oxford City Council,Suspense,Materials,D3021,12/01/2016,60048813_1,628.12,Revenue,20002005,HANSON AGGREGATES
Oxford City Council,Direct Services,Materials,D3021,12/01/2016,60048814_0,518.00,Revenue,20002005,HANSON AGGREGATES
Oxford City Council,Direct Services,Materials,D3021,26/01/2016,60049572_0,1136.00,Revenue,20002005,HANSON AGGREGATES
Oxford City Council,Suspense,Materials,D3021,26/01/2016,60049827_0,622.76,Revenue,20002005,HANSON AGGREGATES
Oxford City Council,Direct Services,Materials,D3021,23/02/2016,60051276_1,774.00,Revenue,20002005,HANSON AGGREGATES
Oxford City Council,Direct Services,Materials,D3021,01/03/2016,60051489_0,1218.41,Revenue,20002005,HANSON AGGREGATES
Oxford City Council,Direct Services,Materials,D3021,08/03/2016,60051877_0,969.68,Revenue,20002005,HANSON AGGREGATES
Oxford City Council,Direct Services,Materials,D3021,08/03/2016,60051878_1,539.34,Revenue,20002005,HANSON AGGREGATES
Oxford City Council,Direct Services,Materials,D3021,08/03/2016,60051879_0,857.85,Revenue,20002005,HANSON AGGREGATES
Oxford City Council,Direct Services,Materials,D3021,08/03/2016,60052194_0,620.56,Revenue,20002005,HANSON AGGREGATES
Oxford City Council,Suspense,Materials,D3021,15/03/2016,60052249_1,630.00,Revenue,20002005,HANSON AGGREGATES
Oxford City Council,Direct Services,Materials,D3021,22/03/2016,60052933_0,948.24,Revenue,20002005,HANSON AGGREGATES
Oxford City Council,Direct Services,Materials,D3021,22/03/2016,60052934_1,777.24,Revenue,20002005,HANSON AGGREGATES
Oxford City Council,Direct Services,Materials,D3021,22/03/2016,60052935_0,718.50,Revenue,20002005,HANSON AGGREGATES
Oxford City Council,Direct Services,Materials,D3021,22/03/2016,60052936_1,966.98,Revenue,20002005,HANSON AGGREGATES
Oxford City Council,Direct Services,Materials,D3021,22/03/2016,60052937_0,1019.41,Revenue,20002005,HANSON AGGREGATES
Oxford City Council,Direct Services,Materials,D3021,22/03/2016,60052938_1,558.45,Revenue,20002005,HANSON AGGREGATES
Oxford City Council,Suspense,Other Miscellaneous Expenses,D3811,23/02/2016,46288740_1,89956.16,Revenue,20002033,Green Machines Sweepers UK Ltd
Oxford City Council,Direct Services,Materials,D3021,19/01/2016,47983354_0,670.46,Revenue,20002033,Green Machines Sweepers UK Ltd
Oxford City Council,Direct Services,Tools,D3023,16/02/2016,1025479_1,663.06,Revenue,20002034,ARCO LTD
Oxford City Council,Direct Services,Repairs & Refurbishment,B1107,22/03/2016,60052689_0,519.00,Revenue,20002034,ARCO LTD
Oxford City Council,Housing and Property,Reactive Maintenance & Minor Repairs,B1101,16/02/2016,1025664_0,685.00,Revenue,20002056,B & B LOCKSMITHS
Oxford City Council,Community Services,Temporary Bureau Staffing,A0108,09/02/2016,1025539_0,624.00,Revenue,20002063,BARTON COMMUNITY ASSOCIATION
Oxford City Council,Community Services,General Contracted Services,D3401,22/03/2016,1026857_0,580.00,Revenue,20002063,BARTON COMMUNITY ASSOCIATION
Oxford City Council,Community Services,Grants,D3701,12/01/2016,46288361_1,600.00,Revenue,20002063,BARTON COMMUNITY ASSOCIATION
Oxford City Council,Direct Services,Tipping Charges,D3421,29/01/2016,60049893_0,7248.31,Revenue,20002077,BIFFA MUNICIPAL LTD
Oxford City Council,Direct Services,Tipping Charges,D3421,29/01/2016,60049894_1,8076.21,Revenue,20002077,BIFFA MUNICIPAL LTD
Oxford City Council,Direct Services,Tipping Charges,D3421,09/02/2016,60050352_1,8064.91,Revenue,20002077,BIFFA MUNICIPAL LTD
Oxford City Council,Direct Services,Tipping Charges,D3421,08/03/2016,60052245_0,8046.52,Revenue,20002077,BIFFA MUNICIPAL LTD
Oxford City Council,Direct Services,Tipping Charges,D3421,15/03/2016,60052554_1,7173.14,Revenue,20002077,BIFFA MUNICIPAL LTD
Oxford City Council,Community Services,Furniture & Equipment Purchase,D3001,09/02/2016,1025163_1,2000.70,Revenue,20002079,BISHOP SPORTS & LEISURE LTD
Oxford City Council,Direct Services,Direct Services Supplies & Services,D3311,29/03/2016,60053233_0,505.97,Revenue,20002083,BLANCHFORD & CO LTD.
Oxford City Council,HRA,Electricity,B1501,23/02/2016,47013245_1,1045.72,Revenue,20002096,BRITISH GAS TRADING LTD
Oxford City Council,HRA,Rent,B1701,22/03/2016,1026489_1,1000.00,Revenue,20002099,CANAL & RIVER TRUST
Oxford City Council,Direct Services,General Contracted Services,D3401,19/01/2016,1024881_1,4449.11,Revenue,20002120,OCS GROUP UK LTD T/A CANNON
Oxford City Council,Direct Services,General Contracted Services,D3401,19/01/2016,1024882_1,543.13,Revenue,20002120,OCS GROUP UK LTD T/A CANNON
Oxford City Council,Direct Services,Photocopying/Paper Supplies,D3306,09/02/2016,1025357_1,4449.11,Revenue,20002120,OCS GROUP UK LTD T/A CANNON
Oxford City Council,Direct Services,Photocopying/Paper Supplies,D3306,09/02/2016,1025358_1,543.13,Revenue,20002120,OCS GROUP UK LTD T/A CANNON
Oxford City Council,Direct Services,Security Services,D3418,22/03/2016,1026799_1,543.13,Revenue,20002120,OCS GROUP UK LTD T/A CANNON
Oxford City Council,Direct Services,Security Services,D3418,22/03/2016,1026800_1,543.13,Revenue,20002120,OCS GROUP UK LTD T/A CANNON
Oxford City Council,Direct Services,Security Services,D3418,22/03/2016,1026801_1,4449.11,Revenue,20002120,OCS GROUP UK LTD T/A CANNON
Oxford City Council,Direct Services,Security Services,D3418,22/03/2016,1026802_1,4449.11,Revenue,20002120,OCS GROUP UK LTD T/A CANNON
Oxford City Council,Community Services,Photocopying/Paper Supplies,D3306,26/01/2016,1020685_1,1539.64,Revenue,20002121,CANON (UK) LTD
Oxford City Council,Community Services,Photocopying/Paper Supplies,D3306,29/01/2016,1025051_1,992.38,Revenue,20002121,CANON (UK) LTD
Oxford City Council,Community Services,Photocopying/Paper Supplies,D3306,26/01/2016,1025065_1,1059.71,Revenue,20002121,CANON (UK) LTD
Oxford City Council,Direct Services,Main Contractor,Y021,29/01/2016,47983632_0,208.33,Capital,20002134,HARTWELL FORD KIDLINGTON
Oxford City Council,Direct Services,Main Contractor,Y021,29/01/2016,47983632_1,245.00,Capital,20002134,HARTWELL FORD KIDLINGTON
Oxford City Council,Direct Services,Main Contractor,Y021,29/01/2016,47983632_2,46.50,Capital,20002134,HARTWELL FORD KIDLINGTON
Oxford City Council,Direct Services,Main Contractor,Y021,29/01/2016,47983632_3,58.50,Capital,20002134,HARTWELL FORD KIDLINGTON
Oxford City Council,Direct Services,Main Contractor,Y021,29/01/2016,47983632_4,295.00,Capital,20002134,HARTWELL FORD KIDLINGTON
Oxford City Council,Direct Services,Main Contractor,Y021,29/01/2016,47983632_5,592.50,Capital,20002134,HARTWELL FORD KIDLINGTON
Oxford City Council,Direct Services,Main Contractor,Y021,29/01/2016,47983632_6,55.00,Capital,20002134,HARTWELL FORD KIDLINGTON
Oxford City Council,Direct Services,Main Contractor,Y021,29/01/2016,47983632_7,395.00,Capital,20002134,HARTWELL FORD KIDLINGTON
Oxford City Council,Direct Services,Main Contractor,Y021,29/01/2016,47983632_8,5429.82,Capital,20002134,HARTWELL FORD KIDLINGTON
Oxford City Council,Direct Services,Materials,D3021,19/01/2016,47983369_2,56.05,Revenue,20002168,DENNIS EAGLE LTD
Oxford City Council,Direct Services,Materials,D3021,19/01/2016,47983369_3,94.14,Revenue,20002168,DENNIS EAGLE LTD
Oxford City Council,Direct Services,Materials,D3021,19/01/2016,47983369_4,42.36,Revenue,20002168,DENNIS EAGLE LTD
Oxford City Council,Direct Services,Materials,D3021,19/01/2016,47983369_5,395.26,Revenue,20002168,DENNIS EAGLE LTD
Oxford City Council,Direct Services,Materials,D3021,19/01/2016,47983369_6,268.70,Revenue,20002168,DENNIS EAGLE LTD
Oxford City Council,Direct Services,Main Contractor,Y021,26/01/2016,47983501_0,705.00,Capital,20002168,DENNIS EAGLE LTD
Oxford City Council,Direct Services,Plant Purchase,C2002,29/01/2016,47983573_1,1595.00,Revenue,20002168,DENNIS EAGLE LTD
Oxford City Council,Direct Services,Materials,D3021,29/01/2016,47983606_0,1888.49,Revenue,20002168,DENNIS EAGLE LTD
Oxford City Council,Direct Services,Materials,D3021,29/01/2016,47983625_1,54.73,Revenue,20002168,DENNIS EAGLE LTD
Oxford City Council,Direct Services,Materials,D3021,29/01/2016,47983625_2,268.00,Revenue,20002168,DENNIS EAGLE LTD
Oxford City Council,Direct Services,Materials,D3021,29/01/2016,47983625_3,170.01,Revenue,20002168,DENNIS EAGLE LTD
Oxford City Council,Direct Services,Materials,D3021,29/01/2016,47983625_4,61.97,Revenue,20002168,DENNIS EAGLE LTD
Oxford City Council,Direct Services,Materials,D3021,26/01/2016,60049496_0,5712.00,Revenue,20002171,EDMUNDSON ELECTRICAL LTD
Oxford City Council,Direct Services,Materials,D3021,12/01/2016,60048701_1,1770.12,Revenue,20002183,EYRE & ELLISTON LTD
Oxford City Council,Direct Services,Materials,D3021,12/01/2016,60048714_0,2589.37,Revenue,20002183,EYRE & ELLISTON LTD
Oxford City Council,Direct Services,Materials,D3021,12/01/2016,60048715_1,1055.76,Revenue,20002183,EYRE & ELLISTON LTD
Oxford City Council,Direct Services,Materials,D3021,12/01/2016,60048723_1,1753.95,Revenue,20002183,EYRE & ELLISTON LTD
Oxford City Council,Direct Services,Materials,D3021,12/01/2016,60048743_1,2293.83,Revenue,20002183,EYRE & ELLISTON LTD
Oxford City Council,Direct Services,Materials,D3021,12/01/2016,60048744_0,1817.26,Revenue,20002183,EYRE & ELLISTON LTD
Oxford City Council,Direct Services,Materials,D3021,12/01/2016,60048877_1,1269.74,Revenue,20002183,EYRE & ELLISTON LTD
Oxford City Council,Direct Services,Materials,D3021,19/01/2016,60049149_0,4841.96,Revenue,20002183,EYRE & ELLISTON LTD
Oxford City Council,Direct Services,Materials,D3021,26/01/2016,60049527_2,2968.33,Revenue,20002183,EYRE & ELLISTON LTD
Oxford City Council,Direct Services,Materials,D3021,26/01/2016,60049528_0,731.86,Revenue,20002183,EYRE & ELLISTON LTD
Oxford City Council,Direct Services,Materials,D3021,26/01/2016,60049531_2,2415.75,Revenue,20002183,EYRE & ELLISTON LTD
Oxford City Council,Direct Services,Materials,D3021,26/01/2016,60049533_2,672.00,Revenue,20002183,EYRE & ELLISTON LTD
Oxford City Council,Direct Services,Materials,D3021,26/01/2016,60049672_2,1420.61,Revenue,20002183,EYRE & ELLISTON LTD
Oxford City Council,Direct Services,Materials,D3021,26/01/2016,60049678_2,1495.88,Revenue,20002183,EYRE & ELLISTON LTD
Oxford City Council,Direct Services,Materials,D3021,26/01/2016,60049679_0,740.88,Revenue,20002183,EYRE & ELLISTON LTD
Oxford City Council,Direct Services,Materials,D3021,26/01/2016,60049690_2,911.24,Revenue,20002183,EYRE & ELLISTON LTD
Oxford City Council,Direct Services,Materials,D3021,26/01/2016,60049691_0,1435.85,Revenue,20002183,EYRE & ELLISTON LTD
Oxford City Council,Direct Services,Materials,D3021,09/02/2016,60050091_0,2619.02,Revenue,20002183,EYRE & ELLISTON LTD
Oxford City Council,Direct Services,Materials,D3021,09/02/2016,60050092_1,2831.50,Revenue,20002183,EYRE & ELLISTON LTD
Oxford City Council,Direct Services,Materials,D3021,09/02/2016,60050093_0,5886.36,Revenue,20002183,EYRE & ELLISTON LTD
Oxford City Council,Direct Services,Materials,D3021,09/02/2016,60050094_1,5537.11,Revenue,20002183,EYRE & ELLISTON LTD
Oxford City Council,Direct Services,Materials,D3021,09/02/2016,60050096_1,1298.90,Revenue,20002183,EYRE & ELLISTON LTD
Oxford City Council,Direct Services,Materials,D3021,09/02/2016,60050302_1,1028.00,Revenue,20002183,EYRE & ELLISTON LTD
Oxford City Council,Direct Services,Materials,D3021,16/02/2016,60050663_0,813.10,Revenue,20002183,EYRE & ELLISTON LTD
Oxford City Council,Direct Services,Direct Services Supplies & Services,D3311,16/02/2016,60050664_1,833.25,Revenue,20002183,EYRE & ELLISTON LTD
Oxford City Council,Direct Services,Materials,D3021,16/02/2016,60050671_0,1445.80,Revenue,20002183,EYRE & ELLISTON LTD
Oxford City Council,Direct Services,Materials,D3021,16/02/2016,60050672_1,1233.14,Revenue,20002183,EYRE & ELLISTON LTD
Oxford City Council,Direct Services,Materials,D3021,16/02/2016,60050673_0,892.03,Revenue,20002183,EYRE & ELLISTON LTD
Oxford City Council,Direct Services,Materials,D3021,16/02/2016,60050789_1,1105.00,Revenue,20002183,EYRE & ELLISTON LTD
Oxford City Council,Direct Services,Materials,D3021,16/02/2016,60050794_0,2306.65,Revenue,20002183,EYRE & ELLISTON LTD
Oxford City Council,Direct Services,Materials,D3021,16/02/2016,60050829_1,1207.86,Revenue,20002183,EYRE & ELLISTON LTD
Oxford City Council,Direct Services,Materials,D3021,23/02/2016,60051044_0,514.00,Revenue,20002183,EYRE & ELLISTON LTD
Oxford City Council,Direct Services,Materials,D3021,23/02/2016,60051049_0,7659.82,Revenue,20002183,EYRE & ELLISTON LTD
Oxford City Council,Direct Services,Materials,D3021,23/02/2016,60051087_1,3496.59,Revenue,20002183,EYRE & ELLISTON LTD
Oxford City Council,Direct Services,Materials,D3021,23/02/2016,60051089_1,625.26,Revenue,20002183,EYRE & ELLISTON LTD
Oxford City Council,Direct Services,Materials,D3021,23/02/2016,60051091_1,1267.40,Revenue,20002183,EYRE & ELLISTON LTD
Oxford City Council,Direct Services,Materials,D3021,23/02/2016,60051092_0,1469.34,Revenue,20002183,EYRE & ELLISTON LTD
Oxford City Council,Direct Services,Materials,D3021,23/02/2016,60051093_1,1424.00,Revenue,20002183,EYRE & ELLISTON LTD
Oxford City Council,Direct Services,Materials,D3021,23/02/2016,60051094_0,1055.76,Revenue,20002183,EYRE & ELLISTON LTD
Oxford City Council,Direct Services,Materials,D3021,23/02/2016,60051096_0,865.25,Revenue,20002183,EYRE & ELLISTON LTD
Oxford City Council,Direct Services,Materials,D3021,23/02/2016,60051097_1,2274.83,Revenue,20002183,EYRE & ELLISTON LTD
Oxford City Council,Direct Services,Materials,D3021,23/02/2016,60051098_0,1847.57,Revenue,20002183,EYRE & ELLISTON LTD
Oxford City Council,Direct Services,Materials,D3021,23/02/2016,60051102_0,997.79,Revenue,20002183,EYRE & ELLISTON LTD
Oxford City Council,Direct Services,Materials,D3021,23/02/2016,60051104_0,4088.21,Revenue,20002183,EYRE & ELLISTON LTD
Oxford City Council,Direct Services,Materials,D3021,23/02/2016,60051238_1,4170.71,Revenue,20002183,EYRE & ELLISTON LTD
Oxford City Council,Direct Services,Materials,D3021,23/02/2016,60051240_1,653.45,Revenue,20002183,EYRE & ELLISTON LTD
Oxford City Council,Direct Services,Materials,D3021,01/03/2016,60051566_1,1723.96,Revenue,20002183,EYRE & ELLISTON LTD
Oxford City Council,Direct Services,Materials,D3021,01/03/2016,60051660_1,2227.56,Revenue,20002183,EYRE & ELLISTON LTD
Oxford City Council,Direct Services,Materials,D3021,01/03/2016,60051760_0,2044.83,Revenue,20002183,EYRE & ELLISTON LTD
Oxford City Council,Direct Services,Materials,D3021,01/03/2016,60051761_1,5050.19,Revenue,20002183,EYRE & ELLISTON LTD
Oxford City Council,Direct Services,Direct Services Supplies & Services,D3311,08/03/2016,60051950_1,852.88,Revenue,20002183,EYRE & ELLISTON LTD
Oxford City Council,Direct Services,Materials,D3021,08/03/2016,60051957_0,2593.93,Revenue,20002183,EYRE & ELLISTON LTD
Oxford City Council,Direct Services,Materials,D3021,08/03/2016,60051958_1,3050.30,Revenue,20002183,EYRE & ELLISTON LTD
Oxford City Council,Direct Services,Materials,D3021,08/03/2016,60052004_1,2517.86,Revenue,20002183,EYRE & ELLISTON LTD
Oxford City Council,Direct Services,Materials,D3021,08/03/2016,60052005_0,875.67,Revenue,20002183,EYRE & ELLISTON LTD
Oxford City Council,Direct Services,Materials,D3021,15/03/2016,60052367_0,802.52,Revenue,20002183,EYRE & ELLISTON LTD
Oxford City Council,Direct Services,Direct Services Supplies & Services,D3311,15/03/2016,60052408_0,535.37,Revenue,20002183,EYRE & ELLISTON LTD
Oxford City Council,Direct Services,Materials,D3021,22/03/2016,60052903_0,2490.11,Revenue,20002183,EYRE & ELLISTON LTD
Oxford City Council,Direct Services,Materials,D3021,22/03/2016,60052917_0,879.73,Revenue,20002183,EYRE & ELLISTON LTD
Oxford City Council,Direct Services,Materials,D3021,29/03/2016,60053174_1,3126.74,Revenue,20002183,EYRE & ELLISTON LTD
Oxford City Council,Direct Services,Materials,D3021,29/03/2016,60053179_0,2390.10,Revenue,20002183,EYRE & ELLISTON LTD
Oxford City Council,Direct Services,Materials,D3021,29/03/2016,60053182_0,1283.78,Revenue,20002183,EYRE & ELLISTON LTD
Oxford City Council,Direct Services,Materials,D3021,29/03/2016,60053186_0,3367.72,Revenue,20002183,EYRE & ELLISTON LTD
Oxford City Council,Direct Services,Materials,D3021,29/03/2016,60053191_1,1573.88,Revenue,20002183,EYRE & ELLISTON LTD
Oxford City Council,Direct Services,Materials,D3021,29/03/2016,60053203_1,715.10,Revenue,20002183,EYRE & ELLISTON LTD
Oxford City Council,Direct Services,Materials,D3021,22/03/2016,46289150_1,720.00,Revenue,20002198,FRENCO SERVICE REPLACMNTS LTD
Oxford City Council,Direct Services,Materials,D3021,23/02/2016,47984005_0,595.95,Revenue,20002198,FRENCO SERVICE REPLACMNTS LTD
Oxford City Council,Direct Services,Materials,D3021,08/03/2016,47984210_0,285.00,Revenue,20002198,FRENCO SERVICE REPLACMNTS LTD
Oxford City Council,Direct Services,Materials,D3021,08/03/2016,47984210_1,150.00,Revenue,20002198,FRENCO SERVICE REPLACMNTS LTD
Oxford City Council,Direct Services,Materials,D3021,08/03/2016,47984210_2,285.00,Revenue,20002198,FRENCO SERVICE REPLACMNTS LTD
Oxford City Council,Direct Services,Materials,D3021,08/03/2016,47984210_3,150.00,Revenue,20002198,FRENCO SERVICE REPLACMNTS LTD
Oxford City Council,Direct Services,Materials,D3021,15/03/2016,47984318_2,565.00,Revenue,20002198,FRENCO SERVICE REPLACMNTS LTD
Oxford City Council,Direct Services,Materials,D3021,15/03/2016,47984318_3,25.00,Revenue,20002198,FRENCO SERVICE REPLACMNTS LTD
Oxford City Council,Direct Services,Materials,D3021,29/03/2016,47984497_1,479.38,Revenue,20002198,FRENCO SERVICE REPLACMNTS LTD
Oxford City Council,Direct Services,Materials,D3021,29/03/2016,47984497_2,359.17,Revenue,20002198,FRENCO SERVICE REPLACMNTS LTD
Oxford City Council,Direct Services,Waste Disposal & Skip Hire,D3420,16/02/2016,1025223_1,1804.72,Revenue,20002222,GRUNDON WASTE MANAGEMENT LTD
Oxford City Council,Direct Services,Waste Disposal & Skip Hire,D3420,01/03/2016,1025784_0,790.32,Revenue,20002222,GRUNDON WASTE MANAGEMENT LTD
Oxford City Council,Direct Services,Waste Disposal & Skip Hire,D3420,29/03/2016,1026878_0,175.60,Revenue,20002222,GRUNDON WASTE MANAGEMENT LTD
Oxford City Council,Direct Services,Contract Plant Hire,C2402,29/03/2016,1026878_1,995.84,Revenue,20002222,GRUNDON WASTE MANAGEMENT LTD
Oxford City Council,Direct Services,Materials,D3021,26/01/2016,47983493_0,669.95,Revenue,20002241,HURLEY INDUSTRIAL CLEANING EQU
Oxford City Council,Suspense,Materials,D3021,29/01/2016,60049971_0,1742.92,Revenue,20002249,INSTARMAC LTD
Oxford City Council,Suspense,Materials,D3021,09/02/2016,60050361_0,543.40,Revenue,20002249,INSTARMAC LTD
Oxford City Council,Suspense,Materials,D3021,09/02/2016,60050363_0,848.40,Revenue,20002249,INSTARMAC LTD
Oxford City Council,Suspense,Materials,D3021,16/02/2016,60050719_1,565.60,Revenue,20002249,INSTARMAC LTD
Oxford City Council,Suspense,Materials,D3021,23/02/2016,60051280_1,633.92,Revenue,20002249,INSTARMAC LTD
Oxford City Council,Suspense,Materials,D3021,23/02/2016,60051281_0,848.40,Revenue,20002249,INSTARMAC LTD
Oxford City Council,Suspense,Materials,D3021,01/03/2016,60051693_0,848.40,Revenue,20002249,INSTARMAC LTD
Oxford City Council,Suspense,Materials,D3021,08/03/2016,60051880_1,543.40,Revenue,20002249,INSTARMAC LTD
Oxford City Council,Suspense,Materials,D3021,15/03/2016,60052560_1,565.60,Revenue,20002249,INSTARMAC LTD
Oxford City Council,Suspense,Materials,D3021,15/03/2016,60052684_1,633.92,Revenue,20002249,INSTARMAC LTD
Oxford City Council,Suspense,Materials,D3021,22/03/2016,60052980_2,1284.80,Revenue,20002249,INSTARMAC LTD
Oxford City Council,Direct Services,Materials,D3021,16/02/2016,1025824_0,1062.00,Revenue,20002254,GRAFTON MERCHANTING GB LTD
Oxford City Council,Direct Services,Materials,D3021,29/03/2016,1026498_0,977.04,Revenue,20002254,GRAFTON MERCHANTING GB LTD
Oxford City Council,Suspense,Other Miscellaneous Expenses,D3811,16/02/2016,46288733_1,593.11,Revenue,20002254,GRAFTON MERCHANTING GB LTD
Oxford City Council,Direct Services,Materials,D3021,12/01/2016,60048672_0,910.88,Revenue,20002254,GRAFTON MERCHANTING GB LTD
Oxford City Council,Direct Services,Materials,D3021,12/01/2016,60048676_0,667.16,Revenue,20002254,GRAFTON MERCHANTING GB LTD
Oxford City Council,Direct Services,Direct Services Supplies & Services,D3311,12/01/2016,60048677_1,622.80,Revenue,20002254,GRAFTON MERCHANTING GB LTD
Oxford City Council,Direct Services,Materials,D3021,12/01/2016,60048679_1,823.40,Revenue,20002254,GRAFTON MERCHANTING GB LTD
Oxford City Council,Direct Services,Direct Services Supplies & Services,D3311,12/01/2016,60048682_0,1003.92,Revenue,20002254,GRAFTON MERCHANTING GB LTD
Oxford City Council,Direct Services,Materials,D3021,12/01/2016,60048685_1,4265.62,Revenue,20002254,GRAFTON MERCHANTING GB LTD
Oxford City Council,Direct Services,Materials,D3021,12/01/2016,60048686_0,1430.11,Revenue,20002254,GRAFTON MERCHANTING GB LTD
Oxford City Council,Direct Services,Materials,D3021,12/01/2016,60048690_0,1176.68,Revenue,20002254,GRAFTON MERCHANTING GB LTD
Oxford City Council,Direct Services,Direct Services Supplies & Services,D3311,12/01/2016,60048854_0,519.59,Revenue,20002254,GRAFTON MERCHANTING GB LTD
Oxford City Council,Direct Services,Direct Services Supplies & Services,D3311,12/01/2016,60048855_1,611.96,Revenue,20002254,GRAFTON MERCHANTING GB LTD
Oxford City Council,Direct Services,Direct Services Supplies & Services,D3311,12/01/2016,60048856_0,677.85,Revenue,20002254,GRAFTON MERCHANTING GB LTD
Oxford City Council,Direct Services,Direct Services Supplies & Services,D3311,12/01/2016,60048857_1,617.97,Revenue,20002254,GRAFTON MERCHANTING GB LTD
Oxford City Council,Direct Services,Direct Services Supplies & Services,D3311,12/01/2016,60048858_0,1261.54,Revenue,20002254,GRAFTON MERCHANTING GB LTD
Oxford City Council,Direct Services,Direct Services Supplies & Services,D3311,12/01/2016,60048865_1,837.13,Revenue,20002254,GRAFTON MERCHANTING GB LTD
Oxford City Council,Direct Services,Direct Services Supplies & Services,D3311,12/01/2016,60048912_0,640.80,Revenue,20002254,GRAFTON MERCHANTING GB LTD
Oxford City Council,Direct Services,Direct Services Supplies & Services,D3311,12/01/2016,60048913_1,640.80,Revenue,20002254,GRAFTON MERCHANTING GB LTD
Oxford City Council,Direct Services,Direct Services Supplies & Services,D3311,12/01/2016,60048914_0,654.59,Revenue,20002254,GRAFTON MERCHANTING GB LTD
Oxford City Council,Direct Services,Direct Services Supplies & Services,D3311,12/01/2016,60048915_1,571.29,Revenue,20002254,GRAFTON MERCHANTING GB LTD
Oxford City Council,Direct Services,Direct Services Supplies & Services,D3311,12/01/2016,60048916_0,649.40,Revenue,20002254,GRAFTON MERCHANTING GB LTD
Oxford City Council,Direct Services,Direct Services Supplies & Services,D3311,12/01/2016,60048917_1,922.74,Revenue,20002254,GRAFTON MERCHANTING GB LTD
Oxford City Council,Direct Services,Direct Services Supplies & Services,D3311,12/01/2016,60048918_0,1050.56,Revenue,20002254,GRAFTON MERCHANTING GB LTD
Oxford City Council,Direct Services,Direct Services Supplies & Services,D3311,12/01/2016,60048919_1,640.64,Revenue,20002254,GRAFTON MERCHANTING GB LTD
Oxford City Council,Direct Services,Direct Services Supplies & Services,D3311,12/01/2016,60048920_0,646.57,Revenue,20002254,GRAFTON MERCHANTING GB LTD
Oxford City Council,Direct Services,Direct Services Supplies & Services,D3311,12/01/2016,60048921_1,902.13,Revenue,20002254,GRAFTON MERCHANTING GB LTD
Oxford City Council,Direct Services,Direct Services Supplies & Services,D3311,12/01/2016,60048922_0,519.59,Revenue,20002254,GRAFTON MERCHANTING GB LTD
Oxford City Council,Direct Services,Direct Services Supplies & Services,D3311,12/01/2016,60048923_1,588.48,Revenue,20002254,GRAFTON MERCHANTING GB LTD
Oxford City Council,Direct Services,Direct Services Supplies & Services,D3311,12/01/2016,60048926_0,694.50,Revenue,20002254,GRAFTON MERCHANTING GB LTD
Oxford City Council,Direct Services,Direct Services Supplies & Services,D3311,12/01/2016,60048927_1,550.16,Revenue,20002254,GRAFTON MERCHANTING GB LTD
Oxford City Council,Direct Services,Direct Services Supplies & Services,D3311,12/01/2016,60048928_0,519.59,Revenue,20002254,GRAFTON MERCHANTING GB LTD
Oxford City Council,Direct Services,Direct Services Supplies & Services,D3311,12/01/2016,60048930_0,567.62,Revenue,20002254,GRAFTON MERCHANTING GB LTD
Oxford City Council,Direct Services,Materials,D3021,19/01/2016,60049078_2,2093.62,Revenue,20002254,GRAFTON MERCHANTING GB LTD
Oxford City Council,Direct Services,Direct Services Supplies & Services,D3311,19/01/2016,60049081_0,571.98,Revenue,20002254,GRAFTON MERCHANTING GB LTD
Oxford City Council,Direct Services,Direct Services Supplies & Services,D3311,19/01/2016,60049082_2,520.48,Revenue,20002254,GRAFTON MERCHANTING GB LTD
Oxford City Council,Direct Services,Direct Services Supplies & Services,D3311,19/01/2016,60049083_0,688.05,Revenue,20002254,GRAFTON MERCHANTING GB LTD
Oxford City Council,Direct Services,Direct Services Supplies & Services,D3311,19/01/2016,60049084_2,555.58,Revenue,20002254,GRAFTON MERCHANTING GB LTD
Oxford City Council,Direct Services,Materials,D3021,19/01/2016,60049086_2,7065.59,Revenue,20002254,GRAFTON MERCHANTING GB LTD
Oxford City Council,Direct Services,Materials,D3021,19/01/2016,60049088_2,603.28,Revenue,20002254,GRAFTON MERCHANTING GB LTD
Oxford City Council,Direct Services,Materials,D3021,19/01/2016,60049090_2,2215.14,Revenue,20002254,GRAFTON MERCHANTING GB LTD
Oxford City Council,Direct Services,Materials,D3021,19/01/2016,60049091_0,6808.32,Revenue,20002254,GRAFTON MERCHANTING GB LTD
Oxford City Council,Direct Services,Materials,D3021,19/01/2016,60049092_2,630.00,Revenue,20002254,GRAFTON MERCHANTING GB LTD
Oxford City Council,Direct Services,Direct Services Supplies & Services,D3311,19/01/2016,60049095_0,977.94,Revenue,20002254,GRAFTON MERCHANTING GB LTD
Oxford City Council,Direct Services,Materials,D3021,19/01/2016,60049098_2,552.82,Revenue,20002254,GRAFTON MERCHANTING GB LTD
Oxford City Council,Direct Services,Direct Services Supplies & Services,D3311,19/01/2016,60049135_1,1165.87,Revenue,20002254,GRAFTON MERCHANTING GB LTD
Oxford City Council,Direct Services,Direct Services Supplies & Services,D3311,19/01/2016,60049137_1,1164.12,Revenue,20002254,GRAFTON MERCHANTING GB LTD
Oxford City Council,Direct Services,Direct Services Supplies & Services,D3311,19/01/2016,60049139_1,536.33,Revenue,20002254,GRAFTON MERCHANTING GB LTD
Oxford City Council,Direct Services,Direct Services Supplies & Services,D3311,19/01/2016,60049239_1,577.30,Revenue,20002254,GRAFTON MERCHANTING GB LTD
Oxford City Council,Direct Services,Direct Services Supplies & Services,D3311,19/01/2016,60049240_1,907.43,Revenue,20002254,GRAFTON MERCHANTING GB LTD
Oxford City Council,Direct Services,Direct Services Supplies & Services,D3311,19/01/2016,60049241_1,914.02,Revenue,20002254,GRAFTON MERCHANTING GB LTD
Oxford City Council,Direct Services,Direct Services Supplies & Services,D3311,19/01/2016,60049242_1,910.09,Revenue,20002254,GRAFTON MERCHANTING GB LTD
Oxford City Council,Direct Services,Direct Services Supplies & Services,D3311,19/01/2016,60049243_1,678.30,Revenue,20002254,GRAFTON MERCHANTING GB LTD
Oxford City Council,Direct Services,Direct Services Supplies & Services,D3311,19/01/2016,60049244_1,617.97,Revenue,20002254,GRAFTON MERCHANTING GB LTD
Oxford City Council,Direct Services,Direct Services Supplies & Services,D3311,19/01/2016,60049245_1,548.19,Revenue,20002254,GRAFTON MERCHANTING GB LTD
Oxford City Council,Direct Services,Direct Services Supplies & Services,D3311,19/01/2016,60049246_1,513.58,Revenue,20002254,GRAFTON MERCHANTING GB LTD
Oxford City Council,Direct Services,Direct Services Supplies & Services,D3311,19/01/2016,60049247_1,582.47,Revenue,20002254,GRAFTON MERCHANTING GB LTD
Oxford City Council,Direct Services,Direct Services Supplies & Services,D3311,19/01/2016,60049248_1,704.37,Revenue,20002254,GRAFTON MERCHANTING GB LTD
Oxford City Council,Direct Services,Materials,D3021,19/01/2016,60049249_1,4444.56,Revenue,20002254,GRAFTON MERCHANTING GB LTD
Oxford City Council,Direct Services,Materials,D3021,26/01/2016,60049442_2,2956.35,Revenue,20002254,GRAFTON MERCHANTING GB LTD
Oxford City Council,Direct Services,Materials,D3021,26/01/2016,60049446_2,1737.20,Revenue,20002254,GRAFTON MERCHANTING GB LTD
Oxford City Council,Direct Services,Materials,D3021,26/01/2016,60049448_0,1432.29,Revenue,20002254,GRAFTON MERCHANTING GB LTD
Oxford City Council,Direct Services,Direct Services Supplies & Services,D3311,26/01/2016,60049449_2,628.19,Revenue,20002254,GRAFTON MERCHANTING GB LTD
Oxford City Council,Direct Services,Direct Services Supplies & Services,D3311,26/01/2016,60049450_0,597.80,Revenue,20002254,GRAFTON MERCHANTING GB LTD
Oxford City Council,Direct Services,Direct Services Supplies & Services,D3311,26/01/2016,60049452_0,1848.62,Revenue,20002254,GRAFTON MERCHANTING GB LTD
Oxford City Council,Direct Services,Direct Services Supplies & Services,D3311,26/01/2016,60049454_0,520.48,Revenue,20002254,GRAFTON MERCHANTING GB LTD
Oxford City Council,Direct Services,Direct Services Supplies & Services,D3311,26/01/2016,60049456_0,604.01,Revenue,20002254,GRAFTON MERCHANTING GB LTD
Oxford City Council,Direct Services,Direct Services Supplies & Services,D3311,26/01/2016,60049458_0,973.64,Revenue,20002254,GRAFTON MERCHANTING GB LTD
Oxford City Council,Direct Services,Materials,D3021,26/01/2016,60049459_2,881.01,Revenue,20002254,GRAFTON MERCHANTING GB LTD
Oxford City Council,Direct Services,Materials,D3021,26/01/2016,60049460_0,1633.16,Revenue,20002254,GRAFTON MERCHANTING GB LTD
Oxford City Council,Direct Services,Direct Services Supplies & Services,D3311,26/01/2016,60049461_2,579.62,Revenue,20002254,GRAFTON MERCHANTING GB LTD
Oxford City Council,Direct Services,Direct Services Supplies & Services,D3311,26/01/2016,60049462_0,537.95,Revenue,20002254,GRAFTON MERCHANTING GB LTD
Oxford City Council,Direct Services,Materials,D3021,26/01/2016,60049463_2,2667.09,Revenue,20002254,GRAFTON MERCHANTING GB LTD
Oxford City Council,Direct Services,Direct Services Supplies & Services,D3311,26/01/2016,60049465_2,594.57,Revenue,20002254,GRAFTON MERCHANTING GB LTD
Oxford City Council,Direct Services,Direct Services Supplies & Services,D3311,26/01/2016,60049466_0,611.91,Revenue,20002254,GRAFTON MERCHANTING GB LTD
Oxford City Council,Direct Services,Direct Services Supplies & Services,D3311,26/01/2016,60049467_2,514.60,Revenue,20002254,GRAFTON MERCHANTING GB LTD
Oxford City Council,Direct Services,Direct Services Supplies & Services,D3311,26/01/2016,60049651_0,1205.36,Revenue,20002254,GRAFTON MERCHANTING GB LTD
Oxford City Council,Direct Services,Direct Services Supplies & Services,D3311,26/01/2016,60049652_2,618.86,Revenue,20002254,GRAFTON MERCHANTING GB LTD
Oxford City Council,Direct Services,Direct Services Supplies & Services,D3311,26/01/2016,60049653_0,1097.45,Revenue,20002254,GRAFTON MERCHANTING GB LTD
Oxford City Council,Direct Services,Materials,D3021,26/01/2016,60049654_2,2588.40,Revenue,20002254,GRAFTON MERCHANTING GB LTD
Oxford City Council,Direct Services,Direct Services Supplies & Services,D3311,26/01/2016,60049656_2,917.47,Revenue,20002254,GRAFTON MERCHANTING GB LTD
Oxford City Council,Direct Services,Direct Services Supplies & Services,D3311,26/01/2016,60049658_2,513.58,Revenue,20002254,GRAFTON MERCHANTING GB LTD
Oxford City Council,Direct Services,Materials,D3021,26/01/2016,60049660_2,2796.26,Revenue,20002254,GRAFTON MERCHANTING GB LTD
Oxford City Council,Direct Services,Materials,D3021,26/01/2016,60049663_0,4074.29,Revenue,20002254,GRAFTON MERCHANTING GB LTD
Oxford City Council,Direct Services,Materials,D3021,26/01/2016,60049669_0,1562.07,Revenue,20002254,GRAFTON MERCHANTING GB LTD
Oxford City Council,Direct Services,Direct Services Supplies & Services,D3311,26/01/2016,60049700_2,906.67,Revenue,20002254,GRAFTON MERCHANTING GB LTD
Oxford City Council,Direct Services,Direct Services Supplies & Services,D3311,26/01/2016,60049701_0,713.93,Revenue,20002254,GRAFTON MERCHANTING GB LTD
Oxford City Council,Direct Services,Materials,D3021,29/01/2016,60049852_1,972.67,Revenue,20002254,GRAFTON MERCHANTING GB LTD
Oxford City Council,Direct Services,Direct Services Supplies & Services,D3311,29/01/2016,60049853_0,512.24,Revenue,20002254,GRAFTON MERCHANTING GB LTD
Oxford City Council,Direct Services,Direct Services Supplies & Services,D3311,29/01/2016,60049858_1,583.16,Revenue,20002254,GRAFTON MERCHANTING GB LTD
Oxford City Council,Direct Services,Materials,D3021,29/01/2016,60049863_0,1092.37,Revenue,20002254,GRAFTON MERCHANTING GB LTD
Oxford City Council,Direct Services,Materials,D3021,09/02/2016,60049990_1,1384.92,Revenue,20002254,GRAFTON MERCHANTING GB LTD
Oxford City Council,Direct Services,Materials,D3021,09/02/2016,60049991_0,4148.06,Revenue,20002254,GRAFTON MERCHANTING GB LTD
Oxford City Council,Direct Services,Direct Services Supplies & Services,D3311,09/02/2016,60049992_1,1156.72,Revenue,20002254,GRAFTON MERCHANTING GB LTD
Oxford City Council,Direct Services,Direct Services Supplies & Services,D3311,09/02/2016,60049993_0,647.75,Revenue,20002254,GRAFTON MERCHANTING GB LTD
Oxford City Council,Direct Services,Direct Services Supplies & Services,D3311,09/02/2016,60049994_1,520.48,Revenue,20002254,GRAFTON MERCHANTING GB LTD
Oxford City Council,Direct Services,Direct Services Supplies & Services,D3311,09/02/2016,60049995_0,896.78,Revenue,20002254,GRAFTON MERCHANTING GB LTD
Oxford City Council,Direct Services,Materials,D3021,09/02/2016,60049997_0,7757.04,Revenue,20002254,GRAFTON MERCHANTING GB LTD
Oxford City Council,Direct Services,Direct Services Supplies & Services,D3311,09/02/2016,60049998_1,612.65,Revenue,20002254,GRAFTON MERCHANTING GB LTD
Oxford City Council,Direct Services,Direct Services Supplies & Services,D3311,09/02/2016,60049999_0,673.79,Revenue,20002254,GRAFTON MERCHANTING GB LTD
Oxford City Council,Direct Services,Direct Services Supplies & Services,D3311,09/02/2016,60050000_1,520.48,Revenue,20002254,GRAFTON MERCHANTING GB LTD
Oxford City Council,Direct Services,Materials,D3021,09/02/2016,60050007_0,4928.68,Revenue,20002254,GRAFTON MERCHANTING GB LTD
Oxford City Council,Direct Services,Direct Services Supplies & Services,D3311,09/02/2016,60050008_1,748.76,Revenue,20002254,GRAFTON MERCHANTING GB LTD
Oxford City Council,Direct Services,Direct Services Supplies & Services,D3311,09/02/2016,60050009_0,544.03,Revenue,20002254,GRAFTON MERCHANTING GB LTD
Oxford City Council,Direct Services,Direct Services Supplies & Services,D3311,09/02/2016,60050010_1,514.27,Revenue,20002254,GRAFTON MERCHANTING GB LTD
Oxford City Council,Direct Services,Materials,D3021,09/02/2016,60050013_0,868.67,Revenue,20002254,GRAFTON MERCHANTING GB LTD
Oxford City Council,Direct Services,Materials,D3021,09/02/2016,60050022_0,951.05,Revenue,20002254,GRAFTON MERCHANTING GB LTD
Oxford City Council,Direct Services,Materials,D3021,09/02/2016,60050023_1,774.00,Revenue,20002254,GRAFTON MERCHANTING GB LTD
Oxford City Council,Direct Services,Materials,D3021,09/02/2016,60050025_1,749.49,Revenue,20002254,GRAFTON MERCHANTING GB LTD
Oxford City Council,Direct Services,Materials,D3021,09/02/2016,60050028_0,800.74,Revenue,20002254,GRAFTON MERCHANTING GB LTD
Oxford City Council,Direct Services,Direct Services Supplies & Services,D3311,09/02/2016,60050032_1,590.11,Revenue,20002254,GRAFTON MERCHANTING GB LTD
Oxford City Council,Direct Services,Direct Services Supplies & Services,D3311,09/02/2016,60050035_0,569.33,Revenue,20002254,GRAFTON MERCHANTING GB LTD
Oxford City Council,Direct Services,Direct Services Supplies & Services,D3311,09/02/2016,60050036_0,587.98,Revenue,20002254,GRAFTON MERCHANTING GB LTD
Oxford City Council,Direct Services,Direct Services Supplies & Services,D3311,09/02/2016,60050037_1,594.72,Revenue,20002254,GRAFTON MERCHANTING GB LTD
Oxford City Council,Direct Services,Direct Services Supplies & Services,D3311,09/02/2016,60050038_0,566.79,Revenue,20002254,GRAFTON MERCHANTING GB LTD
Oxford City Council,Direct Services,Direct Services Supplies & Services,D3311,09/02/2016,60050039_1,610.62,Revenue,20002254,GRAFTON MERCHANTING GB LTD
Oxford City Council,Direct Services,Direct Services Supplies & Services,D3311,09/02/2016,60050040_0,590.55,Revenue,20002254,GRAFTON MERCHANTING GB LTD
Oxford City Council,Direct Services,Direct Services Supplies & Services,D3311,09/02/2016,60050257_0,1036.98,Revenue,20002254,GRAFTON MERCHANTING GB LTD
Oxford City Council,Direct Services,Direct Services Supplies & Services,D3311,09/02/2016,60050259_0,612.65,Revenue,20002254,GRAFTON MERCHANTING GB LTD
Oxford City Council,Direct Services,Materials,D3021,09/02/2016,60050264_1,1275.12,Revenue,20002254,GRAFTON MERCHANTING GB LTD
Oxford City Council,Direct Services,Direct Services Supplies & Services,D3311,09/02/2016,60050265_0,549.52,Revenue,20002254,GRAFTON MERCHANTING GB LTD
Oxford City Council,Direct Services,Materials,D3021,09/02/2016,60050271_0,4208.89,Revenue,20002254,GRAFTON MERCHANTING GB LTD
Oxford City Council,Direct Services,Direct Services Supplies & Services,D3311,09/02/2016,60050273_0,826.19,Revenue,20002254,GRAFTON MERCHANTING GB LTD
Oxford City Council,Direct Services,Materials,D3021,09/02/2016,60050274_1,1007.71,Revenue,20002254,GRAFTON MERCHANTING GB LTD
Oxford City Council,Direct Services,Materials,D3021,16/02/2016,60050576_1,5927.48,Revenue,20002254,GRAFTON MERCHANTING GB LTD
Oxford City Council,Direct Services,Direct Services Supplies & Services,D3311,16/02/2016,60050578_1,618.86,Revenue,20002254,GRAFTON MERCHANTING GB LTD
Oxford City Council,Direct Services,Materials,D3021,16/02/2016,60050583_1,801.98,Revenue,20002254,GRAFTON MERCHANTING GB LTD
Oxford City Council,Direct Services,Materials,D3021,16/02/2016,60050585_1,1210.04,Revenue,20002254,GRAFTON MERCHANTING GB LTD
Oxford City Council,Direct Services,Materials,D3021,16/02/2016,60050586_0,1924.90,Revenue,20002254,GRAFTON MERCHANTING GB LTD
Oxford City Council,Direct Services,Materials,D3021,16/02/2016,60050587_1,536.60,Revenue,20002254,GRAFTON MERCHANTING GB LTD
Oxford City Council,Direct Services,Materials,D3021,16/02/2016,60050589_1,649.90,Revenue,20002254,GRAFTON MERCHANTING GB LTD
Oxford City Council,Direct Services,Direct Services Supplies & Services,D3311,16/02/2016,60050595_0,1029.42,Revenue,20002254,GRAFTON MERCHANTING GB LTD
Oxford City Council,Direct Services,Direct Services Supplies & Services,D3311,16/02/2016,60050596_1,837.75,Revenue,20002254,GRAFTON MERCHANTING GB LTD
Oxford City Council,Direct Services,Direct Services Supplies & Services,D3311,16/02/2016,60050597_0,762.37,Revenue,20002254,GRAFTON MERCHANTING GB LTD
Oxford City Council,Direct Services,Direct Services Supplies & Services,D3311,16/02/2016,60050598_1,726.54,Revenue,20002254,GRAFTON MERCHANTING GB LTD
Oxford City Council,Direct Services,Direct Services Supplies & Services,D3311,16/02/2016,60050599_0,628.19,Revenue,20002254,GRAFTON MERCHANTING GB LTD
Oxford City Council,Direct Services,Direct Services Supplies & Services,D3311,16/02/2016,60050600_1,703.69,Revenue,20002254,GRAFTON MERCHANTING GB LTD
Oxford City Council,Direct Services,Direct Services Supplies & Services,D3311,16/02/2016,60050604_1,736.34,Revenue,20002254,GRAFTON MERCHANTING GB LTD
Oxford City Council,Direct Services,Direct Services Supplies & Services,D3311,16/02/2016,60050605_0,583.16,Revenue,20002254,GRAFTON MERCHANTING GB LTD
Oxford City Council,Direct Services,Direct Services Supplies & Services,D3311,16/02/2016,60050612_1,604.75,Revenue,20002254,GRAFTON MERCHANTING GB LTD
Oxford City Council,Direct Services,Materials,D3021,16/02/2016,60050613_0,728.42,Revenue,20002254,GRAFTON MERCHANTING GB LTD
Oxford City Council,Direct Services,Materials,D3021,16/02/2016,60050614_1,981.24,Revenue,20002254,GRAFTON MERCHANTING GB LTD
Oxford City Council,Direct Services,Materials,D3021,16/02/2016,60050616_1,1140.84,Revenue,20002254,GRAFTON MERCHANTING GB LTD
Oxford City Council,Direct Services,Materials,D3021,16/02/2016,60050617_0,4622.40,Revenue,20002254,GRAFTON MERCHANTING GB LTD
Oxford City Council,Direct Services,Materials,D3021,16/02/2016,60050618_1,1157.18,Revenue,20002254,GRAFTON MERCHANTING GB LTD
Oxford City Council,Direct Services,Materials,D3021,16/02/2016,60050619_0,2031.75,Revenue,20002254,GRAFTON MERCHANTING GB LTD
Oxford City Council,Direct Services,Materials,D3021,16/02/2016,60050620_1,1128.75,Revenue,20002254,GRAFTON MERCHANTING GB LTD
Oxford City Council,Direct Services,Materials,D3021,16/02/2016,60050622_1,1758.62,Revenue,20002254,GRAFTON MERCHANTING GB LTD
Oxford City Council,Direct Services,Materials,D3021,16/02/2016,60050773_1,3487.78,Revenue,20002254,GRAFTON MERCHANTING GB LTD
Oxford City Council,Direct Services,Materials,D3021,16/02/2016,60050776_0,3332.00,Revenue,20002254,GRAFTON MERCHANTING GB LTD
Oxford City Council,Direct Services,Materials,D3021,16/02/2016,60050778_0,1752.14,Revenue,20002254,GRAFTON MERCHANTING GB LTD
Oxford City Council,Direct Services,Materials,D3021,16/02/2016,60050779_1,4449.74,Revenue,20002254,GRAFTON MERCHANTING GB LTD
Oxford City Council,Direct Services,Direct Services Supplies & Services,D3311,16/02/2016,60050780_0,505.63,Revenue,20002254,GRAFTON MERCHANTING GB LTD
Oxford City Council,Direct Services,Materials,D3021,16/02/2016,60050815_1,3026.62,Revenue,20002254,GRAFTON MERCHANTING GB LTD
Oxford City Council,Direct Services,Materials,D3021,16/02/2016,60050824_0,730.53,Revenue,20002254,GRAFTON MERCHANTING GB LTD
Oxford City Council,Direct Services,Materials,D3021,23/02/2016,60050967_0,1219.00,Revenue,20002254,GRAFTON MERCHANTING GB LTD
Oxford City Council,Direct Services,Direct Services Supplies & Services,D3311,23/02/2016,60050968_1,569.68,Revenue,20002254,GRAFTON MERCHANTING GB LTD
Oxford City Council,Direct Services,Direct Services Supplies & Services,D3311,23/02/2016,60050970_1,514.27,Revenue,20002254,GRAFTON MERCHANTING GB LTD
Oxford City Council,Direct Services,Direct Services Supplies & Services,D3311,23/02/2016,60050971_0,663.29,Revenue,20002254,GRAFTON MERCHANTING GB LTD
Oxford City Council,Direct Services,Materials,D3021,23/02/2016,60050977_0,1192.70,Revenue,20002254,GRAFTON MERCHANTING GB LTD
Oxford City Council,Direct Services,Materials,D3021,23/02/2016,60050979_0,1051.26,Revenue,20002254,GRAFTON MERCHANTING GB LTD
Oxford City Council,Direct Services,Materials,D3021,23/02/2016,60050980_1,3713.03,Revenue,20002254,GRAFTON MERCHANTING GB LTD
Oxford City Council,Direct Services,Direct Services Supplies & Services,D3311,23/02/2016,60050982_0,832.92,Revenue,20002254,GRAFTON MERCHANTING GB LTD
Oxford City Council,Direct Services,Direct Services Supplies & Services,D3311,23/02/2016,60050983_1,832.92,Revenue,20002254,GRAFTON MERCHANTING GB LTD
Oxford City Council,Direct Services,Direct Services Supplies & Services,D3311,23/02/2016,60050984_0,628.19,Revenue,20002254,GRAFTON MERCHANTING GB LTD
Oxford City Council,Direct Services,Materials,D3021,23/02/2016,60050991_1,641.08,Revenue,20002254,GRAFTON MERCHANTING GB LTD
Oxford City Council,Direct Services,Direct Services Supplies & Services,D3311,23/02/2016,60050994_0,731.30,Revenue,20002254,GRAFTON MERCHANTING GB LTD
Oxford City Council,Direct Services,Direct Services Supplies & Services,D3311,23/02/2016,60050995_1,726.35,Revenue,20002254,GRAFTON MERCHANTING GB LTD
Oxford City Council,Direct Services,Direct Services Supplies & Services,D3311,23/02/2016,60050996_0,783.50,Revenue,20002254,GRAFTON MERCHANTING GB LTD
Oxford City Council,Direct Services,Materials,D3021,23/02/2016,60051000_1,795.89,Revenue,20002254,GRAFTON MERCHANTING GB LTD
Oxford City Council,Direct Services,Materials,D3021,23/02/2016,60051006_1,1703.47,Revenue,20002254,GRAFTON MERCHANTING GB LTD
Oxford City Council,Direct Services,Materials,D3021,23/02/2016,60051008_1,710.81,Revenue,20002254,GRAFTON MERCHANTING GB LTD
Oxford City Council,Direct Services,Materials,D3021,23/02/2016,60051010_1,742.02,Revenue,20002254,GRAFTON MERCHANTING GB LTD
Oxford City Council,Direct Services,Direct Services Supplies & Services,D3311,23/02/2016,60051064_1,571.98,Revenue,20002254,GRAFTON MERCHANTING GB LTD
Oxford City Council,Direct Services,Direct Services Supplies & Services,D3311,23/02/2016,60051065_0,656.65,Revenue,20002254,GRAFTON MERCHANTING GB LTD
Oxford City Council,Direct Services,Direct Services Supplies & Services,D3311,23/02/2016,60051069_0,933.53,Revenue,20002254,GRAFTON MERCHANTING GB LTD
Oxford City Council,Direct Services,Direct Services Supplies & Services,D3311,23/02/2016,60051070_1,1302.59,Revenue,20002254,GRAFTON MERCHANTING GB LTD
Oxford City Council,Direct Services,Direct Services Supplies & Services,D3311,23/02/2016,60051076_1,578.19,Revenue,20002254,GRAFTON MERCHANTING GB LTD
Oxford City Council,Direct Services,Direct Services Supplies & Services,D3311,23/02/2016,60051077_0,571.98,Revenue,20002254,GRAFTON MERCHANTING GB LTD
Oxford City Council,Direct Services,Direct Services Supplies & Services,D3311,23/02/2016,60051079_1,587.70,Revenue,20002254,GRAFTON MERCHANTING GB LTD
Oxford City Council,Direct Services,Direct Services Supplies & Services,D3311,23/02/2016,60051080_0,704.36,Revenue,20002254,GRAFTON MERCHANTING GB LTD
Oxford City Council,Direct Services,Direct Services Supplies & Services,D3311,23/02/2016,60051081_1,615.78,Revenue,20002254,GRAFTON MERCHANTING GB LTD
Oxford City Council,Direct Services,Direct Services Supplies & Services,D3311,23/02/2016,60051082_0,626.23,Revenue,20002254,GRAFTON MERCHANTING GB LTD
Oxford City Council,Direct Services,Direct Services Supplies & Services,D3311,23/02/2016,60051167_1,519.59,Revenue,20002254,GRAFTON MERCHANTING GB LTD
Oxford City Council,Direct Services,Materials,D3021,23/02/2016,60051168_0,2473.96,Revenue,20002254,GRAFTON MERCHANTING GB LTD
Oxford City Council,Direct Services,Direct Services Supplies & Services,D3311,23/02/2016,60051169_1,634.79,Revenue,20002254,GRAFTON MERCHANTING GB LTD
Oxford City Council,Direct Services,Direct Services Supplies & Services,D3311,23/02/2016,60051170_0,600.78,Revenue,20002254,GRAFTON MERCHANTING GB LTD
Oxford City Council,Direct Services,Materials,D3021,23/02/2016,60051214_0,526.32,Revenue,20002254,GRAFTON MERCHANTING GB LTD
Oxford City Council,Direct Services,Materials,D3021,23/02/2016,60051217_1,609.91,Revenue,20002254,GRAFTON MERCHANTING GB LTD
Oxford City Council,Direct Services,Direct Services Supplies & Services,D3311,23/02/2016,60051219_1,568.46,Revenue,20002254,GRAFTON MERCHANTING GB LTD
Oxford City Council,Direct Services,Direct Services Supplies & Services,D3311,23/02/2016,60051220_0,567.05,Revenue,20002254,GRAFTON MERCHANTING GB LTD
Oxford City Council,Direct Services,Direct Services Supplies & Services,D3311,23/02/2016,60051227_1,569.03,Revenue,20002254,GRAFTON MERCHANTING GB LTD
Oxford City Council,Direct Services,Direct Services Supplies & Services,D3311,23/02/2016,60051228_0,643.23,Revenue,20002254,GRAFTON MERCHANTING GB LTD
Oxford City Council,Direct Services,Materials,D3021,01/03/2016,60051524_1,1886.26,Revenue,20002254,GRAFTON MERCHANTING GB LTD
Oxford City Council,Direct Services,Direct Services Supplies & Services,D3311,01/03/2016,60051525_0,919.05,Revenue,20002254,GRAFTON MERCHANTING GB LTD
Oxford City Council,Direct Services,Direct Services Supplies & Services,D3311,01/03/2016,60051528_1,819.80,Revenue,20002254,GRAFTON MERCHANTING GB LTD
Oxford City Council,Direct Services,Direct Services Supplies & Services,D3311,01/03/2016,60051529_0,583.03,Revenue,20002254,GRAFTON MERCHANTING GB LTD
Oxford City Council,Direct Services,Direct Services Supplies & Services,D3311,01/03/2016,60051530_1,1080.78,Revenue,20002254,GRAFTON MERCHANTING GB LTD
Oxford City Council,Direct Services,Materials,D3021,01/03/2016,60051532_1,2428.58,Revenue,20002254,GRAFTON MERCHANTING GB LTD
Oxford City Council,Direct Services,Direct Services Supplies & Services,D3311,01/03/2016,60051534_1,940.72,Revenue,20002254,GRAFTON MERCHANTING GB LTD
Oxford City Council,Direct Services,Direct Services Supplies & Services,D3311,01/03/2016,60051535_0,885.61,Revenue,20002254,GRAFTON MERCHANTING GB LTD
Oxford City Council,Direct Services,Materials,D3021,01/03/2016,60051540_1,5769.65,Revenue,20002254,GRAFTON MERCHANTING GB LTD
Oxford City Council,Direct Services,Materials,D3021,01/03/2016,60051544_1,1824.43,Revenue,20002254,GRAFTON MERCHANTING GB LTD
Oxford City Council,Direct Services,Materials,D3021,01/03/2016,60051549_0,1834.15,Revenue,20002254,GRAFTON MERCHANTING GB LTD
Oxford City Council,Direct Services,Materials,D3021,01/03/2016,60051553_0,3457.49,Revenue,20002254,GRAFTON MERCHANTING GB LTD
Oxford City Council,Direct Services,Materials,D3021,01/03/2016,60051597_0,4787.57,Revenue,20002254,GRAFTON MERCHANTING GB LTD
Oxford City Council,Direct Services,Direct Services Supplies & Services,D3311,01/03/2016,60051605_0,551.11,Revenue,20002254,GRAFTON MERCHANTING GB LTD
Oxford City Council,Direct Services,Direct Services Supplies & Services,D3311,01/03/2016,60051607_0,762.37,Revenue,20002254,GRAFTON MERCHANTING GB LTD
Oxford City Council,Direct Services,Materials,D3021,01/03/2016,60051613_0,1063.39,Revenue,20002254,GRAFTON MERCHANTING GB LTD
Oxford City Council,Direct Services,Direct Services Supplies & Services,D3311,01/03/2016,60051642_1,1165.59,Revenue,20002254,GRAFTON MERCHANTING GB LTD
Oxford City Council,Direct Services,Direct Services Supplies & Services,D3311,01/03/2016,60051643_0,542.95,Revenue,20002254,GRAFTON MERCHANTING GB LTD
Oxford City Council,Direct Services,Direct Services Supplies & Services,D3311,01/03/2016,60051646_1,628.19,Revenue,20002254,GRAFTON MERCHANTING GB LTD
Oxford City Council,Direct Services,Direct Services Supplies & Services,D3311,01/03/2016,60051647_0,1103.36,Revenue,20002254,GRAFTON MERCHANTING GB LTD
Oxford City Council,Direct Services,Materials,D3021,01/03/2016,60051730_1,2622.55,Revenue,20002254,GRAFTON MERCHANTING GB LTD
Oxford City Council,Direct Services,Materials,D3021,01/03/2016,60051732_1,1083.60,Revenue,20002254,GRAFTON MERCHANTING GB LTD
Oxford City Council,Direct Services,Materials,D3021,01/03/2016,60051734_1,517.21,Revenue,20002254,GRAFTON MERCHANTING GB LTD
Oxford City Council,Direct Services,Direct Services Supplies & Services,D3311,01/03/2016,60051736_1,717.64,Revenue,20002254,GRAFTON MERCHANTING GB LTD
Oxford City Council,Direct Services,Direct Services Supplies & Services,D3311,01/03/2016,60051737_0,624.47,Revenue,20002254,GRAFTON MERCHANTING GB LTD
Oxford City Council,Direct Services,Direct Services Supplies & Services,D3311,01/03/2016,60051740_1,762.89,Revenue,20002254,GRAFTON MERCHANTING GB LTD
Oxford City Council,Direct Services,Direct Services Supplies & Services,D3311,01/03/2016,60051741_0,650.63,Revenue,20002254,GRAFTON MERCHANTING GB LTD
Oxford City Council,Direct Services,Direct Services Supplies & Services,D3311,01/03/2016,60051744_0,510.23,Revenue,20002254,GRAFTON MERCHANTING GB LTD
Oxford City Council,Direct Services,Direct Services Supplies & Services,D3311,01/03/2016,60051745_1,524.78,Revenue,20002254,GRAFTON MERCHANTING GB LTD
Oxford City Council,Direct Services,Direct Services Supplies & Services,D3311,01/03/2016,60051746_0,679.01,Revenue,20002254,GRAFTON MERCHANTING GB LTD
Oxford City Council,Direct Services,Materials,D3021,01/03/2016,60051853_0,3389.79,Revenue,20002254,GRAFTON MERCHANTING GB LTD
Oxford City Council,Direct Services,Direct Services Supplies & Services,D3311,01/03/2016,60051857_0,618.86,Revenue,20002254,GRAFTON MERCHANTING GB LTD
Oxford City Council,Direct Services,Direct Services Supplies & Services,D3311,01/03/2016,60051858_1,613.44,Revenue,20002254,GRAFTON MERCHANTING GB LTD
Oxford City Council,Direct Services,Materials,D3021,08/03/2016,60051926_1,1107.20,Revenue,20002254,GRAFTON MERCHANTING GB LTD
Oxford City Council,Direct Services,Direct Services Supplies & Services,D3311,08/03/2016,60051934_1,583.16,Revenue,20002254,GRAFTON MERCHANTING GB LTD
Oxford City Council,Direct Services,Direct Services Supplies & Services,D3311,08/03/2016,60051935_0,1202.90,Revenue,20002254,GRAFTON MERCHANTING GB LTD
Oxford City Council,Direct Services,Materials,D3021,08/03/2016,60051937_0,4496.39,Revenue,20002254,GRAFTON MERCHANTING GB LTD
Oxford City Council,Direct Services,Direct Services Supplies & Services,D3311,08/03/2016,60051939_0,558.18,Revenue,20002254,GRAFTON MERCHANTING GB LTD
Oxford City Council,Direct Services,Direct Services Supplies & Services,D3311,08/03/2016,60051940_1,612.65,Revenue,20002254,GRAFTON MERCHANTING GB LTD
Oxford City Council,Direct Services,Direct Services Supplies & Services,D3311,08/03/2016,60051941_0,612.65,Revenue,20002254,GRAFTON MERCHANTING GB LTD
Oxford City Council,Direct Services,Materials,D3021,08/03/2016,60051943_0,1307.92,Revenue,20002254,GRAFTON MERCHANTING GB LTD
Oxford City Council,Direct Services,Direct Services Supplies & Services,D3311,08/03/2016,60051984_1,1034.39,Revenue,20002254,GRAFTON MERCHANTING GB LTD
Oxford City Council,Direct Services,Direct Services Supplies & Services,D3311,08/03/2016,60051989_0,1011.00,Revenue,20002254,GRAFTON MERCHANTING GB LTD
Oxford City Council,Direct Services,Direct Services Supplies & Services,D3311,08/03/2016,60051992_1,933.36,Revenue,20002254,GRAFTON MERCHANTING GB LTD
Oxford City Council,Direct Services,Materials,D3021,08/03/2016,60051995_0,4091.38,Revenue,20002254,GRAFTON MERCHANTING GB LTD
Oxford City Council,Direct Services,Materials,D3021,08/03/2016,60052052_1,5999.11,Revenue,20002254,GRAFTON MERCHANTING GB LTD
Oxford City Council,Direct Services,Materials,D3021,08/03/2016,60052053_0,1402.82,Revenue,20002254,GRAFTON MERCHANTING GB LTD
Oxford City Council,Direct Services,Materials,D3021,08/03/2016,60052054_1,1708.60,Revenue,20002254,GRAFTON MERCHANTING GB LTD
Oxford City Council,Direct Services,Direct Services Supplies & Services,D3311,08/03/2016,60052056_1,589.37,Revenue,20002254,GRAFTON MERCHANTING GB LTD
Oxford City Council,Direct Services,Direct Services Supplies & Services,D3311,08/03/2016,60052057_0,514.27,Revenue,20002254,GRAFTON MERCHANTING GB LTD
Oxford City Council,Direct Services,Direct Services Supplies & Services,D3311,08/03/2016,60052058_1,514.27,Revenue,20002254,GRAFTON MERCHANTING GB LTD
Oxford City Council,Direct Services,Direct Services Supplies & Services,D3311,08/03/2016,60052059_0,618.86,Revenue,20002254,GRAFTON MERCHANTING GB LTD
Oxford City Council,Direct Services,Direct Services Supplies & Services,D3311,08/03/2016,60052060_1,612.19,Revenue,20002254,GRAFTON MERCHANTING GB LTD
Oxford City Council,Direct Services,Materials,D3021,15/03/2016,60052315_0,620.22,Revenue,20002254,GRAFTON MERCHANTING GB LTD
Oxford City Council,Direct Services,Materials,D3021,15/03/2016,60052318_1,2476.40,Revenue,20002254,GRAFTON MERCHANTING GB LTD
Oxford City Council,Direct Services,Direct Services Supplies & Services,D3311,15/03/2016,60052323_0,1268.68,Revenue,20002254,GRAFTON MERCHANTING GB LTD
Oxford City Council,Direct Services,Direct Services Supplies & Services,D3311,15/03/2016,60052324_1,942.80,Revenue,20002254,GRAFTON MERCHANTING GB LTD
Oxford City Council,Direct Services,Direct Services Supplies & Services,D3311,15/03/2016,60052325_0,647.23,Revenue,20002254,GRAFTON MERCHANTING GB LTD
Oxford City Council,Direct Services,Direct Services Supplies & Services,D3311,15/03/2016,60052326_1,555.55,Revenue,20002254,GRAFTON MERCHANTING GB LTD
Oxford City Council,Direct Services,Direct Services Supplies & Services,D3311,15/03/2016,60052327_0,618.86,Revenue,20002254,GRAFTON MERCHANTING GB LTD
Oxford City Council,Direct Services,Direct Services Supplies & Services,D3311,15/03/2016,60052328_0,506.69,Revenue,20002254,GRAFTON MERCHANTING GB LTD
Oxford City Council,Direct Services,Direct Services Supplies & Services,D3311,15/03/2016,60052329_1,514.27,Revenue,20002254,GRAFTON MERCHANTING GB LTD
Oxford City Council,Direct Services,Direct Services Supplies & Services,D3311,15/03/2016,60052330_0,624.45,Revenue,20002254,GRAFTON MERCHANTING GB LTD
Oxford City Council,Direct Services,Direct Services Supplies & Services,D3311,15/03/2016,60052334_0,604.01,Revenue,20002254,GRAFTON MERCHANTING GB LTD
Oxford City Council,Direct Services,Direct Services Supplies & Services,D3311,15/03/2016,60052338_1,513.10,Revenue,20002254,GRAFTON MERCHANTING GB LTD
Oxford City Council,Direct Services,Direct Services Supplies & Services,D3311,15/03/2016,60052340_1,585.07,Revenue,20002254,GRAFTON MERCHANTING GB LTD
Oxford City Council,Direct Services,Direct Services Supplies & Services,D3311,15/03/2016,60052341_0,620.78,Revenue,20002254,GRAFTON MERCHANTING GB LTD
Oxford City Council,Direct Services,Direct Services Supplies & Services,D3311,15/03/2016,60052343_0,543.38,Revenue,20002254,GRAFTON MERCHANTING GB LTD
Oxford City Council,Direct Services,Materials,D3021,15/03/2016,60052349_0,1468.56,Revenue,20002254,GRAFTON MERCHANTING GB LTD
Oxford City Council,Direct Services,Materials,D3021,15/03/2016,60052350_1,557.28,Revenue,20002254,GRAFTON MERCHANTING GB LTD
Oxford City Council,Direct Services,Materials,D3021,15/03/2016,60052351_0,579.95,Revenue,20002254,GRAFTON MERCHANTING GB LTD
Oxford City Council,Direct Services,Materials,D3021,15/03/2016,60052354_1,809.05,Revenue,20002254,GRAFTON MERCHANTING GB LTD
Oxford City Council,Direct Services,Materials,D3021,15/03/2016,60052356_1,1719.65,Revenue,20002254,GRAFTON MERCHANTING GB LTD
Oxford City Council,Direct Services,Materials,D3021,15/03/2016,60052357_0,1397.50,Revenue,20002254,GRAFTON MERCHANTING GB LTD
Oxford City Council,Direct Services,Direct Services Supplies & Services,D3311,15/03/2016,60052398_1,542.95,Revenue,20002254,GRAFTON MERCHANTING GB LTD
Oxford City Council,Direct Services,Direct Services Supplies & Services,D3311,15/03/2016,60052402_1,527.78,Revenue,20002254,GRAFTON MERCHANTING GB LTD
Oxford City Council,Direct Services,Materials,D3021,15/03/2016,60052404_1,1867.94,Revenue,20002254,GRAFTON MERCHANTING GB LTD
Oxford City Council,Direct Services,Direct Services Supplies & Services,D3311,15/03/2016,60052406_1,972.02,Revenue,20002254,GRAFTON MERCHANTING GB LTD
Oxford City Council,Direct Services,Materials,D3021,15/03/2016,60052440_0,5961.30,Revenue,20002254,GRAFTON MERCHANTING GB LTD
Oxford City Council,Direct Services,Direct Services Supplies & Services,D3311,15/03/2016,60052441_1,610.27,Revenue,20002254,GRAFTON MERCHANTING GB LTD
Oxford City Council,Direct Services,Materials,D3021,15/03/2016,60052442_0,904.18,Revenue,20002254,GRAFTON MERCHANTING GB LTD
Oxford City Council,Direct Services,Materials,D3021,15/03/2016,60052472_1,5300.95,Revenue,20002254,GRAFTON MERCHANTING GB LTD
Oxford City Council,Direct Services,Direct Services Supplies & Services,D3311,15/03/2016,60052474_0,795.50,Revenue,20002254,GRAFTON MERCHANTING GB LTD
Oxford City Council,Direct Services,Direct Services Supplies & Services,D3311,15/03/2016,60052475_1,612.65,Revenue,20002254,GRAFTON MERCHANTING GB LTD
Oxford City Council,Direct Services,Direct Services Supplies & Services,D3311,15/03/2016,60052476_0,520.48,Revenue,20002254,GRAFTON MERCHANTING GB LTD
Oxford City Council,Direct Services,Direct Services Supplies & Services,D3311,15/03/2016,60052477_1,583.16,Revenue,20002254,GRAFTON MERCHANTING GB LTD
Oxford City Council,Direct Services,Direct Services Supplies & Services,D3311,15/03/2016,60052478_0,589.37,Revenue,20002254,GRAFTON MERCHANTING GB LTD
Oxford City Council,Direct Services,Materials,D3021,15/03/2016,60052538_1,716.06,Revenue,20002254,GRAFTON MERCHANTING GB LTD
Oxford City Council,Direct Services,Direct Services Supplies & Services,D3311,15/03/2016,60052540_1,652.08,Revenue,20002254,GRAFTON MERCHANTING GB LTD
Oxford City Council,Direct Services,Direct Services Supplies & Services,D3311,15/03/2016,60052541_0,549.37,Revenue,20002254,GRAFTON MERCHANTING GB LTD
Oxford City Council,Direct Services,Direct Services Supplies & Services,D3311,22/03/2016,60052692_1,727.30,Revenue,20002254,GRAFTON MERCHANTING GB LTD
Oxford City Council,Direct Services,Direct Services Supplies & Services,D3311,22/03/2016,60052698_1,803.46,Revenue,20002254,GRAFTON MERCHANTING GB LTD
Oxford City Council,Direct Services,Direct Services Supplies & Services,D3311,22/03/2016,60052700_1,522.13,Revenue,20002254,GRAFTON MERCHANTING GB LTD
Oxford City Council,Direct Services,Direct Services Supplies & Services,D3311,22/03/2016,60052701_0,614.04,Revenue,20002254,GRAFTON MERCHANTING GB LTD
Oxford City Council,Direct Services,Direct Services Supplies & Services,D3311,22/03/2016,60052702_1,618.86,Revenue,20002254,GRAFTON MERCHANTING GB LTD
Oxford City Council,Direct Services,Direct Services Supplies & Services,D3311,22/03/2016,60052703_0,612.65,Revenue,20002254,GRAFTON MERCHANTING GB LTD
Oxford City Council,Direct Services,Direct Services Supplies & Services,D3311,22/03/2016,60052704_1,612.65,Revenue,20002254,GRAFTON MERCHANTING GB LTD
Oxford City Council,Direct Services,Direct Services Supplies & Services,D3311,22/03/2016,60052705_0,540.37,Revenue,20002254,GRAFTON MERCHANTING GB LTD
Oxford City Council,Direct Services,Materials,D3021,22/03/2016,60052707_0,2471.29,Revenue,20002254,GRAFTON MERCHANTING GB LTD
Oxford City Council,Direct Services,Materials,D3021,22/03/2016,60052709_0,3688.36,Revenue,20002254,GRAFTON MERCHANTING GB LTD
Oxford City Council,Direct Services,Materials,D3021,22/03/2016,60052714_1,1128.75,Revenue,20002254,GRAFTON MERCHANTING GB LTD
Oxford City Council,Direct Services,Materials,D3021,22/03/2016,60052715_0,639.20,Revenue,20002254,GRAFTON MERCHANTING GB LTD
Oxford City Council,Direct Services,Materials,D3021,22/03/2016,60052716_1,1128.75,Revenue,20002254,GRAFTON MERCHANTING GB LTD
Oxford City Council,Direct Services,Direct Services Supplies & Services,D3311,22/03/2016,60052719_0,571.03,Revenue,20002254,GRAFTON MERCHANTING GB LTD
Oxford City Council,Direct Services,Direct Services Supplies & Services,D3311,22/03/2016,60052720_1,539.37,Revenue,20002254,GRAFTON MERCHANTING GB LTD
Oxford City Council,Direct Services,Direct Services Supplies & Services,D3311,22/03/2016,60052721_0,531.50,Revenue,20002254,GRAFTON MERCHANTING GB LTD
Oxford City Council,Direct Services,Direct Services Supplies & Services,D3311,22/03/2016,60052723_0,712.07,Revenue,20002254,GRAFTON MERCHANTING GB LTD
Oxford City Council,Direct Services,Direct Services Supplies & Services,D3311,22/03/2016,60052724_1,602.20,Revenue,20002254,GRAFTON MERCHANTING GB LTD
Oxford City Council,Direct Services,Direct Services Supplies & Services,D3311,22/03/2016,60052726_1,652.33,Revenue,20002254,GRAFTON MERCHANTING GB LTD
Oxford City Council,Direct Services,Direct Services Supplies & Services,D3311,22/03/2016,60052728_1,624.20,Revenue,20002254,GRAFTON MERCHANTING GB LTD
Oxford City Council,Direct Services,Materials,D3021,22/03/2016,60052731_0,518.28,Revenue,20002254,GRAFTON MERCHANTING GB LTD
Oxford City Council,Direct Services,Materials,D3021,22/03/2016,60052734_1,990.72,Revenue,20002254,GRAFTON MERCHANTING GB LTD
Oxford City Council,Direct Services,Materials,D3021,22/03/2016,60052873_0,3174.84,Revenue,20002254,GRAFTON MERCHANTING GB LTD
Oxford City Council,Direct Services,Direct Services Supplies & Services,D3311,22/03/2016,60052983_0,612.65,Revenue,20002254,GRAFTON MERCHANTING GB LTD
Oxford City Council,Direct Services,Direct Services Supplies & Services,D3311,22/03/2016,60052984_1,558.07,Revenue,20002254,GRAFTON MERCHANTING GB LTD
Oxford City Council,Direct Services,Direct Services Supplies & Services,D3311,22/03/2016,60052985_0,612.65,Revenue,20002254,GRAFTON MERCHANTING GB LTD
Oxford City Council,Direct Services,Direct Services Supplies & Services,D3311,22/03/2016,60052986_1,722.98,Revenue,20002254,GRAFTON MERCHANTING GB LTD
Oxford City Council,Direct Services,Direct Services Supplies & Services,D3311,22/03/2016,60052987_0,667.02,Revenue,20002254,GRAFTON MERCHANTING GB LTD
Oxford City Council,Direct Services,Direct Services Supplies & Services,D3311,22/03/2016,60052988_1,711.89,Revenue,20002254,GRAFTON MERCHANTING GB LTD
Oxford City Council,Direct Services,Direct Services Supplies & Services,D3311,22/03/2016,60052989_0,868.79,Revenue,20002254,GRAFTON MERCHANTING GB LTD
Oxford City Council,Direct Services,Direct Services Supplies & Services,D3311,22/03/2016,60052990_1,618.86,Revenue,20002254,GRAFTON MERCHANTING GB LTD
Oxford City Council,Direct Services,Materials,D3021,22/03/2016,60052995_0,3218.80,Revenue,20002254,GRAFTON MERCHANTING GB LTD
Oxford City Council,Direct Services,Materials,D3021,29/03/2016,60053127_1,637.67,Revenue,20002254,GRAFTON MERCHANTING GB LTD
Oxford City Council,Direct Services,Materials,D3021,29/03/2016,60053128_0,1010.56,Revenue,20002254,GRAFTON MERCHANTING GB LTD
Oxford City Council,Direct Services,Direct Services Supplies & Services,D3311,29/03/2016,60053131_1,579.95,Revenue,20002254,GRAFTON MERCHANTING GB LTD
Oxford City Council,Direct Services,Direct Services Supplies & Services,D3311,29/03/2016,60053132_0,633.66,Revenue,20002254,GRAFTON MERCHANTING GB LTD
Oxford City Council,Direct Services,Materials,D3021,29/03/2016,60053133_1,521.60,Revenue,20002254,GRAFTON MERCHANTING GB LTD
Oxford City Council,Direct Services,Materials,D3021,29/03/2016,60053135_1,1027.64,Revenue,20002254,GRAFTON MERCHANTING GB LTD
Oxford City Council,Direct Services,Materials,D3021,29/03/2016,60053137_1,3541.24,Revenue,20002254,GRAFTON MERCHANTING GB LTD
Oxford City Council,Direct Services,Direct Services Supplies & Services,D3311,29/03/2016,60053138_0,523.07,Revenue,20002254,GRAFTON MERCHANTING GB LTD
Oxford City Council,Direct Services,Direct Services Supplies & Services,D3311,29/03/2016,60053139_1,639.10,Revenue,20002254,GRAFTON MERCHANTING GB LTD
Oxford City Council,Direct Services,Direct Services Supplies & Services,D3311,29/03/2016,60053140_0,683.08,Revenue,20002254,GRAFTON MERCHANTING GB LTD
Oxford City Council,Direct Services,Direct Services Supplies & Services,D3311,29/03/2016,60053141_1,612.65,Revenue,20002254,GRAFTON MERCHANTING GB LTD
Oxford City Council,Direct Services,Direct Services Supplies & Services,D3311,29/03/2016,60053142_0,618.86,Revenue,20002254,GRAFTON MERCHANTING GB LTD
Oxford City Council,Direct Services,Direct Services Supplies & Services,D3311,29/03/2016,60053143_1,618.86,Revenue,20002254,GRAFTON MERCHANTING GB LTD
Oxford City Council,Direct Services,Direct Services Supplies & Services,D3311,29/03/2016,60053146_0,574.52,Revenue,20002254,GRAFTON MERCHANTING GB LTD
Oxford City Council,Direct Services,Materials,D3021,29/03/2016,60053148_0,5959.20,Revenue,20002254,GRAFTON MERCHANTING GB LTD
Oxford City Council,Direct Services,Direct Services Supplies & Services,D3311,29/03/2016,60053149_1,2680.00,Revenue,20002254,GRAFTON MERCHANTING GB LTD
Oxford City Council,Direct Services,Direct Services Supplies & Services,D3311,29/03/2016,60053150_0,1883.88,Revenue,20002254,GRAFTON MERCHANTING GB LTD
Oxford City Council,Direct Services,Direct Services Supplies & Services,D3311,29/03/2016,60053151_1,543.76,Revenue,20002254,GRAFTON MERCHANTING GB LTD
Oxford City Council,Direct Services,Materials,D3021,29/03/2016,60053153_1,626.74,Revenue,20002254,GRAFTON MERCHANTING GB LTD
Oxford City Council,Direct Services,Materials,D3021,29/03/2016,60053154_0,758.27,Revenue,20002254,GRAFTON MERCHANTING GB LTD
Oxford City Council,Direct Services,Materials,D3021,29/03/2016,60053160_0,646.66,Revenue,20002254,GRAFTON MERCHANTING GB LTD
Oxford City Council,Direct Services,Materials,D3021,29/03/2016,60053235_0,596.36,Revenue,20002254,GRAFTON MERCHANTING GB LTD
Oxford City Council,Direct Services,Materials,D3021,29/03/2016,60053237_0,1697.95,Revenue,20002254,GRAFTON MERCHANTING GB LTD
Oxford City Council,Direct Services,Materials,D3021,29/03/2016,60053242_1,716.50,Revenue,20002254,GRAFTON MERCHANTING GB LTD
Oxford City Council,Direct Services,Direct Services Supplies & Services,D3311,29/03/2016,60053244_1,647.75,Revenue,20002254,GRAFTON MERCHANTING GB LTD
Oxford City Council,Direct Services,Direct Services Supplies & Services,D3311,29/03/2016,60053246_1,549.97,Revenue,20002254,GRAFTON MERCHANTING GB LTD
Oxford City Council,Direct Services,Materials,D3021,08/03/2016,60051884_2,780.40,Revenue,20002278,MF HYDRAULICS LTD
Oxford City Council,Direct Services,Waste Disposal & Skip Hire,D3420,01/03/2016,1026209_0,2330.60,Revenue,20002279,M & M SKIP HIRE LTD
Oxford City Council,Direct Services,Waste Disposal & Skip Hire,D3420,15/03/2016,1026470_0,544.80,Revenue,20002279,M & M SKIP HIRE LTD
Oxford City Council,Direct Services,Furniture & Equipment Purchase,D3001,23/02/2016,1026019_0,500.00,Revenue,20002296,METRIC GROUP LIMITED
Oxford City Council,Direct Services,Materials,D3021,12/01/2016,60048669_1,971.56,Revenue,20002299,C BREWER & SONS LTD
Oxford City Council,Direct Services,Materials,D3021,26/01/2016,60049487_2,533.04,Revenue,20002299,C BREWER & SONS LTD
Oxford City Council,Direct Services,Materials,D3021,26/01/2016,60049488_0,777.74,Revenue,20002299,C BREWER & SONS LTD
Oxford City Council,Direct Services,Materials,D3021,16/02/2016,60050771_2,939.40,Revenue,20002299,C BREWER & SONS LTD
Oxford City Council,Direct Services,Materials,D3021,01/03/2016,60051670_1,992.21,Revenue,20002299,C BREWER & SONS LTD
Oxford City Council,Direct Services,Materials,D3021,08/03/2016,60051921_0,566.24,Revenue,20002299,C BREWER & SONS LTD
Oxford City Council,Direct Services,Materials,D3021,08/03/2016,60051922_1,680.80,Revenue,20002299,C BREWER & SONS LTD
Oxford City Council,Direct Services,Materials,D3021,15/03/2016,60052548_1,2545.00,Revenue,20002299,C BREWER & SONS LTD
Oxford City Council,Direct Services,Materials,D3021,29/03/2016,60053122_0,646.36,Revenue,20002299,C BREWER & SONS LTD
Oxford City Council,Direct Services,Materials,D3021,29/03/2016,60053126_0,622.72,Revenue,20002299,C BREWER & SONS LTD
Oxford City Council,Business Improvement,Hardware Purchase,D3520,29/03/2016,1026655_0,6940.00,Revenue,20002302,MISCO
Oxford City Council,Community Services,Grants,D3701,01/03/2016,1025768_0,3000.00,Revenue,20002331,OXFORD BROOKES UNIVERSITY
Oxford City Council,Assistant Chief Executive,General Contracted Services,D3401,29/01/2016,1024986_1,1600.00,Revenue,20002333,ACTIVATE LEARNING
Oxford City Council,Community Services,Grants,D3701,16/02/2016,1025499_1,504.17,Revenue,20002333,ACTIVATE LEARNING
Oxford City Council,Direct Services,Materials,D3021,01/03/2016,60051494_1,654.40,Revenue,20002335,OXFORD FENCING SUPPLIES
Oxford City Council,Direct Services,Sign Shop Materials,D3018,09/02/2016,60050397_0,581.35,Revenue,20002347,REXEL UK LIMITED
Oxford City Council,Direct Services,Sign Shop Materials,D3018,09/02/2016,60050397_1,821.22,Revenue,20002347,REXEL UK LIMITED
Oxford City Council,Direct Services,Tools,D3023,01/03/2016,60051501_0,701.30,Revenue,20002347,REXEL UK LIMITED
Oxford City Council,Direct Services,Services Maintenance (Planned),B1103,19/01/2016,1024866_1,8069.51,Revenue,20002351,PHS GROUP PLC
Oxford City Council,Direct Services,Services Maintenance (Planned),B1103,26/01/2016,1025080_1,1773.22,Revenue,20002351,PHS GROUP PLC
Oxford City Council,Direct Services,Services Maintenance (Planned),B1103,26/01/2016,1025173_1,690.00,Revenue,20002351,PHS GROUP PLC
Oxford City Council,Direct Services,Services Maintenance (Planned),B1103,01/03/2016,1026151_1,509.28,Revenue,20002351,PHS GROUP PLC
Oxford City Council,Housing and Property,Consultants Fees,D3411,26/01/2016,1025122_1,7975.00,Revenue,20002369,RIDGE & PARTNERS LLP
Oxford City Council,Direct Services,Materials,D3021,12/01/2016,47983179_0,609.96,Revenue,20002387,AEBI SCHMIDT UK LTD
Oxford City Council,Direct Services,Materials,D3021,12/01/2016,47983179_1,10.00,Revenue,20002387,AEBI SCHMIDT UK LTD
Oxford City Council,Direct Services,Materials,D3021,19/01/2016,47983311_0,463.45,Revenue,20002387,AEBI SCHMIDT UK LTD
Oxford City Council,Direct Services,Materials,D3021,19/01/2016,47983311_1,98.33,Revenue,20002387,AEBI SCHMIDT UK LTD
Oxford City Council,Direct Services,Materials,D3021,19/01/2016,47983311_2,10.00,Revenue,20002387,AEBI SCHMIDT UK LTD
Oxford City Council,Direct Services,Main Contractor,Y021,19/01/2016,47983348_0,105569.00,Capital,20002387,AEBI SCHMIDT UK LTD
Oxford City Council,Direct Services,Main Contractor,Y021,19/01/2016,47983348_1,600.00,Capital,20002387,AEBI SCHMIDT UK LTD
Oxford City Council,Direct Services,Materials,D3021,01/03/2016,47984057_0,565.98,Revenue,20002387,AEBI SCHMIDT UK LTD
Oxford City Council,Direct Services,Materials,D3021,01/03/2016,47984057_1,29.75,Revenue,20002387,AEBI SCHMIDT UK LTD
Oxford City Council,Direct Services,Materials,D3021,01/03/2016,47984057_2,10.00,Revenue,20002387,AEBI SCHMIDT UK LTD
Oxford City Council,Direct Services,Materials,D3021,15/03/2016,47984263_0,866.36,Revenue,20002387,AEBI SCHMIDT UK LTD
Oxford City Council,Direct Services,Materials,D3021,29/01/2016,60049960_1,940.00,Revenue,20002395,SMITH & LOW LTD.
Oxford City Council,Direct Services,Materials,D3021,15/03/2016,60052277_1,564.00,Revenue,20002395,SMITH & LOW LTD.
Oxford City Council,Direct Services,Materials,D3021,15/03/2016,60052566_1,1128.00,Revenue,20002395,SMITH & LOW LTD.
Oxford City Council,Direct Services,Materials,D3021,15/03/2016,60052567_0,564.00,Revenue,20002395,SMITH & LOW LTD.
Oxford City Council,Direct Services,Materials,D3021,22/03/2016,60052969_0,940.00,Revenue,20002395,SMITH & LOW LTD.
Oxford City Council,HRA,Electricity,B1501,12/01/2016,1024802_1,3800.44,Revenue,20002402,SOUTHERN ELECTRIC PLC
Oxford City Council,Direct Services,Electricity,B1501,12/01/2016,1024804_1,1146.38,Revenue,20002402,SOUTHERN ELECTRIC PLC
Oxford City Council,HRA,Electricity,B1501,12/01/2016,46288363_1,456.92,Revenue,20002402,SOUTHERN ELECTRIC PLC
Oxford City Council,HRA,Electricity,B1501,12/01/2016,46288363_2,80.66,Revenue,20002402,SOUTHERN ELECTRIC PLC
Oxford City Council,HRA,Electricity,B1501,12/01/2016,46288363_3,125.03,Revenue,20002402,SOUTHERN ELECTRIC PLC
Oxford City Council,HRA,Electricity,B1501,12/01/2016,46288363_4,853.95,Revenue,20002402,SOUTHERN ELECTRIC PLC
Oxford City Council,HRA,Electricity,B1501,12/01/2016,46288363_5,12.82,Revenue,20002402,SOUTHERN ELECTRIC PLC
Oxford City Council,HRA,Electricity,B1501,01/03/2016,46288865_1,1091.70,Revenue,20002402,SOUTHERN ELECTRIC PLC
Oxford City Council,HRA,Electricity,B1501,01/03/2016,46288866_1,1081.11,Revenue,20002402,SOUTHERN ELECTRIC PLC
Oxford City Council,Direct Services,Electricity,B1501,19/01/2016,47012239_0,565.85,Revenue,20002402,SOUTHERN ELECTRIC PLC
Oxford City Council,Direct Services,Electricity,B1501,26/01/2016,47012253_0,697.57,Revenue,20002402,SOUTHERN ELECTRIC PLC
Oxford City Council,Direct Services,Electricity,B1501,26/01/2016,47012254_0,1113.09,Revenue,20002402,SOUTHERN ELECTRIC PLC
Oxford City Council,Direct Services,Electricity,B1501,26/01/2016,47012256_0,1016.52,Revenue,20002402,SOUTHERN ELECTRIC PLC
Oxford City Council,HRA,Electricity,B1501,26/01/2016,47012259_0,3800.44,Revenue,20002402,SOUTHERN ELECTRIC PLC
Oxford City Council,Direct Services,Electricity,B1501,29/01/2016,47012310_0,1343.28,Revenue,20002402,SOUTHERN ELECTRIC PLC
Oxford City Council,HRA,Gas,B1502,29/01/2016,47012348_0,581.66,Revenue,20002402,SOUTHERN ELECTRIC PLC
Oxford City Council,HRA,Electricity,B1501,29/01/2016,47012353_1,674.97,Revenue,20002402,SOUTHERN ELECTRIC PLC
Oxford City Council,Community Services,Electricity,B1501,29/01/2016,47012362_0,1295.78,Revenue,20002402,SOUTHERN ELECTRIC PLC
Oxford City Council,Community Services,Electricity,B1501,29/01/2016,47012363_1,930.34,Revenue,20002402,SOUTHERN ELECTRIC PLC
Oxford City Council,Housing and Property,Electricity,B1501,29/01/2016,47012365_1,793.54,Revenue,20002402,SOUTHERN ELECTRIC PLC
Oxford City Council,Housing and Property,Electricity,B1501,29/01/2016,47012409_1,976.73,Revenue,20002402,SOUTHERN ELECTRIC PLC
Oxford City Council,Direct Services,Electricity,B1501,29/01/2016,47012433_1,633.07,Revenue,20002402,SOUTHERN ELECTRIC PLC
Oxford City Council,Direct Services,Electricity,B1501,29/01/2016,47012436_0,761.38,Revenue,20002402,SOUTHERN ELECTRIC PLC
Oxford City Council,Direct Services,Electricity,B1501,16/02/2016,47012499_0,783.05,Revenue,20002402,SOUTHERN ELECTRIC PLC
Oxford City Council,HRA,Electricity,B1501,16/02/2016,47012663_0,991.99,Revenue,20002402,SOUTHERN ELECTRIC PLC
Oxford City Council,HRA,Electricity,B1501,16/02/2016,47012665_0,1146.86,Revenue,20002402,SOUTHERN ELECTRIC PLC
Oxford City Council,HRA,Electricity,B1501,16/02/2016,47012691_0,672.94,Revenue,20002402,SOUTHERN ELECTRIC PLC
Oxford City Council,HRA,Electricity,B1501,16/02/2016,47012709_0,1068.57,Revenue,20002402,SOUTHERN ELECTRIC PLC
Oxford City Council,HRA,Electricity,B1501,16/02/2016,47012753_0,955.98,Revenue,20002402,SOUTHERN ELECTRIC PLC
Oxford City Council,HRA,Electricity,B1501,16/02/2016,47012818_1,1245.71,Revenue,20002402,SOUTHERN ELECTRIC PLC
Oxford City Council,HRA,Electricity,B1501,16/02/2016,47012825_0,611.93,Revenue,20002402,SOUTHERN ELECTRIC PLC
Oxford City Council,HRA,Electricity,B1501,16/02/2016,47012826_1,730.05,Revenue,20002402,SOUTHERN ELECTRIC PLC
Oxford City Council,HRA,Electricity,B1501,16/02/2016,47012827_0,1305.13,Revenue,20002402,SOUTHERN ELECTRIC PLC
Oxford City Council,HRA,Electricity,B1501,16/02/2016,47012843_1,836.13,Revenue,20002402,SOUTHERN ELECTRIC PLC
Oxford City Council,Housing and Property,Electricity,B1501,16/02/2016,47012848_0,1125.95,Revenue,20002402,SOUTHERN ELECTRIC PLC
Oxford City Council,HRA,Electricity,B1501,16/02/2016,47012880_0,1494.52,Revenue,20002402,SOUTHERN ELECTRIC PLC
Oxford City Council,HRA,Electricity,B1501,16/02/2016,47012885_1,924.90,Revenue,20002402,SOUTHERN ELECTRIC PLC
Oxford City Council,HRA,Electricity,B1501,16/02/2016,47012898_0,981.25,Revenue,20002402,SOUTHERN ELECTRIC PLC
Oxford City Council,HRA,Electricity,B1501,16/02/2016,47012931_0,601.45,Revenue,20002402,SOUTHERN ELECTRIC PLC
Oxford City Council,HRA,Electricity,B1501,16/02/2016,47012948_1,689.32,Revenue,20002402,SOUTHERN ELECTRIC PLC
Oxford City Council,HRA,Electricity,B1501,16/02/2016,47012988_1,1510.69,Revenue,20002402,SOUTHERN ELECTRIC PLC
Oxford City Council,Direct Services,Electricity,B1501,23/02/2016,47013105_1,1106.95,Revenue,20002402,SOUTHERN ELECTRIC PLC
Oxford City Council,Direct Services,Electricity,B1501,23/02/2016,47013112_1,539.35,Revenue,20002402,SOUTHERN ELECTRIC PLC
Oxford City Council,Housing and Property,Electricity,B1501,23/02/2016,47013115_2,1423.43,Revenue,20002402,SOUTHERN ELECTRIC PLC
Oxford City Council,Direct Services,Electricity,B1501,23/02/2016,47013117_0,3124.41,Revenue,20002402,SOUTHERN ELECTRIC PLC
Oxford City Council,Community Services,Electricity,B1501,23/02/2016,47013122_1,3951.64,Revenue,20002402,SOUTHERN ELECTRIC PLC
Oxford City Council,Direct Services,Electricity,B1501,23/02/2016,47013123_0,662.34,Revenue,20002402,SOUTHERN ELECTRIC PLC
Oxford City Council,Direct Services,Electricity,B1501,23/02/2016,47013127_0,522.82,Revenue,20002402,SOUTHERN ELECTRIC PLC
Oxford City Council,Direct Services,Electricity,B1501,23/02/2016,47013133_0,577.79,Revenue,20002402,SOUTHERN ELECTRIC PLC
Oxford City Council,Direct Services,Electricity,B1501,23/02/2016,47013144_0,700.67,Revenue,20002402,SOUTHERN ELECTRIC PLC
Oxford City Council,HRA,Electricity,B1501,23/02/2016,47013159_1,560.34,Revenue,20002402,SOUTHERN ELECTRIC PLC
Oxford City Council,Direct Services,Electricity,B1501,23/02/2016,47013161_0,2043.67,Revenue,20002402,SOUTHERN ELECTRIC PLC
Oxford City Council,Housing and Property,Electricity,B1501,23/02/2016,47013163_0,890.38,Revenue,20002402,SOUTHERN ELECTRIC PLC
Oxford City Council,Direct Services,Electricity,B1501,23/02/2016,47013164_1,1042.37,Revenue,20002402,SOUTHERN ELECTRIC PLC
Oxford City Council,Direct Services,Electricity,B1501,23/02/2016,47013165_0,1157.59,Revenue,20002402,SOUTHERN ELECTRIC PLC
Oxford City Council,Direct Services,Electricity,B1501,23/02/2016,47013167_0,855.07,Revenue,20002402,SOUTHERN ELECTRIC PLC
Oxford City Council,Direct Services,Electricity,B1501,23/02/2016,47013173_0,862.98,Revenue,20002402,SOUTHERN ELECTRIC PLC
Oxford City Council,HRA,Electricity,B1501,01/03/2016,47013264_1,788.34,Revenue,20002402,SOUTHERN ELECTRIC PLC
Oxford City Council,HRA,Electricity,B1501,01/03/2016,47013311_0,1288.78,Revenue,20002402,SOUTHERN ELECTRIC PLC
Oxford City Council,HRA,Electricity,B1501,01/03/2016,47013370_0,574.40,Revenue,20002402,SOUTHERN ELECTRIC PLC
Oxford City Council,Direct Services,Electricity,B1501,15/03/2016,47013481_0,1146.38,Revenue,20002402,SOUTHERN ELECTRIC PLC
Oxford City Council,Community Services,Electricity,B1501,15/03/2016,47013517_1,2433.45,Revenue,20002402,SOUTHERN ELECTRIC PLC
Oxford City Council,Community Services,Electricity,B1501,15/03/2016,47013518_0,1039.85,Revenue,20002402,SOUTHERN ELECTRIC PLC
Oxford City Council,Community Services,Electricity,B1501,15/03/2016,47013519_1,803.94,Revenue,20002402,SOUTHERN ELECTRIC PLC
Oxford City Council,Direct Services,Electricity,B1501,15/03/2016,47013522_0,796.99,Revenue,20002402,SOUTHERN ELECTRIC PLC
Oxford City Council,Housing and Property,Electricity,B1501,22/03/2016,47013640_0,853.61,Revenue,20002402,SOUTHERN ELECTRIC PLC
Oxford City Council,HRA,Gas,B1502,29/03/2016,47013643_1,637.75,Revenue,20002402,SOUTHERN ELECTRIC PLC
Oxford City Council,HRA,Electricity,B1501,29/03/2016,47013692_0,1514.40,Revenue,20002402,SOUTHERN ELECTRIC PLC
Oxford City Council,Direct Services,Electricity,B1501,29/03/2016,47013697_1,1016.52,Revenue,20002402,SOUTHERN ELECTRIC PLC
Oxford City Council,Housing and Property,Water & Sewerage Charges,B1830,12/01/2016,1023354_1,7721.31,Revenue,20002423,THAMES WATER UTILITIES LTD
Oxford City Council,Housing and Property,Water & Sewerage Charges,B1830,12/01/2016,1023356_1,632.88,Revenue,20002423,THAMES WATER UTILITIES LTD
Oxford City Council,HRA,Water & Sewerage Charges,B1830,12/01/2016,1024345_1,765.65,Revenue,20002423,THAMES WATER UTILITIES LTD
Oxford City Council,HRA,Water & Sewerage Charges,B1830,12/01/2016,1024349_1,521.37,Revenue,20002423,THAMES WATER UTILITIES LTD
Oxford City Council,HRA,Water & Sewerage Charges,B1830,23/02/2016,1024363_1,795.85,Revenue,20002423,THAMES WATER UTILITIES LTD
Oxford City Council,HRA,Water & Sewerage Charges,B1830,12/01/2016,1024413_1,1865.80,Revenue,20002423,THAMES WATER UTILITIES LTD
Oxford City Council,Direct Services,Water & Sewerage Charges,B1830,12/01/2016,1024689_1,2189.16,Revenue,20002423,THAMES WATER UTILITIES LTD
Oxford City Council,Housing and Property,Water & Sewerage Charges,B1830,29/01/2016,47012286_0,811.34,Revenue,20002423,THAMES WATER UTILITIES LTD
Oxford City Council,Direct Services,Water & Sewerage Charges,B1830,29/01/2016,47012291_1,1630.09,Revenue,20002423,THAMES WATER UTILITIES LTD
Oxford City Council,Community Services,Water & Sewerage Charges,B1830,29/01/2016,47012292_0,179.42,Revenue,20002423,THAMES WATER UTILITIES LTD
Oxford City Council,Community Services,Water & Sewerage Charges,B1830,29/01/2016,47012292_1,440.36,Revenue,20002423,THAMES WATER UTILITIES LTD
Oxford City Council,HRA,Water & Sewerage Charges,B1830,29/01/2016,47012294_0,795.85,Revenue,20002423,THAMES WATER UTILITIES LTD
Oxford City Council,Direct Services,Water & Sewerage Charges,B1830,29/01/2016,47012295_1,2050.01,Revenue,20002423,THAMES WATER UTILITIES LTD
Oxford City Council,HRA,Water & Sewerage Charges,B1830,29/01/2016,47012296_0,883.59,Revenue,20002423,THAMES WATER UTILITIES LTD
Oxford City Council,Direct Services,Water & Sewerage Charges,B1830,29/01/2016,47012297_1,510.47,Revenue,20002423,THAMES WATER UTILITIES LTD
Oxford City Council,HRA,Water & Sewerage Charges,B1830,29/01/2016,47012298_0,612.72,Revenue,20002423,THAMES WATER UTILITIES LTD
Oxford City Council,Direct Services,Water & Sewerage Charges,B1830,29/01/2016,47012304_0,779.42,Revenue,20002423,THAMES WATER UTILITIES LTD
Oxford City Council,Housing and Property,Water & Sewerage Charges,B1830,29/01/2016,47012480_1,2033.92,Revenue,20002423,THAMES WATER UTILITIES LTD
Oxford City Council,HRA,Water & Sewerage Charges,B1830,29/01/2016,47012482_1,997.88,Revenue,20002423,THAMES WATER UTILITIES LTD
Oxford City Council,Community Services,Water & Sewerage Charges,B1830,29/01/2016,47012483_0,510.97,Revenue,20002423,THAMES WATER UTILITIES LTD
Oxford City Council,HRA,Water & Sewerage Charges,B1830,16/02/2016,47013026_0,1688.16,Revenue,20002423,THAMES WATER UTILITIES LTD
Oxford City Council,HRA,Water & Sewerage Charges,B1830,23/02/2016,47013232_0,1435.93,Revenue,20002423,THAMES WATER UTILITIES LTD
Oxford City Council,HRA,Water & Sewerage Charges,B1830,23/02/2016,47013233_1,1437.36,Revenue,20002423,THAMES WATER UTILITIES LTD
Oxford City Council,HRA,Water & Sewerage Charges,B1830,23/02/2016,47013235_1,765.60,Revenue,20002423,THAMES WATER UTILITIES LTD
Oxford City Council,HRA,Water & Sewerage Charges,B1830,23/02/2016,47013236_0,812.38,Revenue,20002423,THAMES WATER UTILITIES LTD
Oxford City Council,HRA,Water & Sewerage Charges,B1830,23/02/2016,47013243_1,650.80,Revenue,20002423,THAMES WATER UTILITIES LTD
Oxford City Council,Direct Services,Water & Sewerage Charges,B1830,23/02/2016,47013244_0,644.37,Revenue,20002423,THAMES WATER UTILITIES LTD
Oxford City Council,Housing and Property,Water & Sewerage Charges,B1830,01/03/2016,47013384_1,5479.53,Revenue,20002423,THAMES WATER UTILITIES LTD
Oxford City Council,Housing and Property,Water & Sewerage Charges,B1830,01/03/2016,47013385_0,6785.99,Revenue,20002423,THAMES WATER UTILITIES LTD
Oxford City Council,HRA,Water & Sewerage Charges,B1830,01/03/2016,47013398_0,654.26,Revenue,20002423,THAMES WATER UTILITIES LTD
Oxford City Council,Housing and Property,Water & Sewerage Charges,B1830,01/03/2016,47013404_1,761.62,Revenue,20002423,THAMES WATER UTILITIES LTD
Oxford City Council,Housing and Property,Water & Sewerage Charges,B1830,01/03/2016,47013405_0,506.98,Revenue,20002423,THAMES WATER UTILITIES LTD
Oxford City Council,Direct Services,Water & Sewerage Charges,B1830,15/03/2016,47013503_0,775.85,Revenue,20002423,THAMES WATER UTILITIES LTD
Oxford City Council,Housing and Property,Water & Sewerage Charges,B1830,15/03/2016,47013509_0,544.79,Revenue,20002423,THAMES WATER UTILITIES LTD
Oxford City Council,Housing and Property,Water & Sewerage Charges,B1830,15/03/2016,47013515_0,554.15,Revenue,20002423,THAMES WATER UTILITIES LTD
Oxford City Council,HRA,Water & Sewerage Charges,B1830,15/03/2016,47013552_0,535.44,Revenue,20002423,THAMES WATER UTILITIES LTD
Oxford City Council,Housing and Property,Water & Sewerage Charges,B1830,15/03/2016,47013554_1,511.11,Revenue,20002423,THAMES WATER UTILITIES LTD
Oxford City Council,Housing and Property,Water & Sewerage Charges,B1830,15/03/2016,47013555_0,520.47,Revenue,20002423,THAMES WATER UTILITIES LTD
Oxford City Council,HRA,Water & Sewerage Charges,B1830,15/03/2016,47013562_1,519.11,Revenue,20002423,THAMES WATER UTILITIES LTD
Oxford City Council,Housing and Property,Water & Sewerage Charges,B1830,15/03/2016,47013569_1,511.11,Revenue,20002423,THAMES WATER UTILITIES LTD
Oxford City Council,Housing and Property,Water & Sewerage Charges,B1830,15/03/2016,47013570_0,554.15,Revenue,20002423,THAMES WATER UTILITIES LTD
Oxford City Council,Direct Services,Water & Sewerage Charges,B1830,22/03/2016,47013631_1,548.53,Revenue,20002423,THAMES WATER UTILITIES LTD
Oxford City Council,Direct Services,Water & Sewerage Charges,B1830,22/03/2016,47013635_1,556.59,Revenue,20002423,THAMES WATER UTILITIES LTD
Oxford City Council,Direct Services,Materials,D3021,19/01/2016,60049132_1,583.75,Revenue,20002434,TOOLMASTER (OXFORD) LTD
Oxford City Council,Direct Services,Materials,D3021,15/03/2016,60052422_0,620.74,Revenue,20002434,TOOLMASTER (OXFORD) LTD
Oxford City Council,Direct Services,Materials,D3021,15/03/2016,60052453_1,726.45,Revenue,20002434,TOOLMASTER (OXFORD) LTD
Oxford City Council,Direct Services,Materials,D3021,26/01/2016,47983485_0,1495.00,Revenue,20002435,P A TURNEY LTD
Oxford City Council,Direct Services,Plant Purchase,C2002,22/03/2016,47984379_0,320.00,Revenue,20002435,P A TURNEY LTD
Oxford City Council,Direct Services,Plant Purchase,C2002,22/03/2016,47984379_1,110.00,Revenue,20002435,P A TURNEY LTD
Oxford City Council,Direct Services,Plant Purchase,C2002,22/03/2016,47984379_3,990.00,Revenue,20002435,P A TURNEY LTD
Oxford City Council,Direct Services,Plant Purchase,C2002,22/03/2016,47984379_4,948.00,Revenue,20002435,P A TURNEY LTD
Oxford City Council,Direct Services,Plant Purchase,C2002,22/03/2016,47984379_5,620.00,Revenue,20002435,P A TURNEY LTD
Oxford City Council,Direct Services,Plant Purchase,C2002,22/03/2016,47984379_6,400.00,Revenue,20002435,P A TURNEY LTD
Oxford City Council,Direct Services,Plant Purchase,C2002,22/03/2016,47984379_7,499.00,Revenue,20002435,P A TURNEY LTD
Oxford City Council,Direct Services,Materials,D3021,12/01/2016,60048784_0,1522.00,Revenue,20002443,UNIVERSAL ACCESS & POWER PLAN
Oxford City Council,Direct Services,Protective Clothing,D3201,12/01/2016,60048787_1,1053.00,Revenue,20002443,UNIVERSAL ACCESS & POWER PLAN
Oxford City Council,Direct Services,Materials,D3021,12/01/2016,60048907_1,539.00,Revenue,20002443,UNIVERSAL ACCESS & POWER PLAN
Oxford City Council,Direct Services,Tools,D3023,09/02/2016,60050110_1,1754.00,Revenue,20002443,UNIVERSAL ACCESS & POWER PLAN
Oxford City Council,Direct Services,Tools,D3023,09/02/2016,60050129_0,515.24,Revenue,20002443,UNIVERSAL ACCESS & POWER PLAN
Oxford City Council,Direct Services,Materials,D3021,09/02/2016,60050333_0,609.75,Revenue,20002443,UNIVERSAL ACCESS & POWER PLAN
Oxford City Council,Direct Services,Materials,D3021,09/02/2016,60050335_0,2691.00,Revenue,20002443,UNIVERSAL ACCESS & POWER PLAN
Oxford City Council,Direct Services,Tools,D3023,23/02/2016,60051144_1,1080.00,Revenue,20002443,UNIVERSAL ACCESS & POWER PLAN
Oxford City Council,Direct Services,Materials,D3021,23/02/2016,60051148_1,2750.00,Revenue,20002443,UNIVERSAL ACCESS & POWER PLAN
Oxford City Council,Direct Services,Materials,D3021,01/03/2016,60051868_1,2330.00,Revenue,20002443,UNIVERSAL ACCESS & POWER PLAN
Oxford City Council,Direct Services,Furniture & Equipment Purchase,D3001,08/03/2016,60051977_0,620.00,Revenue,20002443,UNIVERSAL ACCESS & POWER PLAN
Oxford City Council,Direct Services,Direct Services Supplies & Services,D3311,08/03/2016,60052018_1,1649.54,Revenue,20002443,UNIVERSAL ACCESS & POWER PLAN
Oxford City Council,Direct Services,Direct Services Supplies & Services,D3311,29/03/2016,60053282_1,1811.04,Revenue,20002443,UNIVERSAL ACCESS & POWER PLAN
Oxford City Council,Direct Services,Materials,D3021,12/01/2016,60048792_0,1859.44,Revenue,20002464,WOLSELEY UK LIMITED
Oxford City Council,Direct Services,Materials,D3021,12/01/2016,60048793_1,1415.22,Revenue,20002464,WOLSELEY UK LIMITED
Oxford City Council,Direct Services,Materials,D3021,12/01/2016,60048796_0,728.05,Revenue,20002464,WOLSELEY UK LIMITED
Oxford City Council,Direct Services,Materials,D3021,12/01/2016,60048798_0,896.31,Revenue,20002464,WOLSELEY UK LIMITED
Oxford City Council,Direct Services,Materials,D3021,12/01/2016,60048799_1,793.84,Revenue,20002464,WOLSELEY UK LIMITED
Oxford City Council,Direct Services,Materials,D3021,12/01/2016,60048942_0,1298.89,Revenue,20002464,WOLSELEY UK LIMITED
Oxford City Council,Direct Services,Materials,D3021,19/01/2016,60049178_1,618.15,Revenue,20002464,WOLSELEY UK LIMITED
Oxford City Council,Direct Services,Materials,D3021,19/01/2016,60049180_1,1357.20,Revenue,20002464,WOLSELEY UK LIMITED
Oxford City Council,Direct Services,Materials,D3021,19/01/2016,60049182_1,1192.82,Revenue,20002464,WOLSELEY UK LIMITED
Oxford City Council,Direct Services,Materials,D3021,19/01/2016,60049184_1,1856.05,Revenue,20002464,WOLSELEY UK LIMITED
Oxford City Council,Direct Services,Materials,D3021,19/01/2016,60049188_1,3072.82,Revenue,20002464,WOLSELEY UK LIMITED
Oxford City Council,Direct Services,Materials,D3021,19/01/2016,60049190_1,665.59,Revenue,20002464,WOLSELEY UK LIMITED
Oxford City Council,Direct Services,Direct Services Supplies & Services,D3311,19/01/2016,60049191_1,830.55,Revenue,20002464,WOLSELEY UK LIMITED
Oxford City Council,Direct Services,Materials,D3021,09/02/2016,60050135_0,4624.58,Revenue,20002464,WOLSELEY UK LIMITED
Oxford City Council,Direct Services,Materials,D3021,09/02/2016,60050138_1,701.80,Revenue,20002464,WOLSELEY UK LIMITED
Oxford City Council,Direct Services,Materials,D3021,09/02/2016,60050141_0,982.39,Revenue,20002464,WOLSELEY UK LIMITED
Oxford City Council,Direct Services,Materials,D3021,09/02/2016,60050346_1,2162.96,Revenue,20002464,WOLSELEY UK LIMITED
Oxford City Council,Direct Services,Materials,D3021,09/02/2016,60050348_1,579.10,Revenue,20002464,WOLSELEY UK LIMITED
Oxford City Council,Direct Services,Materials,D3021,16/02/2016,60050696_0,555.96,Revenue,20002464,WOLSELEY UK LIMITED
Oxford City Council,Direct Services,Materials,D3021,16/02/2016,60050804_0,1665.68,Revenue,20002464,WOLSELEY UK LIMITED
Oxford City Council,Direct Services,Materials,D3021,16/02/2016,60050806_0,1051.72,Revenue,20002464,WOLSELEY UK LIMITED
Oxford City Council,Direct Services,Materials,D3021,16/02/2016,60050807_1,1617.61,Revenue,20002464,WOLSELEY UK LIMITED
Oxford City Council,Direct Services,Materials,D3021,16/02/2016,60050841_1,2273.78,Revenue,20002464,WOLSELEY UK LIMITED
Oxford City Council,Direct Services,Materials,D3021,23/02/2016,60051061_0,1087.10,Revenue,20002464,WOLSELEY UK LIMITED
Oxford City Council,Direct Services,Materials,D3021,23/02/2016,60051192_1,3559.83,Revenue,20002464,WOLSELEY UK LIMITED
Oxford City Council,Direct Services,Materials,D3021,01/03/2016,60051586_1,1177.69,Revenue,20002464,WOLSELEY UK LIMITED
Oxford City Council,Direct Services,Materials,D3021,01/03/2016,60051588_1,681.79,Revenue,20002464,WOLSELEY UK LIMITED
Oxford City Council,Direct Services,Materials,D3021,01/03/2016,60051589_0,682.88,Revenue,20002464,WOLSELEY UK LIMITED
Oxford City Council,Direct Services,Materials,D3021,01/03/2016,60051639_0,2425.23,Revenue,20002464,WOLSELEY UK LIMITED
Oxford City Council,Direct Services,Materials,D3021,08/03/2016,60051980_1,1262.66,Revenue,20002464,WOLSELEY UK LIMITED
Oxford City Council,Direct Services,Materials,D3021,08/03/2016,60052025_0,2021.58,Revenue,20002464,WOLSELEY UK LIMITED
Oxford City Council,Direct Services,Materials,D3021,08/03/2016,60052106_0,2526.28,Revenue,20002464,WOLSELEY UK LIMITED
Oxford City Council,Direct Services,Materials,D3021,15/03/2016,60052428_0,2976.66,Revenue,20002464,WOLSELEY UK LIMITED
Oxford City Council,Direct Services,Materials,D3021,15/03/2016,60052432_0,3039.08,Revenue,20002464,WOLSELEY UK LIMITED
Oxford City Council,Direct Services,Direct Services Supplies & Services,D3311,15/03/2016,60052433_1,815.75,Revenue,20002464,WOLSELEY UK LIMITED
Oxford City Council,Direct Services,Materials,D3021,15/03/2016,60052434_0,865.33,Revenue,20002464,WOLSELEY UK LIMITED
Oxford City Council,Direct Services,Materials,D3021,15/03/2016,60052458_0,940.25,Revenue,20002464,WOLSELEY UK LIMITED
Oxford City Council,Direct Services,Materials,D3021,22/03/2016,60052789_0,756.12,Revenue,20002464,WOLSELEY UK LIMITED
Oxford City Council,Direct Services,Materials,D3021,29/03/2016,60053222_1,1576.46,Revenue,20002464,WOLSELEY UK LIMITED
Oxford City Council,Direct Services,Materials,D3021,29/03/2016,60053223_0,1225.05,Revenue,20002464,WOLSELEY UK LIMITED
Oxford City Council,Direct Services,Materials,D3021,08/03/2016,1025968_0,569.00,Revenue,20002467,AWBS LTD
Oxford City Council,Regeneration and Major Projects Team,Main Contractor,Y021,12/01/2016,48021437_1,365243.52,Capital,20002494,E W BEARD LTD
Oxford City Council,Regeneration and Major Projects Team,Main Contractor,Y021,16/02/2016,48021459_1,131391.68,Capital,20002494,E W BEARD LTD
Oxford City Council,General Fund,VAT Pro Forma Invoices,Z110205,16/02/2016,48021459_2,26278.34,Revenue,20002494,E W BEARD LTD
Oxford City Council,Direct Services,Direct Services Sub Contractors,B1111,12/01/2016,60048960_0,1549.85,Revenue,20002513,MARCUS COPELIN
Oxford City Council,Direct Services,Direct Services Sub Contractors,B1111,09/02/2016,60050435_1,520.00,Revenue,20002513,MARCUS COPELIN
Oxford City Council,Direct Services,Direct Services Sub Contractors,B1111,09/02/2016,60050437_1,1840.00,Revenue,20002513,MARCUS COPELIN
Oxford City Council,Housing and Property,Services Maintenance (Planned),B1103,26/01/2016,46288555_1,677.50,Revenue,20002568,PYROTEC SERVICES LTD
Oxford City Council,HRA,Fire Alarms and Emergency Lighting,B1241,29/01/2016,46288587_1,6667.66,Revenue,20002568,PYROTEC SERVICES LTD
Oxford City Council,Housing and Property,Fire Alarms and Emergency Lighting,B1241,29/01/2016,46288587_10,1088.53,Revenue,20002568,PYROTEC SERVICES LTD
Oxford City Council,Housing and Property,Fire Alarms and Emergency Lighting,B1241,29/01/2016,46288587_11,1446.10,Revenue,20002568,PYROTEC SERVICES LTD
Oxford City Council,Housing and Property,Fire Alarms and Emergency Lighting,B1241,29/01/2016,46288587_12,333.90,Revenue,20002568,PYROTEC SERVICES LTD
Oxford City Council,HRA,Fire Alarms and Emergency Lighting,B1241,29/01/2016,46288587_13,145.00,Revenue,20002568,PYROTEC SERVICES LTD
Oxford City Council,Housing and Property,Fire Alarms and Emergency Lighting,B1241,29/01/2016,46288587_14,62.90,Revenue,20002568,PYROTEC SERVICES LTD
Oxford City Council,Housing and Property,Fire Alarms and Emergency Lighting,B1241,29/01/2016,46288587_2,1149.99,Revenue,20002568,PYROTEC SERVICES LTD
Oxford City Council,Housing and Property,Fire Alarms and Emergency Lighting,B1241,29/01/2016,46288587_3,5159.55,Revenue,20002568,PYROTEC SERVICES LTD
Oxford City Council,Direct Services,Fire Alarms and Emergency Lighting,B1241,29/01/2016,46288587_4,43.74,Revenue,20002568,PYROTEC SERVICES LTD
Oxford City Council,Direct Services,Fire Alarms and Emergency Lighting,B1241,29/01/2016,46288587_5,432.71,Revenue,20002568,PYROTEC SERVICES LTD
Oxford City Council,Direct Services,Fire Alarms and Emergency Lighting,B1241,29/01/2016,46288587_6,150.00,Revenue,20002568,PYROTEC SERVICES LTD
Oxford City Council,Direct Services,Fire Alarms and Emergency Lighting,B1241,29/01/2016,46288587_7,243.75,Revenue,20002568,PYROTEC SERVICES LTD
Oxford City Council,Direct Services,Fire Alarms and Emergency Lighting,B1241,29/01/2016,46288587_8,281.25,Revenue,20002568,PYROTEC SERVICES LTD
Oxford City Council,Housing and Property,Fire Alarms and Emergency Lighting,B1241,29/01/2016,46288587_9,40.00,Revenue,20002568,PYROTEC SERVICES LTD
Oxford City Council,HRA,Fire Alarms and Emergency Lighting,B1241,23/02/2016,46288821_1,4778.82,Revenue,20002568,PYROTEC SERVICES LTD
Oxford City Council,Housing and Property,Fire Alarms and Emergency Lighting,B1241,23/02/2016,46288821_10,164.95,Revenue,20002568,PYROTEC SERVICES LTD
Oxford City Council,Housing and Property,Fire Alarms and Emergency Lighting,B1241,23/02/2016,46288821_11,50.00,Revenue,20002568,PYROTEC SERVICES LTD
Oxford City Council,Community Services,Fire Alarms and Emergency Lighting,B1241,23/02/2016,46288821_12,3233.96,Revenue,20002568,PYROTEC SERVICES LTD
Oxford City Council,HRA,Fire Alarms and Emergency Lighting,B1241,23/02/2016,46288821_2,370.00,Revenue,20002568,PYROTEC SERVICES LTD
Oxford City Council,Housing and Property,Fire Alarms and Emergency Lighting,B1241,23/02/2016,46288821_3,995.51,Revenue,20002568,PYROTEC SERVICES LTD
Oxford City Council,Housing and Property,Fire Alarms and Emergency Lighting,B1241,23/02/2016,46288821_4,495.00,Revenue,20002568,PYROTEC SERVICES LTD
Oxford City Council,Direct Services,Fire Alarms and Emergency Lighting,B1241,23/02/2016,46288821_5,70.00,Revenue,20002568,PYROTEC SERVICES LTD
Oxford City Council,Housing and Property,Fire Alarms and Emergency Lighting,B1241,23/02/2016,46288821_6,210.00,Revenue,20002568,PYROTEC SERVICES LTD
Oxford City Council,Direct Services,Fire Alarms and Emergency Lighting,B1241,23/02/2016,46288821_7,40.00,Revenue,20002568,PYROTEC SERVICES LTD
Oxford City Council,Regeneration and Major Projects Team,Main Contractor,Y021,23/02/2016,46288821_8,610.00,Capital,20002568,PYROTEC SERVICES LTD
Oxford City Council,HRA,Main Contractor,Y021,23/02/2016,46288821_9,10160.00,Capital,20002568,PYROTEC SERVICES LTD
Oxford City Council,Direct Services,Materials,D3021,16/02/2016,47983837_0,1774.44,Revenue,20002610,JOHNSTON SWEEPERS LTD
Oxford City Council,Housing and Property,Services Maintenance (Planned),B1103,23/02/2016,1026080_1,580.92,Revenue,20002633,ADT FIRE & SECURITY
Oxford City Council,Direct Services,Materials,D3021,01/03/2016,60051716_1,662.50,Revenue,20002637,SMITH & OSMAN SERVICES
Oxford City Council,Suspense,Materials,D3021,12/01/2016,60048845_1,507.87,Revenue,20002653,H TUCKWELL & SONS LTD
Oxford City Council,Suspense,Materials,D3021,01/03/2016,60051519_0,509.92,Revenue,20002653,H TUCKWELL & SONS LTD
Oxford City Council,Suspense,Materials,D3021,01/03/2016,60051520_1,506.84,Revenue,20002653,H TUCKWELL & SONS LTD
Oxford City Council,Direct Services,Materials,D3021,26/01/2016,60049693_0,790.80,Revenue,20002679,LOCKS & LATCHES (STAFFORD) LTD
Oxford City Council,Direct Services,Materials,D3021,16/02/2016,60050682_0,500.90,Revenue,20002679,LOCKS & LATCHES (STAFFORD) LTD
Oxford City Council,Direct Services,Materials,D3021,23/02/2016,60051195_0,560.60,Revenue,20002679,LOCKS & LATCHES (STAFFORD) LTD
Oxford City Council,Direct Services,Materials,D3021,01/03/2016,60051576_1,637.50,Revenue,20002679,LOCKS & LATCHES (STAFFORD) LTD
Oxford City Council,Direct Services,Materials,D3021,01/03/2016,60051864_1,606.40,Revenue,20002679,LOCKS & LATCHES (STAFFORD) LTD
Oxford City Council,Direct Services,Materials,D3021,01/03/2016,60051865_0,1535.30,Revenue,20002679,LOCKS & LATCHES (STAFFORD) LTD
Oxford City Council,Direct Services,Materials,D3021,22/03/2016,60052765_0,552.00,Revenue,20002679,LOCKS & LATCHES (STAFFORD) LTD
Oxford City Council,Direct Services,Materials,D3021,29/03/2016,60053219_0,738.00,Revenue,20002679,LOCKS & LATCHES (STAFFORD) LTD
Oxford City Council,Direct Services,Direct Services Supplies & Services,D3311,12/01/2016,60048772_0,986.20,Revenue,20002680,OXFORD SAFETY SUPPLIES
Oxford City Council,Direct Services,Materials,D3021,12/01/2016,60048773_1,2159.02,Revenue,20002680,OXFORD SAFETY SUPPLIES
Oxford City Council,Direct Services,Materials,D3021,12/01/2016,60048889_1,2098.75,Revenue,20002680,OXFORD SAFETY SUPPLIES
Oxford City Council,Direct Services,Materials,D3021,12/01/2016,60048892_0,776.40,Revenue,20002680,OXFORD SAFETY SUPPLIES
Oxford City Council,Direct Services,Materials,D3021,19/01/2016,60049274_1,728.25,Revenue,20002680,OXFORD SAFETY SUPPLIES
Oxford City Council,Direct Services,Materials,D3021,26/01/2016,60049555_2,1221.40,Revenue,20002680,OXFORD SAFETY SUPPLIES
Oxford City Council,Direct Services,Materials,D3021,09/02/2016,60050120_1,612.40,Revenue,20002680,OXFORD SAFETY SUPPLIES
Oxford City Council,Direct Services,Materials,D3021,16/02/2016,60050688_0,808.30,Revenue,20002680,OXFORD SAFETY SUPPLIES
Oxford City Council,Direct Services,Materials,D3021,16/02/2016,60050689_1,908.50,Revenue,20002680,OXFORD SAFETY SUPPLIES
Oxford City Council,Direct Services,Materials,D3021,16/02/2016,60050690_0,852.00,Revenue,20002680,OXFORD SAFETY SUPPLIES
Oxford City Council,Direct Services,Materials,D3021,23/02/2016,60051256_0,1215.20,Revenue,20002680,OXFORD SAFETY SUPPLIES
Oxford City Council,Direct Services,Protective Clothing,D3201,23/02/2016,60051358_1,699.00,Revenue,20002680,OXFORD SAFETY SUPPLIES
Oxford City Council,Direct Services,Materials,D3021,08/03/2016,60051972_1,1388.84,Revenue,20002680,OXFORD SAFETY SUPPLIES
Oxford City Council,Direct Services,Materials,D3021,08/03/2016,60051973_0,850.75,Revenue,20002680,OXFORD SAFETY SUPPLIES
Oxford City Council,Direct Services,Materials,D3021,15/03/2016,60052372_1,678.15,Revenue,20002680,OXFORD SAFETY SUPPLIES
Oxford City Council,Direct Services,Materials,D3021,15/03/2016,60052374_1,3238.73,Revenue,20002680,OXFORD SAFETY SUPPLIES
Oxford City Council,Direct Services,Materials,D3021,15/03/2016,60052375_0,709.65,Revenue,20002680,OXFORD SAFETY SUPPLIES
Oxford City Council,Direct Services,Materials,D3021,15/03/2016,60052550_1,1411.45,Revenue,20002680,OXFORD SAFETY SUPPLIES
Oxford City Council,Direct Services,Materials,D3021,29/03/2016,60053267_1,657.85,Revenue,20002680,OXFORD SAFETY SUPPLIES
Oxford City Council,Direct Services,Materials,D3021,26/01/2016,60049568_0,3362.56,Revenue,20002690,SALT UNION LTD
Oxford City Council,Direct Services,Materials,D3021,09/02/2016,60050154_1,2267.99,Revenue,20002690,SALT UNION LTD
Oxford City Council,Direct Services,Sign Shop Materials,D3018,09/02/2016,60050400_0,1221.76,Revenue,20002698,SPANDEX  LTD.  (UK)  COLLECTIONS
Oxford City Council,Direct Services,Sign Shop Materials,D3018,22/03/2016,60052959_0,2670.09,Revenue,20002698,SPANDEX  LTD.  (UK)  COLLECTIONS
Oxford City Council,Direct Services,Materials,D3021,29/01/2016,60049973_0,866.86,Revenue,20002710,SMITH & SONS(BLETCHINGTON)LTD
Oxford City Council,Direct Services,Services Maintenance (Planned),B1103,22/03/2016,60052930_1,1315.00,Revenue,20002712,CLEANSING SERVICE GROUP LTD
Oxford City Council,Direct Services,Materials,D3021,22/03/2016,60052931_0,970.00,Revenue,20002712,CLEANSING SERVICE GROUP LTD
Oxford City Council,Housing and Property,Temporary Bureau Staffing,A0108,19/01/2016,1024879_1,851.00,Revenue,20002820,BADENOCH & CLARK LTD
Oxford City Council,Housing and Property,Temporary Bureau Staffing,A0108,19/01/2016,1024951_1,851.00,Revenue,20002820,BADENOCH & CLARK LTD
Oxford City Council,Housing and Property,Temporary Bureau Staffing,A0108,29/01/2016,1024953_1,644.00,Revenue,20002820,BADENOCH & CLARK LTD
Oxford City Council,Housing and Property,Temporary Bureau Staffing,A0108,29/01/2016,1024954_1,644.00,Revenue,20002820,BADENOCH & CLARK LTD
Oxford City Council,Housing and Property,Temporary Bureau Staffing,A0108,16/02/2016,1025640_1,851.00,Revenue,20002820,BADENOCH & CLARK LTD
Oxford City Council,Housing and Property,Temporary Bureau Staffing,A0108,09/02/2016,1025642_1,851.00,Revenue,20002820,BADENOCH & CLARK LTD
Oxford City Council,Housing and Property,Temporary Bureau Staffing,A0108,01/03/2016,1026176_0,851.00,Revenue,20002820,BADENOCH & CLARK LTD
Oxford City Council,Housing and Property,Temporary Bureau Staffing,A0108,08/03/2016,1026177_0,851.00,Revenue,20002820,BADENOCH & CLARK LTD
Oxford City Council,Housing and Property,Temporary Bureau Staffing,A0108,15/03/2016,1026275_0,851.00,Revenue,20002820,BADENOCH & CLARK LTD
Oxford City Council,Housing and Property,Temporary Bureau Staffing,A0108,01/03/2016,1026282_0,851.00,Revenue,20002820,BADENOCH & CLARK LTD
Oxford City Council,Housing and Property,Temporary Bureau Staffing,A0108,22/03/2016,1026538_0,851.00,Revenue,20002820,BADENOCH & CLARK LTD
Oxford City Council,Housing and Property,Temporary Bureau Staffing,A0108,22/03/2016,1026845_0,851.00,Revenue,20002820,BADENOCH & CLARK LTD
Oxford City Council,Housing and Property,Temporary Bureau Staffing,A0108,22/03/2016,1026846_0,851.00,Revenue,20002820,BADENOCH & CLARK LTD
Oxford City Council,Housing and Property,Temporary Bureau Staffing,A0108,29/03/2016,1026848_0,851.00,Revenue,20002820,BADENOCH & CLARK LTD
Oxford City Council,Community Services,Instructors & Coaching Fees,D3413,26/01/2016,1025249_1,540.00,Revenue,20002893,CHERWELL DISTRICT COUNCIL
Oxford City Council,Community Services,General Contracted Services,D3401,22/03/2016,1026871_0,4807.00,Revenue,20002893,CHERWELL DISTRICT COUNCIL
Oxford City Council,Community Services,General Contracted Services,D3401,22/03/2016,1026872_0,3500.00,Revenue,20002893,CHERWELL DISTRICT COUNCIL
Oxford City Council,Direct Services,Protective Clothing,D3201,12/01/2016,1024683_1,635.62,Revenue,20002919,HONEY BROTHERS LTD
Oxford City Council,Direct Services,Tools,D3023,12/01/2016,1024683_2,95.46,Revenue,20002919,HONEY BROTHERS LTD
Oxford City Council,Direct Services,Postage & Carriage,D3501,12/01/2016,1024683_3,7.50,Revenue,20002919,HONEY BROTHERS LTD
Oxford City Council,Direct Services,Tools,D3023,16/02/2016,1025217_1,774.29,Revenue,20002919,HONEY BROTHERS LTD
Oxford City Council,Direct Services,Postage & Carriage,D3501,16/02/2016,1025217_2,8.41,Revenue,20002919,HONEY BROTHERS LTD
Oxford City Council,Direct Services,Protective Clothing,D3201,23/02/2016,1025936_0,2357.90,Revenue,20002919,HONEY BROTHERS LTD
Oxford City Council,Direct Services,Materials,D3021,29/03/2016,1026822_0,779.28,Revenue,20002919,HONEY BROTHERS LTD
Oxford City Council,Business Improvement,General Contracted Services,D3401,01/03/2016,1023115_1,34589.08,Revenue,20002930,OXFORDSHIRE COUNTY COUNCIL
Oxford City Council,Business Improvement,Contract Printing (External),D3303,19/01/2016,1024896_1,2774.00,Revenue,20002930,OXFORDSHIRE COUNTY COUNCIL
Oxford City Council,Law and Governance,Consultants Fees,D3411,19/01/2016,1024906_1,2709.47,Revenue,20002930,OXFORDSHIRE COUNTY COUNCIL
Oxford City Council,Assistant Chief Executive,Main Contractor,Y021,23/02/2016,1025063_1,50000.00,Capital,20002930,OXFORDSHIRE COUNTY COUNCIL
Oxford City Council,Business Improvement,Main Contractor,Y021,26/01/2016,1025070_1,11733.81,Capital,20002930,OXFORDSHIRE COUNTY COUNCIL
Oxford City Council,Housing and Property,Grants,D3701,29/01/2016,1025121_1,103956.77,Revenue,20002930,OXFORDSHIRE COUNTY COUNCIL
Oxford City Council,Business Improvement,Contract Printing (External),D3303,26/01/2016,1025169_1,6000.00,Revenue,20002930,OXFORDSHIRE COUNTY COUNCIL
Oxford City Council,Business Improvement,General Contracted Services,D3401,09/02/2016,1025340_1,203735.05,Revenue,20002930,OXFORDSHIRE COUNTY COUNCIL
Oxford City Council,Business Improvement,General Contracted Services,D3401,29/01/2016,1025352_1,6224.97,Revenue,20002930,OXFORDSHIRE COUNTY COUNCIL
Oxford City Council,Law and Governance,General Stationery Supplies,D3301,09/02/2016,1025568_0,1879.25,Revenue,20002930,OXFORDSHIRE COUNTY COUNCIL
Oxford City Council,Business Improvement,General Contracted Services,D3401,09/02/2016,1025699_1,41206.20,Revenue,20002930,OXFORDSHIRE COUNTY COUNCIL
Oxford City Council,Planning & Regulatory,Stamp Duty & Other Legal Fees,D3415,16/02/2016,1025821_0,735.93,Revenue,20002930,OXFORDSHIRE COUNTY COUNCIL
Oxford City Council,Environmental Sustainability,Consultants Fees,D3411,23/02/2016,1025969_0,5000.00,Revenue,20002930,OXFORDSHIRE COUNTY COUNCIL
Oxford City Council,Law and Governance,Consultants Fees,D3411,23/02/2016,1026016_0,2709.47,Revenue,20002930,OXFORDSHIRE COUNTY COUNCIL
Oxford City Council,Business Improvement,Contract Printing (External),D3303,11/03/2016,1026251_0,6781.00,Revenue,20002930,OXFORDSHIRE COUNTY COUNCIL
Oxford City Council,Planning & Regulatory,Stamp Duty & Other Legal Fees,D3415,08/03/2016,1026316_0,616.59,Revenue,20002930,OXFORDSHIRE COUNTY COUNCIL
Oxford City Council,Community Services,General Contracted Services,D3401,15/03/2016,1026621_1,2200.00,Revenue,20002930,OXFORDSHIRE COUNTY COUNCIL
Oxford City Council,Law and Governance,Consultants Fees,D3411,22/03/2016,1026817_0,5418.94,Revenue,20002930,OXFORDSHIRE COUNTY COUNCIL
Oxford City Council,Business Improvement,Contract Printing (External),D3303,23/03/2016,1026873_0,3832.00,Revenue,20002930,OXFORDSHIRE COUNTY COUNCIL
Oxford City Council,Housing and Property,Consultants Fees,D3411,29/03/2016,1027033_0,10000.00,Revenue,20002930,OXFORDSHIRE COUNTY COUNCIL
Oxford City Council,Suspense,Bank Credits Suspense,K9901,12/01/2016,46288407_1,16045.00,Revenue,20002930,OXFORDSHIRE COUNTY COUNCIL
Oxford City Council,Suspense,Bank Credits Suspense,K9901,12/01/2016,46288408_1,32090.00,Revenue,20002930,OXFORDSHIRE COUNTY COUNCIL
Oxford City Council,Suspense,Investment Interest,K9602,12/01/2016,46288409_1,705.54,Revenue,20002930,OXFORDSHIRE COUNTY COUNCIL
Oxford City Council,HRA,Miscellaneous Fees,Y173,12/01/2016,46288423_1,6789.11,Capital,20002930,OXFORDSHIRE COUNTY COUNCIL
Oxford City Council,Assistant Chief Executive,Temporary Bureau Staffing,A0108,22/03/2016,46289182_1,7252.50,Revenue,20002930,OXFORDSHIRE COUNTY COUNCIL
Oxford City Council,HRA,Miscellaneous Fees,Y173,23/02/2016,48021460_1,6787.03,Capital,20002930,OXFORDSHIRE COUNTY COUNCIL
Oxford City Council,Direct Services,Tipping Charges,D3421,19/01/2016,60049305_0,77562.36,Revenue,20002930,OXFORDSHIRE COUNTY COUNCIL
Oxford City Council,Direct Services,Tipping Charges,D3421,19/01/2016,60049306_1,69228.30,Revenue,20002930,OXFORDSHIRE COUNTY COUNCIL
Oxford City Council,Direct Services,General Contracted Services,D3401,09/02/2016,60050371_0,516.20,Revenue,20002930,OXFORDSHIRE COUNTY COUNCIL
Oxford City Council,HRA,Rent,B1701,22/03/2016,1026803_1,2227.00,Revenue,20002952,LINCOLN COLLEGE
Oxford City Council,Community Services,General Contracted Services,D3401,26/01/2016,1025291_1,960.00,Revenue,20002957,BMA VARSITY LTD
Oxford City Council,Law and Governance,Subscriptions,D3703,08/03/2016,46288948_1,3924.00,Revenue,20002981,THOMSON REUTERS
Oxford City Council,Community Services,Furniture & Equipment Purchase,D3001,08/03/2016,1025995_0,2285.00,Revenue,20002998,JBL
Oxford City Council,Community Services,Furniture & Equipment Purchase,D3001,15/03/2016,1026261_1,3624.00,Revenue,20002998,JBL
Oxford City Council,Community Services,Furniture & Equipment Purchase,D3001,15/03/2016,1026261_2,630.00,Revenue,20002998,JBL
Oxford City Council,Direct Services,Services Maintenance (Planned),B1103,09/02/2016,60050165_0,1521.00,Revenue,20002998,JBL
Oxford City Council,Direct Services,Furniture & Equipment Purchase,D3001,23/02/2016,60051283_0,756.00,Revenue,20002998,JBL
Oxford City Council,Direct Services,Furniture & Equipment Maintenance & Repairs,D3002,15/03/2016,60052370_1,1134.00,Revenue,20002998,JBL
Oxford City Council,Direct Services,Engineering Services Supplies and Services,D3319,26/01/2016,60049578_0,1332.00,Revenue,20003003,MABEY HIRE SERVICES LTD
Oxford City Council,Planning & Regulatory,Advertising & Publicity,D3802,16/02/2016,1025488_1,700.00,Revenue,20003025,PETE RUSSELL
Oxford City Council,Law and Governance,Contract Printing (External),D3303,09/02/2016,1025489_1,500.00,Revenue,20003025,PETE RUSSELL
Oxford City Council,Law and Governance,Advertising & Publicity,D3802,29/01/2016,1025494_1,600.00,Revenue,20003025,PETE RUSSELL
Oxford City Council,Assistant Chief Executive,General Contracted Services,D3401,29/03/2016,1027106_0,660.00,Revenue,20003025,PETE RUSSELL
Oxford City Council,Community Services,Contract Printing (External),D3303,29/03/2016,1027110_0,750.00,Revenue,20003025,PETE RUSSELL
Oxford City Council,Direct Services,Advertising & Publicity,D3802,16/02/2016,60050961_1,730.00,Revenue,20003025,PETE RUSSELL
Oxford City Council,Direct Services,Services Maintenance (Planned),B1103,22/03/2016,60053000_1,550.00,Revenue,20003038,P&J DUST EXTRACTION LTD
Oxford City Council,Direct Services,Direct Services Sub Contractors,B1111,23/02/2016,60051482_0,699.00,Revenue,20003041,SUN-RAY BLINDS & SHUTTERS
Oxford City Council,Community Services,Furniture & Equipment Purchase,D3001,29/03/2016,1027172_0,764.92,Revenue,20003053,SWIFT BUSINESS SERVICES LTD
Oxford City Council,Direct Services,Materials,D3021,19/01/2016,47983315_0,1813.82,Revenue,20003127,AMLUC LTD T/AS PIRTEK OXFORD
Oxford City Council,Community Services,General Contracted Services,D3401,15/03/2016,1025605_0,4120.00,Revenue,20003139,VALE OF WHITE HORSE DISTRICT DC BUSINESS RATES ACCOUNT
Oxford City Council,Direct Services,Materials,D3021,26/01/2016,47983481_0,504.22,Revenue,20003145,RP CHERRY & SONS LTD
Oxford City Council,Law and Governance,Advertising & Publicity,D3802,12/01/2016,1024141_1,695.00,Revenue,20003169,THE LAW SOCIETY
Oxford City Council,Community Services,Contract Cleaning,B1602,26/01/2016,1024731_1,759.21,Revenue,20003172,RENTOKIL INITIAL SERVICES NO1
Oxford City Council,Direct Services,Materials,D3021,09/02/2016,1024949_1,800.10,Revenue,20003218,BOC LTD
Oxford City Council,Direct Services,Materials,D3021,12/01/2016,60048652_0,1570.53,Revenue,20003233,AKW MEDICARE LIMITED
Oxford City Council,Direct Services,Materials,D3021,12/01/2016,60048849_1,1663.16,Revenue,20003233,AKW MEDICARE LIMITED
Oxford City Council,Direct Services,Materials,D3021,19/01/2016,60049059_0,807.93,Revenue,20003233,AKW MEDICARE LIMITED
Oxford City Council,Direct Services,Materials,D3021,26/01/2016,60049440_2,1942.76,Revenue,20003233,AKW MEDICARE LIMITED
Oxford City Council,Direct Services,Materials,D3021,09/02/2016,60049981_0,521.59,Revenue,20003233,AKW MEDICARE LIMITED
Oxford City Council,Direct Services,Materials,D3021,16/02/2016,60050545_0,731.57,Revenue,20003233,AKW MEDICARE LIMITED
Oxford City Council,Direct Services,Materials,D3021,16/02/2016,60050765_1,1633.88,Revenue,20003233,AKW MEDICARE LIMITED
Oxford City Council,Direct Services,Materials,D3021,23/02/2016,60051200_0,1208.16,Revenue,20003233,AKW MEDICARE LIMITED
Oxford City Council,Direct Services,Materials,D3021,01/03/2016,60051661_0,1627.95,Revenue,20003233,AKW MEDICARE LIMITED
Oxford City Council,Direct Services,Direct Services Supplies & Services,D3311,08/03/2016,60052100_0,815.49,Revenue,20003233,AKW MEDICARE LIMITED
Oxford City Council,Direct Services,Direct Services Supplies & Services,D3311,15/03/2016,60052305_0,3052.92,Revenue,20003233,AKW MEDICARE LIMITED
Oxford City Council,Direct Services,Materials,D3021,15/03/2016,60052459_1,951.92,Revenue,20003233,AKW MEDICARE LIMITED
Oxford City Council,Direct Services,Materials,D3021,22/03/2016,60052686_1,1277.86,Revenue,20003233,AKW MEDICARE LIMITED
Oxford City Council,Direct Services,Materials,D3021,29/03/2016,60053100_0,1343.18,Revenue,20003233,AKW MEDICARE LIMITED
Oxford City Council,Law and Governance,Furniture & Equipment Purchase,D3001,12/01/2016,1024824_1,815.00,Revenue,20003374,CITY AUDIO VISUAL
Oxford City Council,Community Services,Furniture & Equipment Purchase,D3001,19/01/2016,1024977_1,882.40,Revenue,20003374,CITY AUDIO VISUAL
Oxford City Council,Community Services,Furniture & Equipment Purchase,D3001,23/02/2016,1026060_0,2400.00,Revenue,20003374,CITY AUDIO VISUAL
Oxford City Council,Community Services,General Contracted Services,D3401,23/02/2016,1026060_1,400.00,Revenue,20003374,CITY AUDIO VISUAL
Oxford City Council,Community Services,Equipment Hire Charges,D3006,29/03/2016,1027066_0,555.00,Revenue,20003374,CITY AUDIO VISUAL
Oxford City Council,Direct Services,Direct Services Sub Contractors,B1111,19/01/2016,60049402_2,659.40,Revenue,20003467,MCAVOY HIRE LTD
Oxford City Council,Direct Services,Direct Services Sub Contractors,B1111,26/01/2016,60049774_2,500.00,Revenue,20003467,MCAVOY HIRE LTD
Oxford City Council,Housing and Property,Consultants Fees,D3411,19/01/2016,1024657_1,786.00,Revenue,20003549,BOSSOMS BOATYARD LTD
Oxford City Council,Housing and Property,Consultants Fees,D3411,26/01/2016,1024680_1,1416.67,Revenue,20003549,BOSSOMS BOATYARD LTD
Oxford City Council,Housing and Property,Consultants Fees,D3411,26/01/2016,1024762_1,1416.67,Revenue,20003549,BOSSOMS BOATYARD LTD
Oxford City Council,Housing and Property,Consultants Fees,D3411,22/03/2016,1025525_1,1416.67,Revenue,20003549,BOSSOMS BOATYARD LTD
Oxford City Council,Housing and Property,Consultants Fees,D3411,08/03/2016,1026544_0,1416.67,Revenue,20003549,BOSSOMS BOATYARD LTD
Oxford City Council,Direct Services,Plants,D3025,29/01/2016,1025401_1,2508.00,Revenue,20003592,BARCHAM TREES PLC
Oxford City Council,Direct Services,Plants,D3025,29/01/2016,1025402_1,4577.00,Revenue,20003592,BARCHAM TREES PLC
Oxford City Council,Housing and Property,Services Maintenance (Planned),B1103,22/03/2016,1026671_0,110.00,Revenue,20003609,PTSG ELECTRICAL SEVICES LTD
Oxford City Council,Housing and Property,Services Maintenance (Planned),B1103,22/03/2016,1026671_1,110.00,Revenue,20003609,PTSG ELECTRICAL SEVICES LTD
Oxford City Council,Housing and Property,Services Maintenance (Planned),B1103,22/03/2016,1026671_2,110.00,Revenue,20003609,PTSG ELECTRICAL SEVICES LTD
Oxford City Council,Housing and Property,Services Maintenance (Planned),B1103,22/03/2016,1026671_3,110.00,Revenue,20003609,PTSG ELECTRICAL SEVICES LTD
Oxford City Council,HRA,Lightning Protection,B1130,22/03/2016,1026671_4,990.00,Revenue,20003609,PTSG ELECTRICAL SEVICES LTD
Oxford City Council,Community Services,General Contracted Services,D3401,16/02/2016,1025704_1,24346.11,Revenue,20003616,THAMES VALLEY POLICE AUTHORITY
Oxford City Council,Community Services,General Contracted Services,D3401,12/01/2016,46288464_1,10000.00,Revenue,20003616,THAMES VALLEY POLICE AUTHORITY
Oxford City Council,Law and Governance,Postage & Carriage,D3501,29/01/2016,1024946_1,884.51,Revenue,20003730,ROYAL MAIL
Oxford City Council,Direct Services,Protective Clothing,D3201,12/01/2016,60048836_0,2975.00,Revenue,20004221,SSI SCHAEFER LTD
Oxford City Council,Direct Services,Refuse Containers,D3004,16/02/2016,60050749_1,6698.00,Revenue,20004221,SSI SCHAEFER LTD
Oxford City Council,Direct Services,Refuse Containers,D3004,16/02/2016,60050962_0,17135.20,Revenue,20004221,SSI SCHAEFER LTD
Oxford City Council,Housing and Property,Grants,D3701,19/01/2016,46288510_1,8907.50,Revenue,20004323,ELMORE COMMUNITY SERVICES
Oxford City Council,Housing and Property,Grants,D3701,29/01/2016,46288619_1,1395.00,Revenue,20004324,THE GATEHOUSE
Oxford City Council,Housing and Property,Grants,D3701,26/01/2016,46288545_1,13750.00,Revenue,20004327,THE PORCH
Oxford City Council,HRA,Lift Maintenance / Servicing,B1203,26/01/2016,1025035_1,1758.00,Revenue,20004494,COTSWOLD LIFTS LTD
Oxford City Council,HRA,Lift Maintenance / Servicing,B1203,26/01/2016,46288573_1,2125.35,Revenue,20004494,COTSWOLD LIFTS LTD
Oxford City Council,HRA,Lift Maintenance / Servicing,B1203,01/03/2016,46288839_1,11622.70,Revenue,20004494,COTSWOLD LIFTS LTD
Oxford City Council,HRA,Lift Maintenance / Servicing,B1203,01/03/2016,46288839_2,383.78,Revenue,20004494,COTSWOLD LIFTS LTD
Oxford City Council,Direct Services,Lift Maintenance / Servicing,B1203,01/03/2016,46288839_3,490.34,Revenue,20004494,COTSWOLD LIFTS LTD
Oxford City Council,Community Services,Contributions,D3702,08/03/2016,46288756_1,696.00,Revenue,20004693,CRISIS
Oxford City Council,Housing and Property,Grants,D3701,29/03/2016,46289155_1,5916.00,Revenue,20004693,CRISIS
Oxford City Council,Community Services,Grants,D3701,01/03/2016,46288893_1,2500.00,Revenue,20004720,THE ARCHWAY FOUNDATION
Oxford City Council,Community Services,Grants,D3701,08/03/2016,46288924_1,500.00,Revenue,20004720,THE ARCHWAY FOUNDATION
Oxford City Council,Planning & Regulatory,Main Contractor,Y021,01/03/2016,48021464_1,4556.90,Capital,20004730,LITTLEMORE PARISH COUNCIL
Oxford City Council,Planning & Regulatory,Grants,D3701,01/03/2016,48021464_2,620.00,Revenue,20004730,LITTLEMORE PARISH COUNCIL
Oxford City Council,Direct Services,Tools,D3023,16/02/2016,60050797_1,1840.98,Revenue,20005058,RADIODETECTION LTD
Oxford City Council,Planning & Regulatory,Staff Advertising,A0702,23/02/2016,1025622_0,750.00,Revenue,20005063,CHARTERED INSTITUTE OF ENVIRONMENTAL HEALTH
Oxford City Council,Direct Services,Postage & Carriage,D3501,26/01/2016,1024963_1,512.00,Revenue,20005077,FRANCOTYP POSTALIA LTD - RENT
Oxford City Council,Direct Services,Postage & Carriage,D3501,26/01/2016,1025227_1,512.00,Revenue,20005077,FRANCOTYP POSTALIA LTD - RENT
Oxford City Council,Direct Services,Postage & Carriage,D3501,16/02/2016,1025615_1,500.00,Revenue,20005077,FRANCOTYP POSTALIA LTD - RENT
Oxford City Council,Direct Services,Postage & Carriage,D3501,22/03/2016,1026747_1,500.00,Revenue,20005077,FRANCOTYP POSTALIA LTD - RENT
Oxford City Council,Direct Services,Postage & Carriage,D3501,29/03/2016,1027071_1,500.00,Revenue,20005077,FRANCOTYP POSTALIA LTD - RENT
Oxford City Council,Direct Services,Postage & Carriage,D3501,29/03/2016,1027072_1,500.00,Revenue,20005077,FRANCOTYP POSTALIA LTD - RENT
Oxford City Council,Direct Services,Tools,D3023,16/02/2016,1025694_1,240.00,Revenue,20005135,HSS HIRE SERVICE GROUP PLC
Oxford City Council,Direct Services,Tools,D3023,16/02/2016,1025694_2,935.00,Revenue,20005135,HSS HIRE SERVICE GROUP PLC
Oxford City Council,Direct Services,Postage & Carriage,D3501,16/02/2016,1025694_3,20.00,Revenue,20005135,HSS HIRE SERVICE GROUP PLC
Oxford City Council,Direct Services,Reactive Maintenance & Minor Repairs,B1101,15/03/2016,1026260_0,715.28,Revenue,20005595,EXECUTIVE SECURITY LOCKSMITHS LTD
Oxford City Council,Direct Services,Direct Services Sub Contractors,B1111,16/02/2016,60050865_1,637.92,Revenue,20005595,EXECUTIVE SECURITY LOCKSMITHS LTD
Oxford City Council,Direct Services,Materials,D3021,23/02/2016,60051236_0,576.00,Revenue,20005595,EXECUTIVE SECURITY LOCKSMITHS LTD
Oxford City Council,Direct Services,General Contracted Services,D3401,01/03/2016,60051748_2,875.00,Revenue,20005595,EXECUTIVE SECURITY LOCKSMITHS LTD
Oxford City Council,Direct Services,Direct Services Sub Contractors,B1111,01/03/2016,60051779_1,590.00,Revenue,20005595,EXECUTIVE SECURITY LOCKSMITHS LTD
Oxford City Council,Direct Services,Direct Services Sub Contractors,B1111,01/03/2016,60051780_0,1298.43,Revenue,20005595,EXECUTIVE SECURITY LOCKSMITHS LTD
Oxford City Council,Direct Services,Materials,D3021,29/03/2016,60053297_1,2300.75,Revenue,20005595,EXECUTIVE SECURITY LOCKSMITHS LTD
Oxford City Council,Direct Services,Short Term Vehicle Hire,C2304,08/03/2016,47984218_0,2790.00,Revenue,20005675,ECON ENGINEERING LTD
Oxford City Council,Direct Services,Short Term Vehicle Hire,C2304,08/03/2016,47984219_1,2120.00,Revenue,20005675,ECON ENGINEERING LTD
Oxford City Council,Direct Services,Materials,D3021,12/01/2016,60048870_0,1122.49,Revenue,20005720,CAPITOL TILE SUPPLIES LTD
Oxford City Council,Direct Services,Materials,D3021,12/01/2016,60048940_0,910.80,Revenue,20005720,CAPITOL TILE SUPPLIES LTD
Oxford City Council,Direct Services,Materials,D3021,26/01/2016,60049489_2,1933.80,Revenue,20005720,CAPITOL TILE SUPPLIES LTD
Oxford City Council,Direct Services,Materials,D3021,09/02/2016,60050045_1,1064.80,Revenue,20005720,CAPITOL TILE SUPPLIES LTD
Oxford City Council,Direct Services,Materials,D3021,09/02/2016,60050046_0,534.60,Revenue,20005720,CAPITOL TILE SUPPLIES LTD
Oxford City Council,Direct Services,Materials,D3021,16/02/2016,60050629_0,1762.20,Revenue,20005720,CAPITOL TILE SUPPLIES LTD
Oxford City Council,Direct Services,Materials,D3021,16/02/2016,60050782_0,1641.92,Revenue,20005720,CAPITOL TILE SUPPLIES LTD
Oxford City Council,Direct Services,Materials,D3021,23/02/2016,60051012_1,998.64,Revenue,20005720,CAPITOL TILE SUPPLIES LTD
Oxford City Council,Direct Services,Materials,D3021,23/02/2016,60051014_1,1063.60,Revenue,20005720,CAPITOL TILE SUPPLIES LTD
Oxford City Council,Direct Services,Materials,D3021,01/03/2016,60051560_1,2186.40,Revenue,20005720,CAPITOL TILE SUPPLIES LTD
Oxford City Council,Direct Services,Materials,D3021,01/03/2016,60051614_1,857.93,Revenue,20005720,CAPITOL TILE SUPPLIES LTD
Oxford City Council,Direct Services,Materials,D3021,01/03/2016,60051615_0,2004.04,Revenue,20005720,CAPITOL TILE SUPPLIES LTD
Oxford City Council,Direct Services,Materials,D3021,08/03/2016,60052002_1,641.91,Revenue,20005720,CAPITOL TILE SUPPLIES LTD
Oxford City Council,Direct Services,Materials,D3021,08/03/2016,60052063_0,534.60,Revenue,20005720,CAPITOL TILE SUPPLIES LTD
Oxford City Council,Direct Services,Materials,D3021,08/03/2016,60052064_1,910.80,Revenue,20005720,CAPITOL TILE SUPPLIES LTD
Oxford City Council,Direct Services,Materials,D3021,08/03/2016,60052065_0,1381.60,Revenue,20005720,CAPITOL TILE SUPPLIES LTD
Oxford City Council,Direct Services,Materials,D3021,22/03/2016,60052737_0,1069.20,Revenue,20005720,CAPITOL TILE SUPPLIES LTD
Oxford City Council,Direct Services,Materials,D3021,22/03/2016,60052996_1,776.44,Revenue,20005720,CAPITOL TILE SUPPLIES LTD
Oxford City Council,Direct Services,Materials,D3021,22/03/2016,60052997_0,2138.40,Revenue,20005720,CAPITOL TILE SUPPLIES LTD
Oxford City Council,Housing and Property,Services Maintenance (Planned),B1103,15/03/2016,1026140_0,987.38,Revenue,20006023,SOUTHERN ELECTRIC POWER DIST. PLC
Oxford City Council,Regeneration and Major Projects Team,Main Contractor,Y021,22/03/2016,1026318_0,1273.19,Capital,20006023,SOUTHERN ELECTRIC POWER DIST. PLC
Oxford City Council,Community Services,Main Contractor,Y021,22/03/2016,1026995_0,974.74,Capital,20006023,SOUTHERN ELECTRIC POWER DIST. PLC
Oxford City Council,Direct Services,Materials,D3021,08/03/2016,60051905_0,526.20,Revenue,20006027,ACE MINIMIX
Oxford City Council,Direct Services,Materials,D3021,08/03/2016,60052238_1,526.20,Revenue,20006027,ACE MINIMIX
Oxford City Council,Suspense,Other Insurances,D3801,26/01/2016,1025159_1,18191.27,Revenue,20006064,ZURICH MUNICIPAL
Oxford City Council,Suspense,Other Insurances,D3801,26/01/2016,1025160_1,11943.26,Revenue,20006064,ZURICH MUNICIPAL
Oxford City Council,Suspense,Other Insurances,D3801,26/01/2016,1025166_1,33859.93,Revenue,20006064,ZURICH MUNICIPAL
Oxford City Council,Suspense,Other Insurances,D3801,26/01/2016,1025167_1,53496.01,Revenue,20006064,ZURICH MUNICIPAL
Oxford City Council,Suspense,Other Insurances,D3801,09/02/2016,1025168_1,284733.09,Revenue,20006064,ZURICH MUNICIPAL
Oxford City Council,Suspense,Insurance Employee Related,A0801,23/02/2016,46288791_1,10000.00,Revenue,20006064,ZURICH MUNICIPAL
Oxford City Council,Suspense,Other Insurances,D3801,01/03/2016,46288864_1,24183.80,Revenue,20006064,ZURICH MUNICIPAL
Oxford City Council,Direct Services,Materials,D3021,12/01/2016,60048759_1,683.25,Revenue,20006089,ICI CONTRACT DIRECT
Oxford City Council,Direct Services,Materials,D3021,12/01/2016,60048761_1,652.54,Revenue,20006089,ICI CONTRACT DIRECT
Oxford City Council,Direct Services,Materials,D3021,16/02/2016,60050678_0,1069.49,Revenue,20006089,ICI CONTRACT DIRECT
Oxford City Council,Direct Services,Materials,D3021,23/02/2016,60051124_1,1200.57,Revenue,20006089,ICI CONTRACT DIRECT
Oxford City Council,Direct Services,Materials,D3021,23/02/2016,60051253_1,525.12,Revenue,20006089,ICI CONTRACT DIRECT
Oxford City Council,Direct Services,Materials,D3021,01/03/2016,60051687_0,540.53,Revenue,20006089,ICI CONTRACT DIRECT
Oxford City Council,Direct Services,Materials,D3021,08/03/2016,60051970_1,769.23,Revenue,20006089,ICI CONTRACT DIRECT
Oxford City Council,Direct Services,Materials,D3021,29/03/2016,60053217_0,1196.56,Revenue,20006089,ICI CONTRACT DIRECT
Oxford City Council,Planning & Regulatory,CPD (Continuous Professional Development),A0634,08/03/2016,1026432_0,510.00,Revenue,20006121,ARBORICULTURAL ASSOCIATION TRADING LTD
Oxford City Council,Community Services,Contributions,D3702,29/01/2016,46288411_1,500.00,Revenue,20006207,BULLINGDON COMMUNITY ASSOC
Oxford City Council,Direct Services,Materials,D3021,19/01/2016,1024757_1,766.32,Revenue,20006342,JEWSON LTD
Oxford City Council,Direct Services,Materials,D3021,12/01/2016,60048750_0,595.60,Revenue,20006342,JEWSON LTD
Oxford City Council,Direct Services,Materials,D3021,12/01/2016,60048883_1,703.68,Revenue,20006342,JEWSON LTD
Oxford City Council,Direct Services,Materials,D3021,26/01/2016,60049537_2,1126.10,Revenue,20006342,JEWSON LTD
Oxford City Council,Direct Services,Materials,D3021,26/01/2016,60049574_0,965.83,Revenue,20006342,JEWSON LTD
Oxford City Council,Direct Services,Materials,D3021,29/01/2016,60049886_1,747.00,Revenue,20006342,JEWSON LTD
Oxford City Council,Direct Services,Materials,D3021,29/01/2016,60049889_0,509.48,Revenue,20006342,JEWSON LTD
Oxford City Council,Direct Services,Materials,D3021,29/01/2016,60049891_0,654.00,Revenue,20006342,JEWSON LTD
Oxford City Council,Direct Services,Materials,D3021,09/02/2016,60050099_0,1289.00,Revenue,20006342,JEWSON LTD
Oxford City Council,Direct Services,Materials,D3021,15/03/2016,60052415_1,846.60,Revenue,20006342,JEWSON LTD
Oxford City Council,Direct Services,Materials,D3021,09/02/2016,60050232_1,4750.00,Revenue,20006398,STREET FURNISHING SERVICES
Oxford City Council,Direct Services,Sign Shop Materials,D3018,09/02/2016,60050233_0,2596.00,Revenue,20006398,STREET FURNISHING SERVICES
Oxford City Council,Direct Services,Materials,D3021,23/02/2016,60051374_1,805.00,Revenue,20006398,STREET FURNISHING SERVICES
Oxford City Council,Direct Services,Materials,D3021,08/03/2016,60052116_1,4850.00,Revenue,20006398,STREET FURNISHING SERVICES
Oxford City Council,Direct Services,Materials,D3021,22/03/2016,60052971_0,1767.00,Revenue,20006398,STREET FURNISHING SERVICES
Oxford City Council,Direct Services,Furniture & Equipment Purchase,D3001,23/02/2016,1025735_0,4217.25,Revenue,20006504,BUS SHELTERS LTD
Oxford City Council,Direct Services,Furniture & Equipment Purchase,D3001,01/03/2016,1025736_0,4217.25,Revenue,20006504,BUS SHELTERS LTD
Oxford City Council,Direct Services,General Contracted Services,D3401,15/03/2016,1026376_0,650.00,Revenue,20006504,BUS SHELTERS LTD
Oxford City Council,Direct Services,Furniture & Equipment Purchase,D3001,15/03/2016,46289046_1,4217.25,Revenue,20006504,BUS SHELTERS LTD
Oxford City Council,Direct Services,Furniture & Equipment Purchase,D3001,15/03/2016,46289047_1,4217.25,Revenue,20006504,BUS SHELTERS LTD
Oxford City Council,Business Improvement,Travel Scheme Discount,C2505,29/01/2016,1025333_1,1284.50,Revenue,20006596,OXFORD BUS COMPANY LTD
Oxford City Council,Planning & Regulatory,Public Transport,C2501,09/02/2016,1025547_1,883.50,Revenue,20006596,OXFORD BUS COMPANY LTD
Oxford City Council,Business Improvement,Travel Scheme Discount,C2505,23/02/2016,1025880_1,1194.70,Revenue,20006596,OXFORD BUS COMPANY LTD
Oxford City Council,Planning & Regulatory,Public Transport,C2501,08/03/2016,1026436_0,797.00,Revenue,20006596,OXFORD BUS COMPANY LTD
Oxford City Council,Planning & Regulatory,Public Transport,C2501,08/03/2016,1026437_0,1325.25,Revenue,20006596,OXFORD BUS COMPANY LTD
Oxford City Council,Planning & Regulatory,Public Transport,C2501,08/03/2016,1026438_0,3534.00,Revenue,20006596,OXFORD BUS COMPANY LTD
Oxford City Council,Business Improvement,Travel Scheme Discount,C2505,15/03/2016,1026564_1,1147.40,Revenue,20006596,OXFORD BUS COMPANY LTD
Oxford City Council,Financial Services,Subscriptions,D3703,08/03/2016,1025992_0,1375.00,Revenue,20006804,CIPFA BUSINESS LTD
Oxford City Council,Financial Services,Subscriptions,D3703,08/03/2016,1025992_1,1375.00,Revenue,20006804,CIPFA BUSINESS LTD
Oxford City Council,Financial Services,Books & Publications,D3302,22/03/2016,1026472_1,4092.00,Revenue,20006804,CIPFA BUSINESS LTD
Oxford City Council,Financial Services,Subscriptions,D3703,29/03/2016,1026521_0,2680.00,Revenue,20006804,CIPFA BUSINESS LTD
Oxford City Council,Financial Services,Subscriptions,D3703,22/03/2016,1026522_0,2400.00,Revenue,20006804,CIPFA BUSINESS LTD
Oxford City Council,Financial Services,Subscriptions,D3703,22/03/2016,1026559_1,2250.00,Revenue,20006804,CIPFA BUSINESS LTD
Oxford City Council,Financial Services,Training Short Courses,A0602,22/03/2016,46289158_1,825.00,Revenue,20006804,CIPFA BUSINESS LTD
Oxford City Council,HRA,Training Short Courses,A0602,22/03/2016,46289158_2,825.00,Revenue,20006804,CIPFA BUSINESS LTD
Oxford City Council,Housing and Property,Reactive Maintenance & Minor Repairs,B1101,22/03/2016,1026507_0,600.00,Revenue,20006929,ISIS SCAFFOLDING LTD
Oxford City Council,Housing and Property,Reactive Maintenance & Minor Repairs,B1101,08/03/2016,1026508_0,550.00,Revenue,20006929,ISIS SCAFFOLDING LTD
Oxford City Council,Housing and Property,Reactive Maintenance & Minor Repairs,B1101,08/03/2016,1026509_0,540.00,Revenue,20006929,ISIS SCAFFOLDING LTD
Oxford City Council,Housing and Property,Reactive Maintenance & Minor Repairs,B1101,08/03/2016,1026510_0,780.00,Revenue,20006929,ISIS SCAFFOLDING LTD
Oxford City Council,Business Improvement,Hardware Purchase,D3520,01/03/2016,1025430_1,50000.00,Revenue,20006940,BT GLOBAL SERVIES
Oxford City Council,HRA,Main Contractor,Y021,26/01/2016,1025268_1,19881.35,Capital,20007072,SERS LTD
Oxford City Council,HRA,Main Contractor,Y021,08/03/2016,1026463_0,43475.50,Capital,20007072,SERS LTD
Oxford City Council,HRA,Main Contractor,Y021,22/03/2016,1026663_0,34487.20,Capital,20007072,SERS LTD
Oxford City Council,Community Services,Electricity,B1501,23/02/2016,47013107_1,631.13,Revenue,20007269,E.ON
Oxford City Council,Community Services,Electricity,B1501,22/03/2016,47013630_0,657.13,Revenue,20007269,E.ON
Oxford City Council,Direct Services,Short Courses,A0622,09/02/2016,1025571_0,500.00,Revenue,20007299,RESTORE LTD
Oxford City Council,Community Services,Grants,D3701,29/03/2016,1027190_0,1210.00,Revenue,20007299,RESTORE LTD
Oxford City Council,Community Services,General Contracted Services,D3401,09/02/2016,1025503_0,1665.00,Revenue,20007368,UNIPART CONFERENCE CENTRE
Oxford City Council,HRA,Gas,B1502,12/01/2016,1024453_1,508.71,Revenue,20007602,TOTAL GAS & POWER LTD
Oxford City Council,Housing and Property,Gas,B1502,29/01/2016,47012488_1,1337.05,Revenue,20007602,TOTAL GAS & POWER LTD
Oxford City Council,Community Services,Gas,B1502,23/02/2016,47013044_0,2298.40,Revenue,20007602,TOTAL GAS & POWER LTD
Oxford City Council,Community Services,Gas,B1502,23/02/2016,47013083_0,2010.56,Revenue,20007602,TOTAL GAS & POWER LTD
Oxford City Council,Direct Services,Gas,B1502,23/02/2016,47013090_1,578.63,Revenue,20007602,TOTAL GAS & POWER LTD
Oxford City Council,Direct Services,Gas,B1502,23/02/2016,47013111_1,1246.69,Revenue,20007602,TOTAL GAS & POWER LTD
Oxford City Council,Community Services,Gas,B1502,22/03/2016,47013579_0,2329.01,Revenue,20007602,TOTAL GAS & POWER LTD
Oxford City Council,Housing and Property,Gas,B1502,22/03/2016,47013595_0,688.43,Revenue,20007602,TOTAL GAS & POWER LTD
Oxford City Council,Community Services,Gas,B1502,22/03/2016,47013596_1,722.30,Revenue,20007602,TOTAL GAS & POWER LTD
Oxford City Council,Community Services,Gas,B1502,22/03/2016,47013600_0,724.44,Revenue,20007602,TOTAL GAS & POWER LTD
Oxford City Council,Direct Services,General Contracted Services,D3401,19/01/2016,60049435_1,1592.05,Revenue,20007609,EXECUTIVE FIRE PROTECTION LTD
Oxford City Council,Housing and Property,Reactive Maintenance & Minor Repairs,B1101,26/01/2016,60049822_2,650.00,Revenue,20007609,EXECUTIVE FIRE PROTECTION LTD
Oxford City Council,Housing and Property,Reactive Maintenance & Minor Repairs,B1101,16/02/2016,60050716_0,4392.50,Revenue,20007609,EXECUTIVE FIRE PROTECTION LTD
Oxford City Council,Housing and Property,Reactive Maintenance & Minor Repairs,B1101,16/02/2016,60050717_1,4392.50,Revenue,20007609,EXECUTIVE FIRE PROTECTION LTD
Oxford City Council,Housing and Property,Reactive Maintenance & Minor Repairs,B1101,16/02/2016,60050718_0,3052.50,Revenue,20007609,EXECUTIVE FIRE PROTECTION LTD
Oxford City Council,Housing and Property,Reactive Maintenance & Minor Repairs,B1101,16/02/2016,60050762_0,3025.50,Revenue,20007609,EXECUTIVE FIRE PROTECTION LTD
Oxford City Council,Housing and Property,Reactive Maintenance & Minor Repairs,B1101,16/02/2016,60050763_1,1100.00,Revenue,20007609,EXECUTIVE FIRE PROTECTION LTD
Oxford City Council,Community Services,Materials,D3021,29/03/2016,1027151_0,790.00,Revenue,20007753,ESSENTRA PACKAGING & SECURITY LTD
Oxford City Council,Community Services,Postage & Carriage,D3501,29/03/2016,1027151_1,9.50,Revenue,20007753,ESSENTRA PACKAGING & SECURITY LTD
Oxford City Council,Direct Services,Materials,D3021,09/02/2016,47983657_1,2976.00,Revenue,20007833,GELPACK EXCELSIOR LTD
Oxford City Council,Direct Services,Materials,D3021,09/02/2016,47983657_2,1248.00,Revenue,20007833,GELPACK EXCELSIOR LTD
Oxford City Council,Direct Services,Materials,D3021,09/02/2016,47983658_0,1248.00,Revenue,20007833,GELPACK EXCELSIOR LTD
Oxford City Council,Direct Services,Materials,D3021,01/03/2016,47984118_1,1824.00,Revenue,20007833,GELPACK EXCELSIOR LTD
Oxford City Council,Suspense,Materials,D3021,09/02/2016,60050162_1,2746.20,Revenue,20007833,GELPACK EXCELSIOR LTD
Oxford City Council,Direct Services,Materials,D3021,16/02/2016,60050675_1,1884.60,Revenue,20007833,GELPACK EXCELSIOR LTD
Oxford City Council,Suspense,Materials,D3021,23/02/2016,60051270_1,2718.60,Revenue,20007833,GELPACK EXCELSIOR LTD
Oxford City Council,Direct Services,Materials,D3021,01/03/2016,60051843_0,782.40,Revenue,20007833,GELPACK EXCELSIOR LTD
Oxford City Council,Direct Services,Refuse Containers,D3004,15/03/2016,60052247_1,7197.12,Revenue,20007833,GELPACK EXCELSIOR LTD
Oxford City Council,Direct Services,Refuse Containers,D3004,22/03/2016,60052824_1,1200.00,Revenue,20007833,GELPACK EXCELSIOR LTD
Oxford City Council,Direct Services,Refuse Containers,D3004,22/03/2016,60052825_0,1160.00,Revenue,20007833,GELPACK EXCELSIOR LTD
Oxford City Council,Direct Services,General Stationery Supplies,D3301,26/01/2016,1024771_1,583.09,Revenue,20007849,LYRECO UK LTD
Oxford City Council,Business Improvement,General Stationery Supplies,D3301,26/01/2016,1025022_1,1300.84,Revenue,20007849,LYRECO UK LTD
Oxford City Council,Direct Services,General Stationery Supplies,D3301,01/03/2016,1025756_0,1399.28,Revenue,20007849,LYRECO UK LTD
Oxford City Council,Business Improvement,General Stationery Supplies,D3301,01/03/2016,1025878_0,2087.52,Revenue,20007849,LYRECO UK LTD
Oxford City Council,Direct Services,General Stationery Supplies,D3301,29/03/2016,1026530_0,853.29,Revenue,20007849,LYRECO UK LTD
Oxford City Council,Direct Services,General Stationery Supplies,D3301,29/03/2016,1026569_0,648.53,Revenue,20007849,LYRECO UK LTD
Oxford City Council,Business Improvement,General Stationery Supplies,D3301,29/03/2016,1026670_0,1731.95,Revenue,20007849,LYRECO UK LTD
Oxford City Council,Direct Services,General Stationery Supplies,D3301,22/03/2016,1026950_0,549.45,Revenue,20007849,LYRECO UK LTD
Oxford City Council,Planning & Regulatory,Advertising & Publicity,D3802,12/01/2016,1024750_1,3035.20,Revenue,20007856,NEWSQUEST MIDLANDS  WALES & SOUTH WEST
Oxford City Council,Planning & Regulatory,Advertising & Publicity,D3802,09/02/2016,1025398_1,569.10,Revenue,20007856,NEWSQUEST MIDLANDS  WALES & SOUTH WEST
